Body Name,Date Paid,Transaction Number,Amount,Supplier Name,Supplier Type,Expense Area,Cost Centre Description,Expense Type
Cambridgeshire County Council,03-Apr-23,51301961351,"5,414.40",Ackerman Pierce Limited,COMPANY,Out of School Tuition,Out of School Provision EHCPs,Independent School Placements
Cambridgeshire County Council,03-Apr-23,51301961337,"6,370.28",Ackerman Pierce Limited,COMPANY,Out of School Tuition,Out of School Provision EHCPs,Independent School Placements
Cambridgeshire County Council,03-Apr-23,51301954724,"2,332.80",Ackerman Pierce Limited,COMPANY,Out of School Tuition,SEND - Support for PEX without EHCP,Professional Fees and Hired Services
Cambridgeshire County Council,03-Apr-23,51301951835,"2,916.00",Ackerman Pierce Limited,COMPANY,Out of School Tuition,Out of School Provision EHCPs,Independent School Placements
Cambridgeshire County Council,03-Apr-23,51301954722,"5,208.84",Ackerman Pierce Limited,COMPANY,Out of School Tuition,SEND - Support for PEX without EHCP,Professional Fees and Hired Services
Cambridgeshire County Council,03-Apr-23,51301951914,"5,832.00",Ackerman Pierce Limited,COMPANY,Out of School Tuition,Out of School Provision EHCPs,Independent School Placements
Cambridgeshire County Council,03-Apr-23,51301951912,"6,073.41",Ackerman Pierce Limited,COMPANY,Out of School Tuition,Out of School Provision EHCPs,Independent School Placements
Cambridgeshire County Council,03-Apr-23,51301960049,"7,962.84",Ackerman Pierce Limited,COMPANY,Out of School Tuition,Out of School Provision EHCPs,Independent School Placements
Cambridgeshire County Council,03-Apr-23,51301951840,"8,905.68",Ackerman Pierce Limited,COMPANY,Out of School Tuition,Out of School Provision EHCPs,Independent School Placements
Cambridgeshire County Council,03-Apr-23,51301951913,"1,187.42",Ackerman Pierce Limited,COMPANY,Out of School Tuition,Out of School Provision EHCPs,Independent School Placements
Cambridgeshire County Council,03-Apr-23,51301951837,"1,187.42",Ackerman Pierce Limited,COMPANY,Out of School Tuition,Out of School Provision EHCPs,Independent School Placements
Cambridgeshire County Council,03-Apr-23,51301957640,"2,325.37",Ackerman Pierce Limited,COMPANY,Out of School Tuition,SEND - Support for PEX without EHCP,Professional Fees and Hired Services
Cambridgeshire County Council,03-Apr-23,51301948309,"6,147.32",Acorn Care & Education Ltd,EDUCATION,SEN Placements,Independent Education Placements,Independent School Placements
Cambridgeshire County Council,03-Apr-23,51301954486,"6,375.00",Acorn Care & Education Ltd,EDUCATION,SEN Placements,Independent Education Placements,Independent School Placements
Cambridgeshire County Council,03-Apr-23,51301948306,"6,375.00",Acorn Care & Education Ltd,EDUCATION,SEN Placements,Independent Education Placements,Independent School Placements
Cambridgeshire County Council,03-Apr-23,51301961276,"2,912.32",Ali Sea,SOLETRADER,LD - City Locality - Staffing,LD - City - Staffing,Agency Staff
Cambridgeshire County Council,03-Apr-23,51301961049,"3,180.00",Amblewood Kennels Limited,COMPANY,AMH Cambridge North - Care,Cambridge North Adult Mental Health Team,Specialist Servicing and Maintenance
Cambridgeshire County Council,03-Apr-23,51301960783,940.00,angli-EAR Hearing and Tinnitus Solutions Limited,COMPANY,Early Years Specialist Support,SEND - Independent Therapy,Independent School Placements
Cambridgeshire County Council,03-Apr-23,51301951972,"15,173.08",ATKINS LTD,COMPANY,TIPF - Strategy & Scheme Dev,TIPF - Strategy & Scheme Dev,Construction - External Professional Fees
Cambridgeshire County Council,03-Apr-23,51301946030,"177,246.00",ATKINS LTD,COMPANY,GCP - Cambridge South East (A1307),GCP - Cambridge South East (A1307),Construction - External Professional Fees
Cambridgeshire County Council,03-Apr-23,51301946099,"24,348.73",ATKINS LTD,COMPANY,March Area Transport Study,March Area Transport Study,Construction - External Professional Fees
Cambridgeshire County Council,03-Apr-23,51301946017,"10,580.75",Aurora Fairway School (Beechkeys Ltd ),EDUCATION,SEN Placements,Independent Education Placements,Independent School Placements
Cambridgeshire County Council,03-Apr-23,51301951882,"6,666.06",AW Management Company (KP1c) Limited,COMPANY,Corporate Offices,Civic Headquarters � Alconbury Weald,Service Charges
Cambridgeshire County Council,03-Apr-23,51301961192,"1,023.60",BEVAN BRITTAN LLP,TRADE SUPPLIER,Waste Disposal incl PFI,Waste PFI,External Legal Fees
Cambridgeshire County Council,03-Apr-23,51301960988,"42,804.83",BORRAS CONSTRUCTION LTD,COMPANY,"School Condition, Maintenance & Suitability","School Condition, Maintenance & Suitability",Buildings - Roof
Cambridgeshire County Council,03-Apr-23,51301961398,"15,278.57",BREAK,CHARITY,LAC Placements,Placements - residential homes,Agency Placements - In County
Cambridgeshire County Council,03-Apr-23,51301961421,"2,065.20",BRITISH TELECOMMUNICATIONS PLC,COMPANY,GCP Horningsea Greenway,GCP Horningsea Greenway,"New Construction, Conversion and Renovation"
Cambridgeshire County Council,03-Apr-23,51301926657,"9,765.00",CACI LIMITED,TRADE SUPPLIER,Business Systems,IT Strategy - Education - YJSS,IT Software
Cambridgeshire County Council,03-Apr-23,51301946112,"25,000.00",CAMBRIDGE CURIOSITY AND IMAGINATION,CHARITY,PH Integrated Lifestyle Services,Obesity Children - General Childhood Obesity,Professional Fees and Hired Services
Cambridgeshire County Council,03-Apr-23,51301961449,"2,593.50",CAMBRIDGE EAL,EDUCATION,SEND High Needs Top Up,High Needs Top Up - Post 16,Independent School Placements
Cambridgeshire County Council,03-Apr-23,51301961302,"118,000.00",Cambridgeshire and Peterborough Combined Authority,OTHER PUBLIC BODIES,Asst Dir - Infrastrucuture & Growth,"Asst Director - Transport, Strategy & Development",Payments to Other Local Authorities
Cambridgeshire County Council,03-Apr-23,51301961014,"55,000.00",CAMBRIDGESHIRE COMMUNITY FOUNDATION,CHARITY,PH Other Health Improvement,Gen prev activities - Health -  Winter Warmth,Professional Fees and Hired Services
Cambridgeshire County Council,03-Apr-23,51301958365,517.40,CAMBRIDGESHIRE HOMECARE (J&M CARE LTD),CARE ESTABLISHMENT,Community Support Service,Community Support Service ECF,Grants to Voluntary Bodies
Cambridgeshire County Council,03-Apr-23,51301951928,"338,267.32",CAPITA BUSINESS SERVICES LTD,OTHER PUBLIC BODIES,System Licences,System Software & Licences,Computer software - annual licence agreement
Cambridgeshire County Council,03-Apr-23,51301946040,"3,637.69",CARMELCREST LIMITED,COMPANY,Environment Fund: Decarbonisation Fund - Council buildings Low Carbon Heating,Victoria Lodge Renewable Heating,"New Construction, Conversion and Renovation"
Cambridgeshire County Council,03-Apr-23,51301947991,"3,420.00",CARTER JONAS LLP,TRADE SUPPLIER,County Farms,County Farms,Professional Fees and Hired Services
Cambridgeshire County Council,03-Apr-23,51301948376,"4,467.17",CENTRAL ENGLAND CO-OPERATIVE FUNERALS,TRADE SUPPLIER,Coroners,Coroners General,Transportion Services
Cambridgeshire County Council,03-Apr-23,51301949275,"7,077.64",CENTRAL ENGLAND CO-OPERATIVE FUNERALS,TRADE SUPPLIER,Coroners,Coroners General,Transportion Services
Cambridgeshire County Council,03-Apr-23,51301949276,"7,701.74",CENTRAL ENGLAND CO-OPERATIVE FUNERALS,TRADE SUPPLIER,Coroners,Coroners General,Transportion Services
Cambridgeshire County Council,03-Apr-23,51301957243,"1,527.37",CERTAS ENERGY UK LIMITED T/A PACE FUELCARE LIMITED,TRADE SUPPLIER,Corporate Offices,Buttsgrove,Oil
Cambridgeshire County Council,03-Apr-23,51301946958,"1,685.35",COMPASS MINERALS UK LIMITED,TRADE SUPPLIER,Winter Maintenance,West Winter,Salt for Highways
Cambridgeshire County Council,03-Apr-23,51301948241,"1,639.68",COMPASS MINERALS UK LIMITED,TRADE SUPPLIER,Winter Maintenance,West Winter,Salt for Highways
Cambridgeshire County Council,03-Apr-23,51301961395,"6,191.14",CREDO CARE,CARE ESTABLISHMENT,LAC Placements,Placements - independent fostering,Agency Placements - Out of  County
Cambridgeshire County Council,03-Apr-23,51301948374,969.00,DCC Interactive Ltd (trading as DCC-i),EDUCATION,Adults L&D,L&D Adult's,Professional Fees and Hired Services
Cambridgeshire County Council,03-Apr-23,51301961198,"1,500.00",EAST CAMBRIDGESHIRE DISTRICT COUNCIL,OTHER PUBLIC BODIES,PH Other Health Improvement,Gen prev activities - Health -  Small community projects,Joint Partnership Funding
Cambridgeshire County Council,03-Apr-23,51301961131,"1,949.44",EASTFIELD INFANT SCHOOL,NURSERY,Early Years,DFE EY Professional Development Fund 2019-22,Care & Ed Childcare Settings
Cambridgeshire County Council,03-Apr-23,51301946313,796.71,ESPO,TRADE SUPPLIER,Park & Ride Parking,Park and Ride Admin,Cleaning and Domestic Supplies
Cambridgeshire County Council,03-Apr-23,51301949271,542.69,ESPO,TRADE SUPPLIER,IHPS - Huntingdonshire,6 St Lukes Close (Respite),Specialist Supplies and Materials
Cambridgeshire County Council,03-Apr-23,51301949266,544.80,ESPO,TRADE SUPPLIER,Libraries - Support,Support - Business Support,General Office Expenses & Stationery
Cambridgeshire County Council,03-Apr-23,51301948375,681.00,ESPO,TRADE SUPPLIER,Libraries - Support,Support - Business Support,General Office Expenses & Stationery
Cambridgeshire County Council,03-Apr-23,51301951826,"1,014.00",Evolve Intervention Ltd,EDUCATION,Out of School Tuition,Out of School Provision EHCPs,Independent School Placements
Cambridgeshire County Council,03-Apr-23,51301946962,"1,356.66",FENLAND DISTRICT COUNCIL,OTHER PUBLIC BODIES,Education Safeguarding,Education Safeguarding,Casual hire of facilities
Cambridgeshire County Council,03-Apr-23,51301948194,734.65,FLOCKTONS TVP LTD,COMPANY,Winter Maintenance,Central Winter Maintenance,Building Repair and Maintenance
Cambridgeshire County Council,03-Apr-23,51301951917,"1,284.48",FRESH START IN EDUCATION,CARE ESTABLISHMENT,Out of School Tuition,Out of School Provision EHCPs,Independent School Placements
Cambridgeshire County Council,03-Apr-23,51301957172,647.00,GD GREEN,SOLETRADER,County Farms,County Farms,County Farms Maintenance unplanned
Cambridgeshire County Council,03-Apr-23,51301957173,"1,571.00",GD GREEN,SOLETRADER,County Farms,County Farms,County Farms Maintenance unplanned
Cambridgeshire County Council,03-Apr-23,51301961138,859.20,Global Media Group Services Ltd,TRADE SUPPLIER,GCP - Communications,GCP - Strategic Communicatations,Advertising / Publicity (non Recruitment)
Cambridgeshire County Council,03-Apr-23,51301960746,"10,600.00",GRETTON SCHOOL,EDUCATION,SEN Placements,Independent Education Placements,Independent School Placements
Cambridgeshire County Council,03-Apr-23,51301960747,"10,600.00",GRETTON SCHOOL,EDUCATION,SEN Placements,Independent Education Placements,Independent School Placements
Cambridgeshire County Council,03-Apr-23,51301960752,"18,550.00",GRETTON SCHOOL,EDUCATION,SEN Placements,Independent Education Placements,Independent School Placements
Cambridgeshire County Council,03-Apr-23,51301960751,"18,550.00",GRETTON SCHOOL,EDUCATION,SEN Placements,Independent Education Placements,Independent School Placements
Cambridgeshire County Council,03-Apr-23,51301960748,"21,200.00",GRETTON SCHOOL,EDUCATION,SEN Placements,Independent Education Placements,Independent School Placements
Cambridgeshire County Council,03-Apr-23,51301960749,"21,200.00",GRETTON SCHOOL,EDUCATION,SEN Placements,Independent Education Placements,Independent School Placements
Cambridgeshire County Council,03-Apr-23,51301961403,"1,000.00",Groundwork East,COMPANY,Youth and Community Services,YS - YCCs,Grants to Voluntary Bodies
Cambridgeshire County Council,03-Apr-23,51301956666,"1,754.99",GSH Group Company,COMPANY,BM - Corporate Offices,Building Maintenance,Building Structural Maintenance - Reactive
Cambridgeshire County Council,03-Apr-23,51301956670,"1,832.06",GSH Group Company,COMPANY,BM - Corporate Offices,Building Maintenance,Building Structural Maintenance - Reactive
Cambridgeshire County Council,03-Apr-23,51301956668,"2,043.94",GSH Group Company,COMPANY,BM - Corporate Offices,Building Maintenance,Building Structural Maintenance - Reactive
Cambridgeshire County Council,03-Apr-23,51301954449,"3,030.00",GSH Group Company,COMPANY,Burwell Primary,Burwell Primary,"New Construction, Conversion and Renovation"
Cambridgeshire County Council,03-Apr-23,51301956669,"4,246.05",GSH Group Company,COMPANY,BM - Corporate Offices,Building Maintenance,Building Structural Maintenance - Reactive
Cambridgeshire County Council,03-Apr-23,51301956667,"5,207.46",GSH Group Company,COMPANY,BM - Corporate Offices,Building Maintenance,Building Structural Maintenance - Reactive
Cambridgeshire County Council,03-Apr-23,51301956671,"6,156.48",GSH Group Company,COMPANY,BM - Corporate Offices,Building Maintenance,Building Stuctural Maintenance - Planned
Cambridgeshire County Council,03-Apr-23,51301959901,"14,928.00",GSH Group Company,COMPANY,Building Maintenance,P22090906 Sunley House CB23 3RG,"New Construction, Conversion and Renovation"
Cambridgeshire County Council,03-Apr-23,51301961396,"31,873.54",Heartwood RSC Ltd,CARE ESTABLISHMENT,LAC Placements,Placements - residential homes,Agency Placements - In County
Cambridgeshire County Council,03-Apr-23,51301961132,"1,238.70",HOUGHTON & WYTON PRE-SCHOOL PLAYGROUP,NURSERY,Early Years,DFE EY Professional Development Fund 2019-22,Care & Ed Childcare Settings
Cambridgeshire County Council,03-Apr-23,51301961133,"1,665.86",HUNTINGDON NURSERY SCHOOL,NURSERY,Early Years,DFE EY Professional Development Fund 2019-22,Care & Ed Childcare Settings
Cambridgeshire County Council,03-Apr-23,51301961456,"11,280.00",HUNTINGDONSHIRE DISTRICT COUNCIL,OTHER PUBLIC BODIES,Corporate Offices,Pathfinder House,Service Charges
Cambridgeshire County Council,03-Apr-23,51301948214,"18,091.73",IDOX SOFTWARE LTD,TRADE SUPPLIER,Historic Environment,Historic Environment Team,Professional Fees and Hired Services
Cambridgeshire County Council,03-Apr-23,51301946643,650.00,Inclusion.Me Ltd,COMPANY,LD - South Locality - Cost of Care,LD - South Cambs - Care,Professional Fees and Hired Services
Cambridgeshire County Council,03-Apr-23,51301961053,"9,000.00",Inclusive Trading Community Interest Company,EDUCATION,SEND Specialist Services,Additional Needs Team 14-25,Professional Fees and Hired Services
Cambridgeshire County Council,03-Apr-23,51301961274,"4,158.00",InspirEDucate Ltd,COMPANY,Strategic Management - Education,Director of Learning,Professional Fees and Hired Services
Cambridgeshire County Council,03-Apr-23,51301961402,"1,978.57",INTEGRATED SERVICES PROGRAMME (ISP),CARE ESTABLISHMENT,LAC Placements,Placements - independent fostering,Agency Placements - Out of  County
Cambridgeshire County Council,03-Apr-23,51301961757,"2,343.00",International Parking Systems (UK) Limited,COMPANY,Parking Enforcement,On Street Parking,Professional Fees and Hired Services
Cambridgeshire County Council,03-Apr-23,51301961754,900.00,Jackson Environmental Ltd,COMPANY,Additional secondary capacity to serve March & Wisbech,Additional secondary capacity to serve March & Wisbech,Environmental Works
Cambridgeshire County Council,03-Apr-23,51301957140,615.00,James Larman t/a Bohemia Alconbury Weald Limited,COMPANY,Registrars,Registrars General,Catering Provisions
Cambridgeshire County Council,03-Apr-23,51301948364,"1,578.00",Juliet Adloune,SOLETRADER,SIS Leadership Advisor,CSIB to Professional Development & Improvement Adviser,Professional Fees and Hired Services
Cambridgeshire County Council,03-Apr-23,51301961021,"1,437.60",Kingsfield Computer Product Ltd,COMPANY,Corporate IT Managed,Hardware & Infrastructure,Computer hardware - purchase
Cambridgeshire County Council,03-Apr-23,51301945549,"2,926.38",Lanpro Services Ltd,COMPANY,Temporary Accommodation,Temporary Accommodation,Planning Permission Costs
Cambridgeshire County Council,03-Apr-23,51301945574,"2,926.38",Lanpro Services Ltd,COMPANY,Temporary Accommodation,Temporary Accommodation,Planning Permission Costs
Cambridgeshire County Council,03-Apr-23,51301961268,"2,006.99",Lantern Community Primary School,EDUCATION,Early Years Specialist Support,SEND - Childcare Access Funding,Independent School Placements
Cambridgeshire County Council,03-Apr-23,51301961281,"1,299.04",Lantern Community Primary School,EDUCATION,Early Years Specialist Support,SEND - Childcare Access Funding,Independent School Placements
Cambridgeshire County Council,03-Apr-23,51301961224,762.69,Lantern Community Primary School,EDUCATION,Early Years Specialist Support,SEND - Childcare Access Funding,Independent School Placements
Cambridgeshire County Council,03-Apr-23,51301961516,"5,633.19",Lantern Community Primary School,EDUCATION,Early Years Specialist Support,SEND - Childcare Access Funding,Independent School Placements
Cambridgeshire County Council,03-Apr-23,51301961134,"1,200.00",LITTLE MUNCHKINS LTD,NURSERY,Early Years,DFE EY Professional Development Fund 2019-22,Care & Ed Childcare Settings
Cambridgeshire County Council,03-Apr-23,51301961378,"1,406.10",Low Carbon Contracts Company Ltd,COMPANY,County Farms,"Triangle Solar Farm, Soham",Electricity
Cambridgeshire County Council,03-Apr-23,51301958635,"1,272.78",M Lamming c/o Spotless Cambridge Ltd,COMPANY,Cambs Music Head of Business Development,[CLOSED] Cambs Music Connect,Building Cleaning
Cambridgeshire County Council,03-Apr-23,51301946118,"2,688.00",Matchtech Group (Holdings) Limited,COMPANY,PD - General,Major Infrastructure Delivery,Agency Staff
Cambridgeshire County Council,03-Apr-23,51301946113,"2,932.50",Matchtech Group (Holdings) Limited,COMPANY,PD - General,Major Infrastructure Delivery,Agency Staff
Cambridgeshire County Council,03-Apr-23,51301946115,"3,180.00",Matchtech Group (Holdings) Limited,COMPANY,PD - General,Major Infrastructure Delivery,Agency Staff
Cambridgeshire County Council,03-Apr-23,51301946117,"3,300.00",Matchtech Group (Holdings) Limited,COMPANY,PD - General,Major Infrastructure Delivery,Agency Staff
Cambridgeshire County Council,03-Apr-23,51301946116,"3,360.00",Matchtech Group (Holdings) Limited,COMPANY,PD - General,Major Infrastructure Delivery,Agency Staff
Cambridgeshire County Council,03-Apr-23,51301961501,930.30,MICROSOFT IRELAND OPERATIONS LTD,TRADE SUPPLIER,ICT Service,ICT Service Business Support,Computer software - purchase
Cambridgeshire County Council,03-Apr-23,51301961503,"3,456.00",MICROSOFT IRELAND OPERATIONS LTD,TRADE SUPPLIER,ICT Service,ICT Service Business Support,Computer software - purchase
Cambridgeshire County Council,03-Apr-23,65300031237,"-3,125.00",MOVING UP CARE,CARE ESTABLISHMENT,Unaccompanied Asylum Seeking Children,Separated Migrant Children < 18,Asylum Seekers
Cambridgeshire County Council,03-Apr-23,65300031238,"-3,125.00",MOVING UP CARE,CARE ESTABLISHMENT,Unaccompanied Asylum Seeking Children,Separated Migrant Children < 18,Asylum Seekers
Cambridgeshire County Council,03-Apr-23,51301972921,"3,125.00",MOVING UP CARE,CARE ESTABLISHMENT,Unaccompanied Asylum Seeking Children,Separated Migrant Children < 18,Asylum Seekers
Cambridgeshire County Council,03-Apr-23,51301972919,"3,125.00",MOVING UP CARE,CARE ESTABLISHMENT,Unaccompanied Asylum Seeking Children,Separated Migrant Children < 18,Asylum Seekers
Cambridgeshire County Council,03-Apr-23,51301961180,"2,244.00",Natural England,COMPANY,GCP - Programme Management,GCP - Programme Management,Construction - External Professional Fees
Cambridgeshire County Council,03-Apr-23,51301961162,"2,244.00",Natural England,COMPANY,GCP - Programme Management,GCP - Programme Management,Construction - External Professional Fees
Cambridgeshire County Council,03-Apr-23,51301961519,"4,042.86",Nene Park Academy,EDUCATION,Recoupment,Other LA Mainstream,Independent School Placements
Cambridgeshire County Council,03-Apr-23,51301961394,"2,727.00",NEXUS FOSTERING LTD,CARE ESTABLISHMENT,LAC Placements,Placements - independent fostering,Agency Placements - In County
Cambridgeshire County Council,03-Apr-23,51301961282,"8,158.89",NHS CAMBRIDGESHIRE&PETERBOROUGH ICB,CARE ESTABLISHMENT,Children's Disability Direct Payments,CSC Direct Payments,Direct Payments
Cambridgeshire County Council,03-Apr-23,51301946066,750.00,Nisai Virtual Academy Ltd,EDUCATION,Out of School Tuition,Out of School Provision EHCPs,Independent School Placements
Cambridgeshire County Council,03-Apr-23,51301960985,"1,500.00",No5 Chambers Ltd  Collection Account,COMPANY,DCO Schemes,Sunnica Solar Farm DCO,External Legal Fees
Cambridgeshire County Council,03-Apr-23,51301954494,"1,211.53",Nominet UK,COMPANY,Corporate IT Managed,Corporate Telephony,Data Line - Rental
Cambridgeshire County Council,03-Apr-23,51301961548,"2,258.45",ONE TOUCH DATA LIMITED,TRADE SUPPLIER,Waste Disposal incl PFI,Closed Landfill Aftercare - various sites,Professional Fees and Hired Services
Cambridgeshire County Council,03-Apr-23,51301961540,"475,360.93",OPUS LGSS (PEOPLE SOLUTIONS) LTD,TRADE SUPPLIER,Corporate Services Default,Opus agency charges - central allocation,Agency Staff
Cambridgeshire County Council,03-Apr-23,51301961301,784.40,Opus Teach Limited,EDUCATION,Virtual School,Virtual School LACPP Financing,Agency Staff
Cambridgeshire County Council,03-Apr-23,51301961105,"1,229.87",Opus Teach Limited,EDUCATION,Virtual School,Virtual School LACPP Financing,Agency Staff
Cambridgeshire County Council,03-Apr-23,51301961103,"1,045.87",Opus Teach Limited,EDUCATION,Virtual School,Virtual School LACPP Financing,Agency Staff
Cambridgeshire County Council,03-Apr-23,51301961102,"1,103.98",Opus Teach Limited,EDUCATION,Virtual School,Virtual School LACPP Financing,Agency Staff
Cambridgeshire County Council,03-Apr-23,51301948322,"5,568.00",OUTSPOKEN CYCLES LTD,TRADE SUPPLIER,Road Safety,"Education, Training and Publicity",Professional Fees and Hired Services
Cambridgeshire County Council,03-Apr-23,51301946041,"1,056.00",Panoramic Associates,COMPANY,PH COMF,PH - Contain Outbreak Management Fund,Agency Staff
Cambridgeshire County Council,03-Apr-23,51301957417,540.00,Parker Clinical Psychology Limited,EDUCATION,Regional Adoption Agency,Adoption Support Fund,Professional Fees and Hired Services
Cambridgeshire County Council,03-Apr-23,51301957429,"2,060.00",Parker Clinical Psychology Limited,EDUCATION,Regional Adoption Agency,Adoption Support Fund,Professional Fees and Hired Services
Cambridgeshire County Council,03-Apr-23,51301957431,"2,100.00",Parker Clinical Psychology Limited,EDUCATION,Regional Adoption Agency,Adoption Support Fund,Professional Fees and Hired Services
Cambridgeshire County Council,03-Apr-23,51301957891,"3,837.36",Pathfinder Legal Services Limited,TRADE SUPPLIER,LD - North Service Manager,LD - North Service Manager,External Legal Fees
Cambridgeshire County Council,03-Apr-23,51301946450,"3,083.70",Pathfinder Legal Services Limited,TRADE SUPPLIER,School Organisation and Planning,PPOS - Admissions Service,External Legal Fees
Cambridgeshire County Council,03-Apr-23,51301945518,"1,496.52",Pathfinder Legal Services Limited,TRADE SUPPLIER,Strategic Management - Adults,Service Director - Adults and Safeguarding,External Legal Fees
Cambridgeshire County Council,03-Apr-23,51301961219,"25,050.00",Pathfinder Legal Services Limited,TRADE SUPPLIER,DCO Schemes,MW Energy from Waste DCO,External Legal Fees
Cambridgeshire County Council,03-Apr-23,51301961379,"6,646.96",Pathfinder Legal Services Limited,TRADE SUPPLIER,Large Energy Projects - Solar Farms,North Angle Solar Farm,Construction - External Professional Fees
Cambridgeshire County Council,03-Apr-23,51301946807,"2,370.00",Permanent Futures Ltd,COMPANY,Educations Systems,Educations System,IT Software
Cambridgeshire County Council,03-Apr-23,51301946960,"54,558.38",PETERBOROUGH AND STAMFORD HOSPITALS NHS FOUNDATION TRUST,TRUST (OTHER),Coroners,Coroners General,Payments to Other Establishments
Cambridgeshire County Council,03-Apr-23,51301961222,"1,380.80",PETERBOROUGH CITY COUNCIL,OTHER PUBLIC BODIES,Integrated Community Equipment Service,ICES (Pool),Payments to Other Local Authorities
Cambridgeshire County Council,03-Apr-23,51301961234,"2,490.73",PETERBOROUGH CITY COUNCIL,OTHER PUBLIC BODIES,Integrated Community Equipment Service,ICES (Pool),Payments to Other Local Authorities
Cambridgeshire County Council,03-Apr-23,51301961015,"3,704.70",PETERBOROUGH CITY COUNCIL,OTHER PUBLIC BODIES,Communication and Information,Communication and Information,Subscriptions
Cambridgeshire County Council,03-Apr-23,51301961220,"4,987.60",PETERBOROUGH CITY COUNCIL,OTHER PUBLIC BODIES,Integrated Community Equipment Service,ICES (Pool),Payments to Other Local Authorities
Cambridgeshire County Council,03-Apr-23,51301961068,"113,397.60",PETERBOROUGH CITY COUNCIL,OTHER PUBLIC BODIES,PH Public Health Directorate,Public Health Strategic Management,Payments to Other Local Authorities
Cambridgeshire County Council,03-Apr-23,51301961199,"282,692.40",PETERBOROUGH CITY COUNCIL,OTHER PUBLIC BODIES,Service Director,Service Director Commissioning,Staffing Recharges - External
Cambridgeshire County Council,03-Apr-23,51301961235,"542,920.94",PETERBOROUGH CITY COUNCIL,OTHER PUBLIC BODIES,Integrated Community Equipment Service,ICES (Pool),Payments to Other Local Authorities
Cambridgeshire County Council,03-Apr-23,51301961473,"31,444.80",PETERBOROUGH CITY COUNCIL,OTHER PUBLIC BODIES,PH COMF,Contain Outbreak Management Fund - grant holding,Payments to Other Local Authorities
Cambridgeshire County Council,03-Apr-23,51301961354,"259,546.85",PETERBOROUGH CITY COUNCIL,OTHER PUBLIC BODIES,P&C Executive Director,Executive Director - People & Communities,Payments to Other Local Authorities
Cambridgeshire County Council,03-Apr-23,51301948213,"5,000.00",PETERBOROUGH WOMENS AID,CHARITY,Domestic Violence & Sexual Violence,MHCLG Grant,Consultancy
Cambridgeshire County Council,03-Apr-23,51301958404,"1,200.00",Pherus Healthcare Limited,COMPANY,Coroners,Coroners General,Professional Fees and Hired Services
Cambridgeshire County Council,03-Apr-23,51301943456,"1,950.60",PICK EVERARD,TRADE SUPPLIER,Building Maintenance,Building Maintenance,Construction - External Professional Fees
Cambridgeshire County Council,03-Apr-23,51301961135,"1,284.00",PRIORY PARK PLAYGROUP,NURSERY,Early Years,DFE EY Professional Development Fund 2019-22,Care & Ed Childcare Settings
Cambridgeshire County Council,03-Apr-23,51301961128,"6,927.92",Prospero Group,EDUCATION,LAC Placements,Placements - supported accommodation,Agency Placements - In County
Cambridgeshire County Council,03-Apr-23,51301961176,589.90,Prospero Group,EDUCATION,LAC Placements,Placements - supported accommodation,Agency Placements - In County
Cambridgeshire County Council,03-Apr-23,51301961168,"1,661.27",Prospero Group,EDUCATION,LAC Placements,Placements - supported accommodation,Agency Placements - In County
Cambridgeshire County Council,03-Apr-23,51301961172,"26,479.07",Prospero Group,EDUCATION,LAC Placements,Placements - supported accommodation,Agency Placements - In County
Cambridgeshire County Council,03-Apr-23,51301961173,-652.38,Prospero Group,EDUCATION,LAC Placements,Placements - supported accommodation,Agency Placements - In County
Cambridgeshire County Council,03-Apr-23,51301948237,"1,150.00",Psychology Direct Ltd,EDUCATION,SEND Specialist Services - Education Psychology,SEND Specialist Services - Education Psychology,Professional Fees and Hired Services
Cambridgeshire County Council,03-Apr-23,51301948238,"1,150.00",Psychology Direct Ltd,EDUCATION,SEND Specialist Services - Education Psychology,SEND Specialist Services - Education Psychology,Professional Fees and Hired Services
Cambridgeshire County Council,03-Apr-23,51301949287,"4,293.86",Quadient UK Ltd,COMPANY,Information Management,Resources Franking Machine,Postage & Carriage
Cambridgeshire County Council,03-Apr-23,51301961024,570.00,Qualsafe Ltd,EDUCATION,Adults L&D,L&D Adult's,Professional Fees and Hired Services
Cambridgeshire County Council,03-Apr-23,51301958432,"1,440.00",Reconstruct (Children and Adult Services) Ltd,EDUCATION,Childrens L&D,Childrens VQ,Professional Fees and Hired Services
Cambridgeshire County Council,03-Apr-23,51301960745,"1,295.00",Redacted Personal Data,INDIVIDUAL,"General Prevention, Traveller Health",Travellers Project,Professional Fees and Hired Services
Cambridgeshire County Council,03-Apr-23,51301961358,693.60,Redacted Personal Data,INDIVIDUAL,Nursery Schools,Early Years - Funded 3s/4s,Care & Ed Childcare Settings
Cambridgeshire County Council,03-Apr-23,65300017804,530.40,Redacted Personal Data,INDIVIDUAL,Control Accounts,Bank Account - Payables,Bank Account - Payables
Cambridgeshire County Council,03-Apr-23,65300017805,564.48,Redacted Personal Data,INDIVIDUAL,Control Accounts,Bank Account - Payables,Bank Account - Payables
Cambridgeshire County Council,03-Apr-23,65300017805,564.48,Redacted Personal Data,INDIVIDUAL,Control Accounts,Bank Account - Payables,Bank Account - Payables
Cambridgeshire County Council,03-Apr-23,65300017805,564.48,Redacted Personal Data,INDIVIDUAL,Control Accounts,Bank Account - Payables,Bank Account - Payables
Cambridgeshire County Council,03-Apr-23,65300017805,564.48,Redacted Personal Data,INDIVIDUAL,Control Accounts,Bank Account - Payables,Bank Account - Payables
Cambridgeshire County Council,03-Apr-23,65300017805,564.48,Redacted Personal Data,INDIVIDUAL,Control Accounts,Bank Account - Payables,Bank Account - Payables
Cambridgeshire County Council,03-Apr-23,65300017805,564.48,Redacted Personal Data,INDIVIDUAL,Control Accounts,Bank Account - Payables,Bank Account - Payables
Cambridgeshire County Council,03-Apr-23,65300017805,564.48,Redacted Personal Data,INDIVIDUAL,Control Accounts,Bank Account - Payables,Bank Account - Payables
Cambridgeshire County Council,03-Apr-23,65300017805,564.48,Redacted Personal Data,INDIVIDUAL,Control Accounts,Bank Account - Payables,Bank Account - Payables
Cambridgeshire County Council,03-Apr-23,65300017805,564.48,Redacted Personal Data,INDIVIDUAL,Control Accounts,Bank Account - Payables,Bank Account - Payables
Cambridgeshire County Council,03-Apr-23,51301961407,953.70,Redacted Personal Data,INDIVIDUAL,Nursery Schools,Early Years - Funded 3s/4s,Care & Ed Childcare Settings
Cambridgeshire County Council,03-Apr-23,51301961027,778.30,Redacted Personal Data,INDIVIDUAL,Children's Disability Direct Payments,CSC Direct Payments,Direct Payments
Cambridgeshire County Council,03-Apr-23,51301961031,"2,150.00",Redacted Personal Data,PARENT/GUARDIAN,Early Years Specialist Support,"SEND - Legal, Tribunal & Mediation",Independent School Placements
Cambridgeshire County Council,03-Apr-23,51301961092,"1,117.72",Redacted Personal Data,PARENT/GUARDIAN,Children's Disability Direct Payments,CSC Direct Payments,Direct Payments
Cambridgeshire County Council,03-Apr-23,51301961093,561.00,Redacted Personal Data,INDIVIDUAL,Registrars,Registrars General,Non Staff expenses
Cambridgeshire County Council,03-Apr-23,51301961094,561.00,Redacted Personal Data,INDIVIDUAL,Registrars,Registrars General,Non Staff expenses
Cambridgeshire County Council,03-Apr-23,51301961098,"2,622.88",Redacted Personal Data,INDIVIDUAL,Children's Disability Direct Payments,CSC Direct Payments,Direct Payments
Cambridgeshire County Council,03-Apr-23,51301961106,"1,448.60",Redacted Personal Data,INDIVIDUAL,Children's Disability Direct Payments,CSC Direct Payments,Direct Payments
Cambridgeshire County Council,03-Apr-23,51301961117,800.00,Redacted Personal Data,PARENT/GUARDIAN,Early Years Specialist Support,"SEND - Legal, Tribunal & Mediation",Independent School Placements
Cambridgeshire County Council,03-Apr-23,51301961264,"1,112.00",Redacted Personal Data,INDIVIDUAL,Children's Disability Direct Payments,CSC Direct Payments,Direct Payments
Cambridgeshire County Council,03-Apr-23,51301961262,"2,778.46",Redacted Personal Data,INDIVIDUAL,Children's Disability Direct Payments,CSC Direct Payments,Direct Payments
Cambridgeshire County Council,03-Apr-23,51301961286,960.00,Redacted Personal Data,PARENT/GUARDIAN,Children's Disability Direct Payments,CSC Direct Payments,Direct Payments
Cambridgeshire County Council,03-Apr-23,51301961285,"1,280.00",Redacted Personal Data,INDIVIDUAL,Children's Disability Direct Payments,CSC Direct Payments,Direct Payments
Cambridgeshire County Council,03-Apr-23,51301961288,900.00,Redacted Personal Data,PARENT/GUARDIAN,Children's Disability Direct Payments,CSC Direct Payments,Direct Payments
Cambridgeshire County Council,03-Apr-23,51301961287,"1,307.68",Redacted Personal Data,PARENT/GUARDIAN,Children's Disability Direct Payments,CSC Direct Payments,Direct Payments
Cambridgeshire County Council,03-Apr-23,51301961295,"1,300.00",Redacted Personal Data,PARENT/GUARDIAN,Children's Disability Direct Payments,CSC Direct Payments,Direct Payments
Cambridgeshire County Council,03-Apr-23,51301961296,"2,636.40",Redacted Personal Data,INDIVIDUAL,Children's Disability Direct Payments,CSC Direct Payments,Direct Payments
Cambridgeshire County Council,03-Apr-23,51301961304,520.00,Redacted Personal Data,PARENT/GUARDIAN,Children's Disability Direct Payments,CSC Direct Payments,Direct Payments
Cambridgeshire County Council,03-Apr-23,51301961303,"2,428.40",Redacted Personal Data,INDIVIDUAL,Children's Disability Direct Payments,CSC Direct Payments,Direct Payments
Cambridgeshire County Council,03-Apr-23,51301961310,"1,230.00",Redacted Personal Data,PARENT/GUARDIAN,Children's Disability Direct Payments,CSC Direct Payments,Direct Payments
Cambridgeshire County Council,03-Apr-23,51301961312,"2,000.00",Redacted Personal Data,PARENT/GUARDIAN,Children's Disability Direct Payments,CSC Direct Payments,Direct Payments
Cambridgeshire County Council,03-Apr-23,51301961383,816.00,Redacted Personal Data,PARENT/GUARDIAN,Children's Disability Direct Payments,CSC Direct Payments,Direct Payments
Cambridgeshire County Council,03-Apr-23,51301961382,816.00,Redacted Personal Data,PARENT/GUARDIAN,Children's Disability Direct Payments,CSC Direct Payments,Direct Payments
Cambridgeshire County Council,03-Apr-23,51301961393,900.00,Redacted Personal Data,PARENT/GUARDIAN,Children's Disability Direct Payments,CSC Direct Payments,Direct Payments
Cambridgeshire County Council,03-Apr-23,51301961387,"1,080.00",Redacted Personal Data,PARENT/GUARDIAN,Children's Disability Direct Payments,CSC Direct Payments,Direct Payments
Cambridgeshire County Council,03-Apr-23,51301961388,"1,500.00",Redacted Personal Data,PARENT/GUARDIAN,Children's Disability Direct Payments,CSC Direct Payments,Direct Payments
Cambridgeshire County Council,03-Apr-23,51301961384,"1,653.50",Redacted Personal Data,PARENT/GUARDIAN,Children's Disability Direct Payments,CSC Direct Payments,Direct Payments
Cambridgeshire County Council,03-Apr-23,51301961385,"1,841.40",Redacted Personal Data,PARENT/GUARDIAN,Children's Disability Direct Payments,CSC Direct Payments,Direct Payments
Cambridgeshire County Council,03-Apr-23,51301961391,"2,000.00",Redacted Personal Data,PARENT/GUARDIAN,Children's Disability Direct Payments,CSC Direct Payments,Direct Payments
Cambridgeshire County Council,03-Apr-23,51301961392,"2,000.00",Redacted Personal Data,PARENT/GUARDIAN,Children's Disability Direct Payments,CSC Direct Payments,Direct Payments
Cambridgeshire County Council,03-Apr-23,51301961410,"7,005.83",Redacted Personal Data,INDIVIDUAL,SEND High Needs Top Up,Personal Budgets,Independent School Placements
Cambridgeshire County Council,03-Apr-23,51301961471,"1,906.67",Redacted Personal Data,PARENT/GUARDIAN,Children's Disability Direct Payments,CSC Direct Payments,Direct Payments
Cambridgeshire County Council,03-Apr-23,51301961472,"3,326.83",Redacted Personal Data,INDIVIDUAL,Children's Disability Direct Payments,CSC Direct Payments,Direct Payments
Cambridgeshire County Council,03-Apr-23,51301961470,"4,899.95",Redacted Personal Data,INDIVIDUAL,Children's Disability Direct Payments,CSC Direct Payments,Direct Payments
Cambridgeshire County Council,03-Apr-23,51301961486,510.00,Redacted Personal Data,INDIVIDUAL,Children's Disability Direct Payments,CSC Direct Payments,Direct Payments
Cambridgeshire County Council,03-Apr-23,51301961487,"1,096.50",Redacted Personal Data,INDIVIDUAL,Children's Disability Direct Payments,CSC Direct Payments,Direct Payments
Cambridgeshire County Council,03-Apr-23,51301961488,"1,098.00",Redacted Personal Data,INDIVIDUAL,Children's Disability Direct Payments,CSC Direct Payments,Direct Payments
Cambridgeshire County Council,03-Apr-23,51301961489,"2,500.00",Redacted Personal Data,INDIVIDUAL,Children's Disability Direct Payments,CSC Direct Payments,Direct Payments
Cambridgeshire County Council,03-Apr-23,51301961539,"6,912.00",Redacted Personal Data,PARENT/GUARDIAN,Adoption Allowances,Adoption Allowances,Childcare Costs
Cambridgeshire County Council,03-Apr-23,51301961565,768.20,Redacted Personal Data,INDIVIDUAL,SIS Head of Service,SIS - Intervention,Professional Fees and Hired Services
Cambridgeshire County Council,03-Apr-23,51301961564,"3,762.00",Redacted Personal Data,INDIVIDUAL,Highways Maintenance,Highways Maintenance - South Cambs,Fencing
Cambridgeshire County Council,03-Apr-23,51301961727,540.54,Redacted Personal Data,INDIVIDUAL,LAC Transport,LAC Transport - Home to School,Social Care Transport
Cambridgeshire County Council,03-Apr-23,51301961725,632.70,Redacted Personal Data,INDIVIDUAL,LAC Transport,LAC Transport  - Contact Visits,Social Care Transport
Cambridgeshire County Council,03-Apr-23,51301961724,737.10,Redacted Personal Data,INDIVIDUAL,LAC Transport,LAC Transport - Home to School,Social Care Transport
Cambridgeshire County Council,03-Apr-23,51301961738,807.30,Redacted Personal Data,INDIVIDUAL,LAC Transport,LAC Transport - Home to School,Social Care Transport
Cambridgeshire County Council,03-Apr-23,51301961739,983.25,Redacted Personal Data,INDIVIDUAL,LAC Transport,LAC Transport - Home to School,Social Care Transport
Cambridgeshire County Council,03-Apr-23,51301961723,"1,032.93",Redacted Personal Data,INDIVIDUAL,Early Years Service - HAF,HAF Grant,Social Care Transport
Cambridgeshire County Council,03-Apr-23,51301961731,"1,120.50",Redacted Personal Data,INDIVIDUAL,LD - East Locality - Cost of Care,LD - East Cambs - Care,Social Care Transport
Cambridgeshire County Council,03-Apr-23,51301961713,"1,134.00",Redacted Personal Data,INDIVIDUAL,LAC Transport,LAC Transport - Home to School,Social Care Transport
Cambridgeshire County Council,03-Apr-23,51301961712,"1,398.60",Redacted Personal Data,INDIVIDUAL,LAC Transport,LAC Transport - Home to School,Social Care Transport
Cambridgeshire County Council,03-Apr-23,51301961714,"1,465.20",Redacted Personal Data,INDIVIDUAL,LAC Transport,LAC Transport - Home to School,Social Care Transport
Cambridgeshire County Council,03-Apr-23,51301961729,"1,539.00",Redacted Personal Data,INDIVIDUAL,LAC Transport,LAC Transport - Home to School,Social Care Transport
Cambridgeshire County Council,03-Apr-23,51301961730,"1,587.60",Redacted Personal Data,INDIVIDUAL,LAC Transport,LAC Transport - Home to School,Social Care Transport
Cambridgeshire County Council,03-Apr-23,51301961732,"1,908.00",Redacted Personal Data,INDIVIDUAL,LAC Transport,LAC Transport - Home to School,Social Care Transport
Cambridgeshire County Council,03-Apr-23,51301961719,"1,910.88",Redacted Personal Data,INDIVIDUAL,LAC Transport,LAC Transport - Home to School,Social Care Transport
Cambridgeshire County Council,03-Apr-23,51301961735,"2,203.20",Redacted Personal Data,INDIVIDUAL,Home to School Transport - Special,Home to School Transport Special - Out of County,Home to School - Contract
Cambridgeshire County Council,03-Apr-23,51301961706,527.00,Redacted Personal Data,FOSTER PARENT,Insurance Fund,Insurance Claims - All Risks,Insurance Claims Paid
Cambridgeshire County Council,03-Apr-23,51301961709,"1,343.58",Redacted Personal Data,INDIVIDUAL,Insurance Fund,Liability,Insurance Claims Paid
Cambridgeshire County Council,03-Apr-23,51301957517,"2,295.00",Rider Levett Bucknall UK Limited,COMPANY,Building Maintenance,Building Maintenance,"New Construction, Conversion and Renovation"
Cambridgeshire County Council,03-Apr-23,51301948267,"21,389.00",ROMSEY MILL TRUST LTD,TRUST (OTHER),Targeted Support Service - Head of Service South,Area Manager PPP East Cambs & Fenland,Professional Fees and Hired Services
Cambridgeshire County Council,03-Apr-23,51301961246,"2,500.00",ROMSEY MILL TRUST LTD,TRUST (OTHER),Youth and Community Services,YS - YCCs,Grants to Voluntary Bodies
Cambridgeshire County Council,03-Apr-23,51301961324,831.60,Rossfield Design Limited t/a Minuteman Press Cambridge,COMPANY,Early Years Head of Service,HoS Early Years,Educational Materials
Cambridgeshire County Council,03-Apr-23,51301957505,"8,091.47",ROYAL MAIL,TRADE SUPPLIER,Information Management,Resources Franking Machine,Postage & Carriage
Cambridgeshire County Council,03-Apr-23,51301948341,"51,523.58",Safecote Limited,COMPANY,Winter Maintenance,Central Winter Maintenance,Salt for Highways
Cambridgeshire County Council,03-Apr-23,51301912171,"-197,146.98",SANCTUARY HOUSING ASSOCIATION,CARE ESTABLISHMENT,Mental Health Commissioning,Mental Health Commissioning,Supported Living
Cambridgeshire County Council,03-Apr-23,51301915399,"236,438.53",SANCTUARY HOUSING ASSOCIATION,CARE ESTABLISHMENT,Mental Health Commissioning,Mental Health Commissioning,Supported Living
Cambridgeshire County Council,03-Apr-23,51301946961,"5,680.00",Sheffield Hallam University,EDUCATION,Adults L&D,L&D Adult's,Professional Fees and Hired Services
Cambridgeshire County Council,03-Apr-23,51301949931,837.60,Simply Sound Ltd t/a Simply Sound and Lighting,COMPANY,Grafham Water,Grafham Water Centre,Educational Materials
Cambridgeshire County Council,03-Apr-23,51301961381,"297,312.62",SOUTH CAMBRIDGESHIRE DISTRICT COUNCIL,OTHER PUBLIC BODIES,Waste Disposal incl PFI,SCDC Waste disposal,Recycling Claims
Cambridgeshire County Council,03-Apr-23,51301961059,"7,959.94",SOUTHERN ELECTRIC PLC,TRADE SUPPLIER,Traffic Management Centre,Traffic Management Centre,Electricity
Cambridgeshire County Council,03-Apr-23,51301958803,"3,000.00",Student Community Action,CHARITY,Youth and Community Services,YS - YCCs,Grants to Voluntary Bodies
Cambridgeshire County Council,03-Apr-23,51301951486,540.00,Sugarman Group,EDUCATION,Out of School Tuition,Out of School Provision EHCPs,Independent School Placements
Cambridgeshire County Council,03-Apr-23,51301951485,900.00,Sugarman Group,EDUCATION,Out of School Tuition,Out of School Provision EHCPs,Independent School Placements
Cambridgeshire County Council,03-Apr-23,51301951487,900.00,Sugarman Group,EDUCATION,Out of School Tuition,Out of School Provision EHCPs,Independent School Placements
Cambridgeshire County Council,03-Apr-23,51301961555,"3,300.00",The Construction Training Partnership Ltd,EDUCATION,SEND High Needs Top Up,High Needs Top Up - Mainstream,Independent School Placements
Cambridgeshire County Council,03-Apr-23,51301946872,"2,477.76",The Oyster Partnership Limited,COMPANY,Waste Disposal incl PFI,Waste PFI,Agency Staff
Cambridgeshire County Council,03-Apr-23,51301949928,"1,311.62",THE RECRUITMENT AGENCY LIMITED,TRADE SUPPLIER,Grafham Water,Grafham Water Centre,Agency Staff
Cambridgeshire County Council,03-Apr-23,51301960717,784.07,THOMAS RIDLEY & SON LTD,TRADE SUPPLIER,Burwell House,Burwell House Residential Centre,Catering Provisions
Cambridgeshire County Council,03-Apr-23,51301961136,"1,539.98",THONGSLEY FIELDS PRIMARY & NURSERY SCHOOL,EDUCATION,Early Years,DFE EY Professional Development Fund 2019-22,Care & Ed Childcare Settings
Cambridgeshire County Council,03-Apr-23,51301961174,"2,138.66",THORNDOWN PRE-SCHOOL,NURSERY,Early Years,DFE EY Professional Development Fund 2019-22,Care & Ed Childcare Settings
Cambridgeshire County Council,03-Apr-23,51301946042,"7,488.00",Tile Hill Interim & Executive Ltd,COMPANY,Strategic Management - Children & Safeguarding,Director of Children & Safeguarding,Agency Staff
Cambridgeshire County Council,03-Apr-23,51301961430,"1,554.00",TMLEP,OTHER PUBLIC BODIES,Coroners,Coroners General,Court Costs
Cambridgeshire County Council,03-Apr-23,51301961429,"1,554.00",TMLEP,OTHER PUBLIC BODIES,Coroners,Coroners General,Court Costs
Cambridgeshire County Council,03-Apr-23,51301961428,"2,994.00",TMLEP,OTHER PUBLIC BODIES,Coroners,Coroners General,Court Costs
Cambridgeshire County Council,03-Apr-23,51301961170,537.50,TOPAS Ltd,COMPANY,Signals,Signals and Systems,Subscriptions
Cambridgeshire County Council,03-Apr-23,51301958738,"1,684.80",Tutor Doctor,EDUCATION,Out of School Tuition,Out of School Provision EHCPs,Independent School Placements
Cambridgeshire County Council,03-Apr-23,51301958737,"2,558.40",Tutor Doctor,EDUCATION,Out of School Tuition,Out of School Provision EHCPs,Independent School Placements
Cambridgeshire County Council,03-Apr-23,51301958751,"2,608.30",Tutor Doctor,EDUCATION,Out of School Tuition,Out of School Provision EHCPs,Independent School Placements
Cambridgeshire County Council,03-Apr-23,51301961257,630.00,UK SIGNS T/A RAPID REPONSE LOCKSMITHS,TRADE SUPPLIER,Mental Health Central,Adults MH CPMHT Central costs,Specialist Servicing and Maintenance
Cambridgeshire County Council,03-Apr-23,51301961510,"2,847.79",VETSPEED LTD T/A NOVUS ENVIRONMENTAL,TRADE SUPPLIER,Waste Disposal incl PFI,Waste Management,Specialist Waste Disposal
Cambridgeshire County Council,03-Apr-23,51301961522,"2,409.54",VETSPEED LTD T/A NOVUS ENVIRONMENTAL,TRADE SUPPLIER,Waste Disposal incl PFI,Waste Management,Specialist Waste Disposal
Cambridgeshire County Council,03-Apr-23,51301961454,"2,641.96",VETSPEED LTD T/A NOVUS ENVIRONMENTAL,TRADE SUPPLIER,Waste Disposal incl PFI,Waste Management,Specialist Waste Disposal
Cambridgeshire County Council,03-Apr-23,51301946125,519.71,WATERMAN ASPEN LTD,TRADE SUPPLIER,Highways Development Management,Highways Development Management,Agency Staff
Cambridgeshire County Council,03-Apr-23,51301946130,631.08,WATERMAN ASPEN LTD,TRADE SUPPLIER,Highways - Carriageway Mtce,Highways - Carriageway Mtce,Construction - External Professional Fees
Cambridgeshire County Council,03-Apr-23,51301946123,957.60,WATERMAN ASPEN LTD,TRADE SUPPLIER,Highways Development Management,Highways Development Management,Agency Staff
Cambridgeshire County Council,03-Apr-23,51301961367,"1,058.40",WEIGHTMANS LLP,TRADE SUPPLIER,Insurance Fund,Liability,Insurance Claims Paid
Cambridgeshire County Council,03-Apr-23,51301956715,"17,417.00",West Northamptonshire Council,OTHER PUBLIC BODIES,EastNet,EastNet,Computer hardware - purchase
Cambridgeshire County Council,03-Apr-23,51301961755,"70,894.00",West Northamptonshire Council,OTHER PUBLIC BODIES,Payroll & HR Transactions,Disclosure Barring Services,Recruitment Costs
Cambridgeshire County Council,03-Apr-23,51301961414,"44,821.20",Womble Bond Dickinson (UK) LLP,COMPANY,GCP - Cambourne to Cambridge (A428),GCP - Cambourne to Cambridge (A428),Construction - External Professional Fees
Cambridgeshire County Council,03-Apr-23,51301946170,"2,138.40",WS TRAINING LIMITED,TRADE SUPPLIER,Highways General,Highways,Staff Training & Development
Cambridgeshire County Council,03-Apr-23,51301940118,"1,849.68",WSP UK LTD T/A WSP INTEGRATED BUILDING SERVICES,TRADE SUPPLIER,Project Delivery - A14,A14 A Monroe,Professional Fees and Hired Services
Cambridgeshire County Council,03-Apr-23,51301948363,"1,560.00",YOUNG PEOPLE MARCH LTD,LOCAL CLUBS & GROUPS,Out of School Tuition,Out of School Provision EHCPs,Independent School Placements
Cambridgeshire County Council,03-Apr-23,51301948144,"1,560.00",YOUNG PEOPLE MARCH LTD,LOCAL CLUBS & GROUPS,Out of School Tuition,Out of School Provision EHCPs,Independent School Placements
Cambridgeshire County Council,05-Apr-23,51301961864,"14,971.45",ABINGTON PRESCHOOL,NURSERY,Nursery Schools,Early Years - Funded 3s/4s,Care & Ed Childcare Settings
Cambridgeshire County Council,05-Apr-23,51301961863,"25,929.84",ACE NURSERY SCHOOL,NURSERY,Nursery Schools,Early Years - Funded 3s/4s,Care & Ed Childcare Settings
Cambridgeshire County Council,05-Apr-23,51301961865,"16,909.70",ALCONBURY COMMUNITY PRESCHOOL,NURSERY,Nursery Schools,Early Years - Funded 3s/4s,Care & Ed Childcare Settings
Cambridgeshire County Council,05-Apr-23,51301961866,"34,468.22",Alderman Jacobs Pre-School,NURSERY,Nursery Schools,Early Years - Funded 3s/4s,Care & Ed Childcare Settings
Cambridgeshire County Council,05-Apr-23,51301961867,"35,993.57",ALL SAINTS PRE SCHOOL ACADEMY,NURSERY,Nursery Schools,Early Years - Funded 3s/4s,Care & Ed Childcare Settings
Cambridgeshire County Council,05-Apr-23,51301961868,"29,268.78",ALPHABET DAY NURSERY SCHOOLS LTD,NURSERY,Nursery Schools,Early Years - Funded 3s/4s,Care & Ed Childcare Settings
Cambridgeshire County Council,05-Apr-23,51301962489,"14,250.00",Ambu Kare Ltd,COMPANY,LAC Transport,LAC Transport - Home to School,Social Care Transport
Cambridgeshire County Council,05-Apr-23,51301961848,"3,225.00",Andrew Howard Smith Consultancy,PARTNERSHIP,East Cambs Children's Team 1,East Cambs Children's Team 1,Professional Fees and Hired Services
Cambridgeshire County Council,05-Apr-23,51301948260,"15,007.57",ANGLIA RUSKIN UNIVERSITY,EDUCATION,Early Years Head of Service,HoS Early Years,Research & Development
Cambridgeshire County Council,05-Apr-23,51301962502,768.86,ANGLIAN WATER SERVICES LIMITED,COMPANY,Burwell House,Burwell House Residential Centre,Water charges
Cambridgeshire County Council,05-Apr-23,51301957675,548.99,AO Retail Limited,COMPANY,Libraries - Support,Support - Business Support,Specialist Equipment For Service Delivery
Cambridgeshire County Council,05-Apr-23,51301957688,548.99,AO Retail Limited,COMPANY,Libraries - Support,Support - Business Support,Specialist Equipment For Service Delivery
Cambridgeshire County Council,05-Apr-23,51301957686,"1,087.98",AO Retail Limited,COMPANY,Libraries - Support,Support - Business Support,Specialist Equipment For Service Delivery
Cambridgeshire County Council,05-Apr-23,51301957687,"1,087.98",AO Retail Limited,COMPANY,Libraries - Support,Support - Business Support,Specialist Equipment For Service Delivery
Cambridgeshire County Council,05-Apr-23,51301949288,"7,500.00",Awesome Oral Health CIC,COMPANY,PH Integrated Lifestyle Services,Obesity Children - General Childhood Obesity,Professional Fees and Hired Services
Cambridgeshire County Council,05-Apr-23,51301949909,"12,938.54",AXIELL ALM LTD,TRADE SUPPLIER,Archives,Archives - Cambridge Record Office,Computer software - annual licence agreement
Cambridgeshire County Council,05-Apr-23,51301961872,"13,586.01",BAR HILL PRESCHOOL,NURSERY,Nursery Schools,Early Years - Funded 3s/4s,Care & Ed Childcare Settings
Cambridgeshire County Council,05-Apr-23,51301954709,"1,440.00",Barnardos Services Limited,COMPANY,Head of SQA,Safeguarding and Quality Assurance,Professional Fees and Hired Services
Cambridgeshire County Council,05-Apr-23,51301961873,"33,909.88",BASSINGBOURN PRE-SCHOOL,NURSERY,Nursery Schools,Early Years - Funded 3s/4s,Care & Ed Childcare Settings
Cambridgeshire County Council,05-Apr-23,51301961874,"26,551.05",BEACH BABIES LIMITED (LANDBEACH),NURSERY,Nursery Schools,Early Years - Funded 3s/4s,Care & Ed Childcare Settings
Cambridgeshire County Council,05-Apr-23,51301961875,"35,861.75",BEACH BABIES LIMITED (WILBURTON),NURSERY,Nursery Schools,Early Years - Funded 3s/4s,Care & Ed Childcare Settings
Cambridgeshire County Council,05-Apr-23,51301961876,"21,704.31",BELLACLAIRE CHILDCARE LTD,NURSERY,Nursery Schools,Early Years - Funded 3s/4s,Care & Ed Childcare Settings
Cambridgeshire County Council,05-Apr-23,51301962463,"1,698.00",BEV'S TAXIS,TRADE SUPPLIER,North Child Looked After Team 2,North Child Looked After Team 2,Social Care Transport
Cambridgeshire County Council,05-Apr-23,51301962462,"2,009.00",BEV'S TAXIS,TRADE SUPPLIER,LAC Transport,LAC Transport - Out of county,Social Care Transport
Cambridgeshire County Council,05-Apr-23,51301962180,"4,017.00",BIDWELLS LLP,TRADE SUPPLIER,County Farms Investment (Viability),Meads Farm,Construction - External Professional Fees
Cambridgeshire County Council,05-Apr-23,51301962187,"1,200.00",BIDWELLS LLP,TRADE SUPPLIER,County Farms Investment (Viability),Meads Farm,Construction - External Professional Fees
Cambridgeshire County Council,05-Apr-23,51301962188,"1,308.00",BIDWELLS LLP,TRADE SUPPLIER,County Farms Investment (Viability),Meads Farm,Construction - External Professional Fees
Cambridgeshire County Council,05-Apr-23,51301962190,"2,400.00",BIDWELLS LLP,TRADE SUPPLIER,County Farms Investment (Viability),Middle Farm,Construction - External Professional Fees
Cambridgeshire County Council,05-Apr-23,51301962185,"1,239.61",BIDWELLS LLP,TRADE SUPPLIER,County Farms Investment (Viability),Meads Farm,Construction - External Professional Fees
Cambridgeshire County Council,05-Apr-23,51301962195,"3,211.92",BIDWELLS LLP,TRADE SUPPLIER,County Farms Investment (Viability),Middle Farm,Construction - External Professional Fees
Cambridgeshire County Council,05-Apr-23,51301961877,"20,958.68",BLACKBERRY HOUSE DAY NURSERY,NURSERY,Nursery Schools,Early Years - Funded 3s/4s,Care & Ed Childcare Settings
Cambridgeshire County Council,05-Apr-23,51301961878,"59,363.84",BLACKBERRY HOUSE DAY NURSERY (WISBECH),NURSERY,Nursery Schools,Early Years - Funded 3s/4s,Care & Ed Childcare Settings
Cambridgeshire County Council,05-Apr-23,51301961879,"9,765.78",BLUEBELL DAY NURSERY (ELTISELEY),NURSERY,Nursery Schools,Early Years - Funded 3s/4s,Care & Ed Childcare Settings
Cambridgeshire County Council,05-Apr-23,51301961880,"25,382.48",BRAMBLES PLAYGROUP,NURSERY,Nursery Schools,Early Years - Funded 3s/4s,Care & Ed Childcare Settings
Cambridgeshire County Council,05-Apr-23,51301961881,"24,935.57",BRAMBLES PRE SCHOOL,NURSERY,Nursery Schools,Early Years - Funded 3s/4s,Care & Ed Childcare Settings
Cambridgeshire County Council,05-Apr-23,51301961882,"34,726.65",BRAMPTON DAY NURSERY,NURSERY,Nursery Schools,Early Years - Funded 3s/4s,Care & Ed Childcare Settings
Cambridgeshire County Council,05-Apr-23,51301961883,"16,301.38",BRIGHTFIELDS PRE SCHOOL,NURSERY,Nursery Schools,Early Years - Funded 3s/4s,Care & Ed Childcare Settings
Cambridgeshire County Council,05-Apr-23,51301961829,868.71,BRITISH TELECOMMUNICATIONS PLC,COMPANY,Corporate Offices,County Offices General,Security Equipment
Cambridgeshire County Council,05-Apr-23,51301962505,"1,617.19",BRITISH TELECOMMUNICATIONS PLC,COMPANY,Insurance,Risk Management - Redcare,Security Equipment
Cambridgeshire County Council,05-Apr-23,51301961884,"51,129.80",BUCKDEN DAY NURSERY,NURSERY,Nursery Schools,Early Years - Funded 3s/4s,Care & Ed Childcare Settings
Cambridgeshire County Council,05-Apr-23,51301961885,"8,184.61",BUCKDEN PRE-SCHOOL PLAYGROUP,NURSERY,Nursery Schools,Early Years - Funded 3s/4s,Care & Ed Childcare Settings
Cambridgeshire County Council,05-Apr-23,51301961886,"37,415.19",BUMPKINS PRE SCHOOL,COMPANY,Nursery Schools,Early Years - Funded 3s/4s,Care & Ed Childcare Settings
Cambridgeshire County Council,05-Apr-23,51301961887,"10,443.18",BURROUGH GREEN PLAYGROUP,NURSERY,Nursery Schools,Early Years - Funded 3s/4s,Care & Ed Childcare Settings
Cambridgeshire County Council,05-Apr-23,51301961888,"27,484.78",BURWELL EARLY LEARNERS,NURSERY,Nursery Schools,Early Years - Funded 3s/4s,Care & Ed Childcare Settings
Cambridgeshire County Council,05-Apr-23,51301961889,"12,516.51",BUSY BEE DAY NURSERY,NURSERY,Nursery Schools,Early Years - Funded 3s/4s,Care & Ed Childcare Settings
Cambridgeshire County Council,05-Apr-23,51301961890,"22,606.08",BUSY BEES DAY NURSERY AT HUNTINGDON,NURSERY,Nursery Schools,Early Years - Funded 3s/4s,Care & Ed Childcare Settings
Cambridgeshire County Council,05-Apr-23,51301961891,"23,270.13",BUSY BEES PRE-SCHOOL PLAYGROUP,NURSERY,Nursery Schools,Early Years - Funded 3s/4s,Care & Ed Childcare Settings
Cambridgeshire County Council,05-Apr-23,51301961892,"19,798.96",BUSY FINGERS PRE-SCHOOL,NURSERY,Nursery Schools,Early Years - Funded 3s/4s,Care & Ed Childcare Settings
Cambridgeshire County Council,05-Apr-23,51301961871,"31,587.58",Buttercups Childcare Ltd,NURSERY,Nursery Schools,Early Years - Funded 3s/4s,Care & Ed Childcare Settings
Cambridgeshire County Council,05-Apr-23,51301961893,"18,840.04",BUTTERCUPS COMMUNITY PRE-SCHOOL,NURSERY,Nursery Schools,Early Years - Funded 3s/4s,Care & Ed Childcare Settings
Cambridgeshire County Council,05-Apr-23,51301961894,"12,085.92",BUTTERFLY DAY NURSERY,NURSERY,Nursery Schools,Early Years - Funded 3s/4s,Care & Ed Childcare Settings
Cambridgeshire County Council,05-Apr-23,51301961895,"35,554.59",BUTTONS & BOWS PRE-SCHOOL,NURSERY,Nursery Schools,Early Years - Funded 3s/4s,Care & Ed Childcare Settings
Cambridgeshire County Council,05-Apr-23,51301951497,"28,068.00",C JACKSON & SONS (JACKSON ENVIRONMENTAL LTD),COMPANY,Building Maintenance,Stanton Villas PE29 6PY,"New Construction, Conversion and Renovation"
Cambridgeshire County Council,05-Apr-23,51301939761,"20,547.19",CAE Technology Servcies,COMPANY,ICT Service,ICT Service Sales,Materials for resale
Cambridgeshire County Council,05-Apr-23,51301939765,"31,230.91",CAE Technology Servcies,COMPANY,ICT Service,ICT Service Sales,Materials for resale
Cambridgeshire County Council,05-Apr-23,51301961896,"25,972.36",CALDECOTE PLAYGROUP,NURSERY,Nursery Schools,Early Years - Funded 3s/4s,Care & Ed Childcare Settings
Cambridgeshire County Council,05-Apr-23,51301961897,"19,184.50",CAMBOURNE PRESCHOOL,EDUCATION,Nursery Schools,Early Years - Funded 3s/4s,Care & Ed Childcare Settings
Cambridgeshire County Council,05-Apr-23,51301962465,"1,722.00",Cambridge and Huntingdon Airport Travel Service,COMPANY,LAC Transport,LAC Transport -  Short Breaks,Social Care Transport
Cambridgeshire County Council,05-Apr-23,51301948313,898.44,CAMBRIDGE CITY COUNCIL,OTHER PUBLIC BODIES,Mental Health Commissioning,Mental Health Commissioning,Residential Care - Property Voids
Cambridgeshire County Council,05-Apr-23,51301961898,"44,990.39",CAMBRIDGE DAY NURSERY,NURSERY,Nursery Schools,Early Years - Funded 3s/4s,Care & Ed Childcare Settings
Cambridgeshire County Council,05-Apr-23,51301961834,560.00,CAMBRIDGE INDEPENDENT SPEECH THERAPY,TRADE SUPPLIER,Early Years Specialist Support,SEND - Independent Therapy,Independent School Placements
Cambridgeshire County Council,05-Apr-23,51301961899,"10,834.20",CAMBRIDGE MONTESSORI,NURSERY,Nursery Schools,Early Years - Funded 3s/4s,Care & Ed Childcare Settings
Cambridgeshire County Council,05-Apr-23,51301961943,"17,811.00",Cambridge Nurseries Ltd T/A Girton Village Day Nursery,NURSERY,Nursery Schools,Early Years - Funded 3s/4s,Care & Ed Childcare Settings
Cambridgeshire County Council,05-Apr-23,51301961900,"5,900.45",CAMBRIDGE STEINER SCHOOL AND EARLY YEARS,EDUCATION,Nursery Schools,Early Years - Funded 3s/4s,Care & Ed Childcare Settings
Cambridgeshire County Council,05-Apr-23,51301961062,791.75,CAMBRIDGESHIRE AND PETERBOROUGH NHS FOUNDATION TRUST,TRUST (OTHER),LD - Head of Service,Head of LDP,Staffing Recharges - External
Cambridgeshire County Council,05-Apr-23,51301961067,-791.75,CAMBRIDGESHIRE AND PETERBOROUGH NHS FOUNDATION TRUST,TRUST (OTHER),LD - Head of Service,Head of LDP,Staffing Recharges - External
Cambridgeshire County Council,05-Apr-23,51301961849,"199,325.00",CAMBRIDGESHIRE AND PETERBOROUGH NHS FOUNDATION TRUST,TRUST (OTHER),LD - Head of Service,Head of LDP,Care & Ed Partner Organisations
Cambridgeshire County Council,05-Apr-23,51301962387,660.00,Capstone Inspections Ltd,COMPANY,Grafham Water,Grafham Water Centre,Staff Training & Development
Cambridgeshire County Council,05-Apr-23,51301961902,"38,404.20",CAVALRY SCHOOL NURSERY,NURSERY,Nursery Schools,Early Years - Funded 3s/4s,Care & Ed Childcare Settings
Cambridgeshire County Council,05-Apr-23,51301962214,"20,162.00",CHARTERED INSTITUTE OF PUBLIC FINANCE AND ACCOUNTANCY (CIPFA),OTHER PUBLIC BODIES,Professional Finance,CCC Finance,Subscriptions
Cambridgeshire County Council,05-Apr-23,51301959930,"-1,198.07",CHELSEA AND WESTMINSTER HOSPITAL NHS FOUNDATION TRUST,TRUST (OTHER),SH STI - PH Sexual Health & Health Checks,SH STI - Hospital SH Services - Out of Area Trusts,Professional Fees and Hired Services
Cambridgeshire County Council,05-Apr-23,51301951941,"12,952.21",CHELSEA AND WESTMINSTER HOSPITAL NHS FOUNDATION TRUST,TRUST (OTHER),SH STI - PH Sexual Health & Health Checks,SH STI - Hospital SH Services - Out of Area Trusts,Professional Fees and Hired Services
Cambridgeshire County Council,05-Apr-23,51301961904,"22,909.87",Chestnut Nursery @ Cottenham,NURSERY,Nursery Schools,Early Years - Funded 3s/4s,Care & Ed Childcare Settings
Cambridgeshire County Council,05-Apr-23,51301961903,"46,218.87",CHESTNUT NURSERY SCHOOLS LIMITED,NURSERY,Nursery Schools,Early Years - Funded 3s/4s,Care & Ed Childcare Settings
Cambridgeshire County Council,05-Apr-23,51301961905,"17,919.31",CHESTNUT PLAYGROUP,NURSERY,Nursery Schools,Early Years - Funded 3s/4s,Care & Ed Childcare Settings
Cambridgeshire County Council,05-Apr-23,51301961907,"23,424.67",Childrens Ark Day Nursery -  Monarchs Childcare Ltd,NURSERY,Nursery Schools,Early Years - Funded 3s/4s,Care & Ed Childcare Settings
Cambridgeshire County Council,05-Apr-23,51301961906,"46,449.72",CHILDREN'S MONTESSORI NURSERY,NURSERY,Nursery Schools,Early Years - Funded 3s/4s,Care & Ed Childcare Settings
Cambridgeshire County Council,05-Apr-23,51301961908,"40,230.38",CLARENCE HOUSE BARNS,NURSERY,Nursery Schools,Early Years - Funded 3s/4s,Care & Ed Childcare Settings
Cambridgeshire County Council,05-Apr-23,51301961909,"33,178.35",CLARENCE HOUSE CAMBRIDGE,NURSERY,Nursery Schools,Early Years - Funded 3s/4s,Care & Ed Childcare Settings
Cambridgeshire County Council,05-Apr-23,51301961911,"1,595.12",CLARENCE HOUSE DAY NURSERY,NURSERY,Nursery Schools,Early Years - Funded 3s/4s,Care & Ed Childcare Settings
Cambridgeshire County Council,05-Apr-23,51301961910,"26,025.09",CLARENCE HOUSE DAY NURSERY CHATTERIS,NURSERY,Nursery Schools,Early Years - Funded 3s/4s,Care & Ed Childcare Settings
Cambridgeshire County Council,05-Apr-23,51301961913,"35,251.22",CLARENCE HOUSE MARCH,NURSERY,Nursery Schools,Early Years - Funded 3s/4s,Care & Ed Childcare Settings
Cambridgeshire County Council,05-Apr-23,51301961914,"11,850.72",Clarence House Papworth,NURSERY,Nursery Schools,Early Years - Funded 3s/4s,Care & Ed Childcare Settings
Cambridgeshire County Council,05-Apr-23,51301961912,"35,975.14",CLARENCE HOUSE PRE-SCHOOL,NURSERY,Nursery Schools,Early Years - Funded 3s/4s,Care & Ed Childcare Settings
Cambridgeshire County Council,05-Apr-23,51301962475,"4,540.60",COLLINS COACHES,TRADE SUPPLIER,Adults - Central Transport,Adults Disabilities and OP Transport,Social Care Transport
Cambridgeshire County Council,05-Apr-23,51301962476,"4,765.80",COLLINS COACHES,TRADE SUPPLIER,Adults - Central Transport,Adults Disabilities and OP Transport,Social Care Transport
Cambridgeshire County Council,05-Apr-23,51301961917,"26,406.92",COMBERTON PLAYGROUP,NURSERY,Nursery Schools,Early Years - Funded 3s/4s,Care & Ed Childcare Settings
Cambridgeshire County Council,05-Apr-23,51301951942,538.80,Commission Air Ltd,COMPANY,Highways Maintenance,Highways Maintenance - Hunts,Pathways
Cambridgeshire County Council,05-Apr-23,51301957548,607.05,Coram Voice,CHARITY,C&S Complaints,Childrens Complaints & Feedback,Professional Fees and Hired Services
Cambridgeshire County Council,05-Apr-23,51301956984,550.80,CRICK SOFTWARE LTD,TRADE SUPPLIER,ICT Service,ICT Service Sales,Materials for resale
Cambridgeshire County Council,05-Apr-23,51301961919,"32,001.13",CYGNETS MILTON PRE SCHOOL,NURSERY,Nursery Schools,Early Years - Funded 3s/4s,Care & Ed Childcare Settings
Cambridgeshire County Council,05-Apr-23,51301961920,"17,559.08",DAISIES MONTESSORI NURSERY SCHOOL,NURSERY,Nursery Schools,Early Years - Funded 3s/4s,Care & Ed Childcare Settings
Cambridgeshire County Council,05-Apr-23,51301962491,"2,346.00",DART TAXIS (MARCH),TRADE SUPPLIER,LD - Hunts Locality - Cost of Care,LD - Huntingdonshire - Care,Social Care Transport
Cambridgeshire County Council,05-Apr-23,51301962492,"3,726.00",DART TAXIS (MARCH),TRADE SUPPLIER,LAC Transport,LAC Transport - Home to School,Social Care Transport
Cambridgeshire County Council,05-Apr-23,51301961918,"13,035.11",Davidson Roberts Ltd T/A Coton Pre-school,EDUCATION,Nursery Schools,Early Years - Funded 3s/4s,Care & Ed Childcare Settings
Cambridgeshire County Council,05-Apr-23,51301962178,969.00,DCC Interactive Ltd (trading as DCC-i),EDUCATION,Adults L&D,L&D Adult's,Professional Fees and Hired Services
Cambridgeshire County Council,05-Apr-23,51301962177,969.00,DCC Interactive Ltd (trading as DCC-i),EDUCATION,Adults L&D,L&D Adult's,Professional Fees and Hired Services
Cambridgeshire County Council,05-Apr-23,51301867741,-686.24,DIAMOND LEARNING PARTNERSHIP TRUST,TRUST (OTHER),Corporate Offices,Preschools,Rents and Leases
Cambridgeshire County Council,05-Apr-23,51301956940,"9,611.26",DIAMOND LEARNING PARTNERSHIP TRUST,TRUST (OTHER),Corporate Offices,Preschools,Service Charges
Cambridgeshire County Council,05-Apr-23,51301961921,"20,541.07",DITTON LODGE COMMUNITY NURSERY,EDUCATION,Nursery Schools,Early Years - Funded 3s/4s,Care & Ed Childcare Settings
Cambridgeshire County Council,05-Apr-23,51301961922,"24,936.07",DOMINO NURSERY,NURSERY,Nursery Schools,Early Years - Funded 3s/4s,Care & Ed Childcare Settings
Cambridgeshire County Council,05-Apr-23,51301962468,"2,290.80",Drivero Taxi Ltd,COMPANY,LAC Transport,LAC Transport - Home to School,Social Care Transport
Cambridgeshire County Council,05-Apr-23,51301962466,"2,610.00",Drivero Taxi Ltd,COMPANY,LD - South Locality - Cost of Care,LD - South Cambs - Care,Social Care Transport
Cambridgeshire County Council,05-Apr-23,51301962469,"3,444.48",Drivero Taxi Ltd,COMPANY,LD - Fenland Locality - Cost of Care,LD - Fenland  - Care,Social Care Transport
Cambridgeshire County Council,05-Apr-23,51301961923,"44,005.97",DUCKLINGS CHILDCARE (GODMANCHESTER) LTD,NURSERY,Nursery Schools,Early Years - Funded 3s/4s,Care & Ed Childcare Settings
Cambridgeshire County Council,05-Apr-23,51301961924,"18,844.71",Duxford Preschool,NURSERY,Nursery Schools,Early Years - Funded 3s/4s,Care & Ed Childcare Settings
Cambridgeshire County Council,05-Apr-23,51301961925,"13,716.66",EARITH PRESCHOOL 7,NURSERY,Nursery Schools,Early Years - Funded 3s/4s,Care & Ed Childcare Settings
Cambridgeshire County Council,05-Apr-23,51301961915,"7,077.33",EASTFIELD PLAYGROUP (CLUB 4 U),NURSERY,Nursery Schools,Early Years - Funded 3s/4s,Care & Ed Childcare Settings
Cambridgeshire County Council,05-Apr-23,51301961926,"94,539.60",EATON SOCON PRESCHOOL,NURSERY,Nursery Schools,Early Years - Funded 3s/4s,Care & Ed Childcare Settings
Cambridgeshire County Council,05-Apr-23,51301961927,"15,459.45",ELM SCHOOL NURSERY,NURSERY,Nursery Schools,Early Years - Funded 3s/4s,Care & Ed Childcare Settings
Cambridgeshire County Council,05-Apr-23,51301961928,"14,548.03",ELSWORTH PRE-SCHOOL,NURSERY,Nursery Schools,Early Years - Funded 3s/4s,Care & Ed Childcare Settings
Cambridgeshire County Council,05-Apr-23,51301962478,"2,162.00",Ely Cab,COMPANY,LAC Transport,LAC Transport - Home to School,Social Care Transport
Cambridgeshire County Council,05-Apr-23,51301961979,"23,002.67",ELY ST JOHNS PRESCHOOL,NURSERY,Nursery Schools,Early Years - Funded 3s/4s,Care & Ed Childcare Settings
Cambridgeshire County Council,05-Apr-23,51301956750,"1,645.84",ENTERPRISE FLEX-E-RENT,TRADE SUPPLIER,Corporate Offices,Pool Cars,Leased Vehicle Costs
Cambridgeshire County Council,05-Apr-23,51301948303,538.20,ESPO,TRADE SUPPLIER,Archives,Archives - Cambridge Record Office,Specialist Equipment For Service Delivery
Cambridgeshire County Council,05-Apr-23,51301961929,"18,058.25",Eynesbury Primary School Nursery Class,NURSERY,Nursery Schools,Early Years - Funded 3s/4s,Care & Ed Childcare Settings
Cambridgeshire County Council,05-Apr-23,51301961930,"20,329.23",FEN DRAYTON MONTESSORI NURSERY,NURSERY,Nursery Schools,Early Years - Funded 3s/4s,Care & Ed Childcare Settings
Cambridgeshire County Council,05-Apr-23,51301961931,"10,293.44",FENSTANTON PRE-SCHOOL,NURSERY,Nursery Schools,Early Years - Funded 3s/4s,Care & Ed Childcare Settings
Cambridgeshire County Council,05-Apr-23,51301948312,"1,830.00",FG Library Products Ltd,COMPANY,Libraries - Support,Support - Business Support,Specialist Equipment For Service Delivery
Cambridgeshire County Council,05-Apr-23,51301961932,"67,569.33",FIRST STEPS CHILDCARE (CAMBS) LTD,NURSERY,Nursery Schools,Early Years - Funded 3s/4s,Care & Ed Childcare Settings
Cambridgeshire County Council,05-Apr-23,51301961933,"16,467.98",FIRST STEPS DAY NURSERY,NURSERY,Nursery Schools,Early Years - Funded 3s/4s,Care & Ed Childcare Settings
Cambridgeshire County Council,05-Apr-23,51301961934,"26,296.62",FLUTTERBIES CHILDCARE,NURSERY,Nursery Schools,Early Years - Funded 3s/4s,Care & Ed Childcare Settings
Cambridgeshire County Council,05-Apr-23,51301957720,999.80,Flying Gecko Outdoor Learning,EDUCATION,Grafham Water,Grafham Water Centre,Staff Training & Development
Cambridgeshire County Council,05-Apr-23,51301961935,"16,964.62",Flying Start Montessori,NURSERY,Nursery Schools,Early Years - Funded 3s/4s,Care & Ed Childcare Settings
Cambridgeshire County Council,05-Apr-23,51301961936,"17,473.57",FOLKSWORTH PRE-SCHOOL,NURSERY,Nursery Schools,Early Years - Funded 3s/4s,Care & Ed Childcare Settings
Cambridgeshire County Council,05-Apr-23,51301961937,"23,581.07",FORDHAM PRE-SCHOOL,NURSERY,Nursery Schools,Early Years - Funded 3s/4s,Care & Ed Childcare Settings
Cambridgeshire County Council,05-Apr-23,51301957512,"3,494.14",Fostering Innovations Ltd,CARE ESTABLISHMENT,Unaccompanied Asylum Seeking Children,Separated Migrant Children < 18,Agency Placements - Out of  County
Cambridgeshire County Council,05-Apr-23,51301957511,"3,494.14",Fostering Innovations Ltd,CARE ESTABLISHMENT,Unaccompanied Asylum Seeking Children,Separated Migrant Children < 18,Agency Placements - Out of  County
Cambridgeshire County Council,05-Apr-23,51301957510,"3,494.14",Fostering Innovations Ltd,CARE ESTABLISHMENT,Unaccompanied Asylum Seeking Children,Separated Migrant Children < 18,Agency Placements - Out of  County
Cambridgeshire County Council,05-Apr-23,51301957509,"3,494.14",Fostering Innovations Ltd,CARE ESTABLISHMENT,Unaccompanied Asylum Seeking Children,Separated Migrant Children < 18,Agency Placements - Out of  County
Cambridgeshire County Council,05-Apr-23,51301961938,"6,211.93",FOWLMERE PLAYGROUP,NURSERY,Nursery Schools,Early Years - Funded 3s/4s,Care & Ed Childcare Settings
Cambridgeshire County Council,05-Apr-23,51301961939,"18,077.49",Foxes Bridge Farm Nursery & Pre-School,NURSERY,Nursery Schools,Early Years - Funded 3s/4s,Care & Ed Childcare Settings
Cambridgeshire County Council,05-Apr-23,51301961940,"7,376.56",FOXTON PRE-SCHOOL,NURSERY,Nursery Schools,Early Years - Funded 3s/4s,Care & Ed Childcare Settings
Cambridgeshire County Council,05-Apr-23,51301961941,"8,259.01",GAMLINGAY RAINBOW PRE-SCHOOL,NURSERY,Nursery Schools,Early Years - Funded 3s/4s,Care & Ed Childcare Settings
Cambridgeshire County Council,05-Apr-23,51301957144,"1,932.00",GD GREEN,SOLETRADER,County Farms,County Farms,County Farms Maintenance unplanned
Cambridgeshire County Council,05-Apr-23,51301961942,"18,119.55",Girton Cottontails Preschool,NURSERY,Nursery Schools,Early Years - Funded 3s/4s,Care & Ed Childcare Settings
Cambridgeshire County Council,05-Apr-23,51301961944,"35,010.62",Godmanchester Pre-School,NURSERY,Nursery Schools,Early Years - Funded 3s/4s,Care & Ed Childcare Settings
Cambridgeshire County Council,05-Apr-23,51301961945,"15,665.37",GOREFIELD PRE-SCHOOL,NURSERY,Nursery Schools,Early Years - Funded 3s/4s,Care & Ed Childcare Settings
Cambridgeshire County Council,05-Apr-23,51301961946,"25,956.01",GRANTA PARK MONTESSORI NURSERY,NURSERY,Nursery Schools,Early Years - Funded 3s/4s,Care & Ed Childcare Settings
Cambridgeshire County Council,05-Apr-23,51301962061,"19,721.51",Great and Little Shelford CofE (Aided) Primary School t/a Rainbow Pre-School,NURSERY,Nursery Schools,Early Years - Funded 3s/4s,Care & Ed Childcare Settings
Cambridgeshire County Council,05-Apr-23,51301961947,"1,498.74",GREAT CHISHILL NURSERY SCHOOL,NURSERY,Nursery Schools,Early Years - Funded 3s/4s,Care & Ed Childcare Settings
Cambridgeshire County Council,05-Apr-23,51301961948,"24,509.20",GREAT GRANSDEN PRE-SCHOOL PLAYGROUP,NURSERY,Nursery Schools,Early Years - Funded 3s/4s,Care & Ed Childcare Settings
Cambridgeshire County Council,05-Apr-23,51301961949,"8,356.03",Great Staughton  Primary Academy Pre-School,NURSERY,Nursery Schools,Early Years - Funded 3s/4s,Care & Ed Childcare Settings
Cambridgeshire County Council,05-Apr-23,51301961950,"20,289.87",GREENFIELDS DAY NURSERY,NURSERY,Nursery Schools,Early Years - Funded 3s/4s,Care & Ed Childcare Settings
Cambridgeshire County Council,05-Apr-23,51301961952,"11,689.40",GUILDEN MORDEN COMMUNITY PRE-SCHOOL,NURSERY,Nursery Schools,Early Years - Funded 3s/4s,Care & Ed Childcare Settings
Cambridgeshire County Council,05-Apr-23,51301961953,"13,591.85",HADDENHAM PRE-SCHOOL,NURSERY,Nursery Schools,Early Years - Funded 3s/4s,Care & Ed Childcare Settings
Cambridgeshire County Council,05-Apr-23,51301961954,"17,244.40",Happy Bunnies Nursery School T/A Active Childhood UK Limited,NURSERY,Nursery Schools,Early Years - Funded 3s/4s,Care & Ed Childcare Settings
Cambridgeshire County Council,05-Apr-23,51301961955,"21,504.49",HARDWICK PRE-SCHOOL,NURSERY,Nursery Schools,Early Years - Funded 3s/4s,Care & Ed Childcare Settings
Cambridgeshire County Council,05-Apr-23,51301961956,"44,336.66",Harlequin Childcare TA Busy Bees,NURSERY,Nursery Schools,Early Years - Funded 3s/4s,Care & Ed Childcare Settings
Cambridgeshire County Council,05-Apr-23,51301961958,"20,189.29",Hartford Infants Pre School,NURSERY,Nursery Schools,Early Years - Funded 3s/4s,Care & Ed Childcare Settings
Cambridgeshire County Council,05-Apr-23,51301961959,"8,645.65",HARVEY ROAD DAY NURSERY,NURSERY,Nursery Schools,Early Years - Funded 3s/4s,Care & Ed Childcare Settings
Cambridgeshire County Council,05-Apr-23,51301961960,"3,972.55",HASLINGFIELD LITTLE OWLS COMMITTEE,NURSERY,Nursery Schools,Early Years - Funded 3s/4s,Care & Ed Childcare Settings
Cambridgeshire County Council,05-Apr-23,51301961961,"13,596.41",HAUXTON PRE SCHOOL,NURSERY,Nursery Schools,Early Years - Funded 3s/4s,Care & Ed Childcare Settings
Cambridgeshire County Council,05-Apr-23,51301961962,"21,070.70",HEAD START NURSERY SCHOOL LIMITED,NURSERY,Nursery Schools,Early Years - Funded 3s/4s,Care & Ed Childcare Settings
Cambridgeshire County Council,05-Apr-23,51301961963,"21,817.04",HEMINGFORD GREY PLAYGROUP,NURSERY,Nursery Schools,Early Years - Funded 3s/4s,Care & Ed Childcare Settings
Cambridgeshire County Council,05-Apr-23,51301961964,"20,839.66",Herons' Preschool Waterbeach (CIO),EDUCATION,Nursery Schools,Early Years - Funded 3s/4s,Care & Ed Childcare Settings
Cambridgeshire County Council,05-Apr-23,51301961965,"21,659.16",HILL ROW DAY NURSERY,NURSERY,Nursery Schools,Early Years - Funded 3s/4s,Care & Ed Childcare Settings
Cambridgeshire County Council,05-Apr-23,51301961966,"18,708.34",Hilton Day Nursery,NURSERY,Nursery Schools,Early Years - Funded 3s/4s,Care & Ed Childcare Settings
Cambridgeshire County Council,05-Apr-23,51301961967,"20,856.42",Hinchingbrooke Park Pre-School,NURSERY,Nursery Schools,Early Years - Funded 3s/4s,Care & Ed Childcare Settings
Cambridgeshire County Council,05-Apr-23,51301961968,"14,362.46",HOLME VILLAGE PRESCHOOL,NURSERY,Nursery Schools,Early Years - Funded 3s/4s,Care & Ed Childcare Settings
Cambridgeshire County Council,05-Apr-23,51301961969,"24,052.55",HOUGHTON & WYTON PRE-SCHOOL PLAYGROUP,NURSERY,Nursery Schools,Early Years - Funded 3s/4s,Care & Ed Childcare Settings
Cambridgeshire County Council,05-Apr-23,51301961824,"1,500.00",HUNTINGDONSHIRE DISTRICT COUNCIL,OTHER PUBLIC BODIES,PH Other Health Improvement,Gen prev activities - Health -  Small community projects,Joint Partnership Funding
Cambridgeshire County Council,05-Apr-23,51301961831,"202,839.32",HUNTINGDONSHIRE DISTRICT COUNCIL,OTHER PUBLIC BODIES,Waste Disposal incl PFI,HDC Waste disposal,Recycling Claims
Cambridgeshire County Council,05-Apr-23,51301961364,"9,725.94",Hutton Construction Ltd,COMPANY,Environment Fund: Decarbonisation Fund - Council buildings Low Carbon Heating,Huntingdon Community Centre Renewable Heating,"New Construction, Conversion and Renovation"
Cambridgeshire County Council,05-Apr-23,51301948004,"6,480.00",IDOX SOFTWARE LTD,TRADE SUPPLIER,Historic Environment,Local Listing Project,Professional Fees and Hired Services
Cambridgeshire County Council,05-Apr-23,51301961970,"25,749.58",ISLEHAM PRE-SCHOOL,NURSERY,Nursery Schools,Early Years - Funded 3s/4s,Care & Ed Childcare Settings
Cambridgeshire County Council,05-Apr-23,51301961971,"9,788.46",JACK & JILL PLAYGROUP,NURSERY,Nursery Schools,Early Years - Funded 3s/4s,Care & Ed Childcare Settings
Cambridgeshire County Council,05-Apr-23,51301961972,"44,580.31",JEMIMA HOUSE DAY NURSERY,NURSERY,Nursery Schools,Early Years - Funded 3s/4s,Care & Ed Childcare Settings
Cambridgeshire County Council,05-Apr-23,51301961973,"11,958.19",JIGSAW NURSERY,NURSERY,Nursery Schools,Early Years - Funded 3s/4s,Care & Ed Childcare Settings
Cambridgeshire County Council,05-Apr-23,51301961974,"40,171.96",JIGSAW PLAYGROUP,NURSERY,Nursery Schools,Early Years - Funded 3s/4s,Care & Ed Childcare Settings
Cambridgeshire County Council,05-Apr-23,51301961975,"20,616.55",JOINT COLLEGES NURSERY,NURSERY,Nursery Schools,Early Years - Funded 3s/4s,Care & Ed Childcare Settings
Cambridgeshire County Council,05-Apr-23,51301961976,"6,469.75",JULIE & JO'S CHILDCARE,NURSERY,Nursery Schools,Early Years - Funded 3s/4s,Care & Ed Childcare Settings
Cambridgeshire County Council,05-Apr-23,51301962304,"6,295.00",Kayn Recruitment Limited,COMPANY,RSS Therapeutic Hub,RSS Therapeutic Hub,Consultancy
Cambridgeshire County Council,05-Apr-23,51301961977,"4,975.02",KENNETT FOUNDATION STAGE UNIT,NURSERY,Nursery Schools,Early Years - Funded 3s/4s,Care & Ed Childcare Settings
Cambridgeshire County Council,05-Apr-23,51301961978,"22,228.12",KESTER PRE-SCHOOL,NURSERY,Nursery Schools,Early Years - Funded 3s/4s,Care & Ed Childcare Settings
Cambridgeshire County Council,05-Apr-23,51301949947,642.00,Kick London,CHARITY,Schools - Secondaries,Pilgrim Pathways School,Professional Fees and Hired Services
Cambridgeshire County Council,05-Apr-23,51301961957,"8,476.81",KIDDIWINKS PLAYGROUP,NURSERY,Nursery Schools,Early Years - Funded 3s/4s,Care & Ed Childcare Settings
Cambridgeshire County Council,05-Apr-23,51301961981,"8,595.75",Kids R Us @ Fulbourn,NURSERY,Nursery Schools,Early Years - Funded 3s/4s,Care & Ed Childcare Settings
Cambridgeshire County Council,05-Apr-23,51301961982,"8,863.46",KING STREET PRESCHOOL,NURSERY,Nursery Schools,Early Years - Funded 3s/4s,Care & Ed Childcare Settings
Cambridgeshire County Council,05-Apr-23,51301961983,"17,047.14",KINGSFIELD PRE-SCHOOL,NURSERY,Nursery Schools,Early Years - Funded 3s/4s,Care & Ed Childcare Settings
Cambridgeshire County Council,05-Apr-23,51301961984,"26,730.25",KRAZYDAYZ PRIVATE DAY NURSERY,NURSERY,Nursery Schools,Early Years - Funded 3s/4s,Care & Ed Childcare Settings
Cambridgeshire County Council,05-Apr-23,51301961985,"39,541.04",LADYBIRD DAY NURSERY ICP,NURSERY,Nursery Schools,Early Years - Funded 3s/4s,Care & Ed Childcare Settings
Cambridgeshire County Council,05-Apr-23,51301961989,"2,786.77",LADYBIRD PLAY & TODDLER GROUP,NURSERY,Nursery Schools,Early Years - Funded 3s/4s,Care & Ed Childcare Settings
Cambridgeshire County Council,05-Apr-23,51301961986,"12,867.39",LADYBIRD PLAYGROUP (THRIPLOW),NURSERY,Nursery Schools,Early Years - Funded 3s/4s,Care & Ed Childcare Settings
Cambridgeshire County Council,05-Apr-23,51301961987,"41,766.19",LADYBIRD PRE-SCHOOL,NURSERY,Nursery Schools,Early Years - Funded 3s/4s,Care & Ed Childcare Settings
Cambridgeshire County Council,05-Apr-23,51301961988,"33,485.40",LADYBIRDS DAY NURSERY,NURSERY,Nursery Schools,Early Years - Funded 3s/4s,Care & Ed Childcare Settings
Cambridgeshire County Council,05-Apr-23,51301961990,"43,349.59",LANCASTER LODGE CHILDCARE LTD,NURSERY,Nursery Schools,Early Years - Funded 3s/4s,Care & Ed Childcare Settings
Cambridgeshire County Council,05-Apr-23,51301962240,"1,000.00",Liliia Pochkun t/a BORSCH LTD,COMPANY,B&IPC Centre,B&IP Centre (Ext Fund),Consultancy
Cambridgeshire County Council,05-Apr-23,51301961992,"15,381.06",LILLIPUT PRE SCHOOL,NURSERY,Nursery Schools,Early Years - Funded 3s/4s,Care & Ed Childcare Settings
Cambridgeshire County Council,05-Apr-23,51301961999,"11,349.03",Lindsay Ann Bainbridge T/A Little Deers Childcare,EDUCATION,Nursery Schools,Early Years - Funded 3s/4s,Care & Ed Childcare Settings
Cambridgeshire County Council,05-Apr-23,51301961993,"30,242.91",LIONEL WALDEN SCHOOL PLAYGROUP,NURSERY,Nursery Schools,Early Years - Funded 3s/4s,Care & Ed Childcare Settings
Cambridgeshire County Council,05-Apr-23,51301961994,"5,910.84",LITLINGTON PRESCHOOL,NURSERY,Nursery Schools,Early Years - Funded 3s/4s,Care & Ed Childcare Settings
Cambridgeshire County Council,05-Apr-23,51301961995,"60,585.66",LITTLE ACORNS DAY NURSERY,NURSERY,Nursery Schools,Early Years - Funded 3s/4s,Care & Ed Childcare Settings
Cambridgeshire County Council,05-Apr-23,51301961996,"15,565.45",LITTLE ACORNS PRESCHOOL PLAYGROUP (STUKELEY MEADOWS),NURSERY,Nursery Schools,Early Years - Funded 3s/4s,Care & Ed Childcare Settings
Cambridgeshire County Council,05-Apr-23,51301961997,"24,826.89",LITTLE CATERPILLARS,NURSERY,Nursery Schools,Early Years - Funded 3s/4s,Care & Ed Childcare Settings
Cambridgeshire County Council,05-Apr-23,51301961998,"22,969.44",Little Cherries/Bewick Bridge community Primary School,NURSERY,Nursery Schools,Early Years - Funded 3s/4s,Care & Ed Childcare Settings
Cambridgeshire County Council,05-Apr-23,51301962000,"2,297.13",Little Explorers Montessori Nursery,NURSERY,Nursery Schools,Early Years - Funded 3s/4s,Care & Ed Childcare Settings
Cambridgeshire County Council,05-Apr-23,51301962001,"19,501.76",LITTLE HANDS NURSERY SCHOOL (BOURN),NURSERY,Nursery Schools,Early Years - Funded 3s/4s,Care & Ed Childcare Settings
Cambridgeshire County Council,05-Apr-23,51301962002,"21,518.34",LITTLE HANDS NURSERY SCHOOL (LINTON & BARTLOW),NURSERY,Nursery Schools,Early Years - Funded 3s/4s,Care & Ed Childcare Settings
Cambridgeshire County Council,05-Apr-23,51301962003,"24,649.55",LITTLE HANDS NURSERY SCHOOL (MELBOURN),NURSERY,Nursery Schools,Early Years - Funded 3s/4s,Care & Ed Childcare Settings
Cambridgeshire County Council,05-Apr-23,51301962004,"23,393.82",LITTLE HANDS NURSERY SCHOOLS LIMITED,NURSERY,Nursery Schools,Early Years - Funded 3s/4s,Care & Ed Childcare Settings
Cambridgeshire County Council,05-Apr-23,51301962005,716.04,Little Hens Childcare Ltd,NURSERY,Nursery Schools,Early Years - Funded 3s/4s,Care & Ed Childcare Settings
Cambridgeshire County Council,05-Apr-23,51301962006,"11,011.61",LITTLE INCREDIBLES,NURSERY,Nursery Schools,Early Years - Funded 3s/4s,Care & Ed Childcare Settings
Cambridgeshire County Council,05-Apr-23,51301962007,"7,760.13",LITTLE LAMBS PRE SCHOOL,NURSERY,Nursery Schools,Early Years - Funded 3s/4s,Care & Ed Childcare Settings
Cambridgeshire County Council,05-Apr-23,51301962008,"8,941.58",Little Legs Montessori,NURSERY,Nursery Schools,Early Years - Funded 3s/4s,Care & Ed Childcare Settings
Cambridgeshire County Council,05-Apr-23,51301962009,"30,800.54",LITTLE MUNCHKINS LTD,NURSERY,Nursery Schools,Early Years - Funded 3s/4s,Care & Ed Childcare Settings
Cambridgeshire County Council,05-Apr-23,51301962010,"10,034.39",LITTLE OWL PRE-SCHOOL,NURSERY,Nursery Schools,Early Years - Funded 3s/4s,Care & Ed Childcare Settings
Cambridgeshire County Council,05-Apr-23,51301962011,"68,384.51",LITTLE OWLS NENE,NURSERY,Nursery Schools,Early Years - Funded 3s/4s,Care & Ed Childcare Settings
Cambridgeshire County Council,05-Apr-23,51301962012,"25,178.38",LITTLE PAXTON PRE-SCHOOL,NURSERY,Nursery Schools,Early Years - Funded 3s/4s,Care & Ed Childcare Settings
Cambridgeshire County Council,05-Apr-23,51301962013,"55,982.92",LITTLE STARS DAY NURSERY INC LTD,NURSERY,Nursery Schools,Early Years - Funded 3s/4s,Care & Ed Childcare Settings
Cambridgeshire County Council,05-Apr-23,51301962014,"8,231.18",LITTLE THETFORD ACORNS,NURSERY,Nursery Schools,Early Years - Funded 3s/4s,Care & Ed Childcare Settings
Cambridgeshire County Council,05-Apr-23,51301962015,"31,250.65",LITTLE WOMBATZ,NURSERY,Nursery Schools,Early Years - Funded 3s/4s,Care & Ed Childcare Settings
Cambridgeshire County Council,05-Apr-23,51301962016,"26,767.26",LITTLEPORT COMMUNITY PRESCHOOL,NURSERY,Nursery Schools,Early Years - Funded 3s/4s,Care & Ed Childcare Settings
Cambridgeshire County Council,05-Apr-23,51301962017,"28,482.73",LONGSTANTON PRE-SCHOOL & OUT OF SCHOOL CLUBS,EDUCATION,Nursery Schools,Early Years - Funded 3s/4s,Care & Ed Childcare Settings
Cambridgeshire County Council,05-Apr-23,51301962490,"2,070.00",LTP Taxi,COMPANY,LAC Transport,LAC Transport - Home to School,Social Care Transport
Cambridgeshire County Council,05-Apr-23,51301962018,"2,237.01",Magdalene House Kindergarten,NURSERY,Nursery Schools,Early Years - Funded 3s/4s,Care & Ed Childcare Settings
Cambridgeshire County Council,05-Apr-23,51301962100,"42,384.20",MALTINGS DAY NURSERY,NURSERY,Nursery Schools,Early Years - Funded 3s/4s,Care & Ed Childcare Settings
Cambridgeshire County Council,05-Apr-23,51301962019,"18,214.63",MANEA PRE SCHOOL,NURSERY,Nursery Schools,Early Years - Funded 3s/4s,Care & Ed Childcare Settings
Cambridgeshire County Council,05-Apr-23,51301962020,"73,702.46",MAPLE GROVE COMMUNITY PRE-SCHOOL,NURSERY,Nursery Schools,Early Years - Funded 3s/4s,Care & Ed Childcare Settings
Cambridgeshire County Council,05-Apr-23,51301962021,"13,146.12",Marleigh Nursery,NURSERY,Nursery Schools,Early Years - Funded 3s/4s,Care & Ed Childcare Settings
Cambridgeshire County Council,05-Apr-23,51301962022,"53,009.64",MEADOW LANE CHILDREN'S NURSEY,NURSERY,Nursery Schools,Early Years - Funded 3s/4s,Care & Ed Childcare Settings
Cambridgeshire County Council,05-Apr-23,51301962024,"23,819.26",Meldreth Primary Pre-school,NURSERY,Nursery Schools,Early Years - Funded 3s/4s,Care & Ed Childcare Settings
Cambridgeshire County Council,05-Apr-23,51301962025,"10,346.97",Mepal & Witcham Primary School Foundation Stage Unit,NURSERY,Nursery Schools,Early Years - Funded 3s/4s,Care & Ed Childcare Settings
Cambridgeshire County Council,05-Apr-23,51301962026,"26,819.44",MILLFIELD NURSERY CLASS,NURSERY,Nursery Schools,Early Years - Funded 3s/4s,Care & Ed Childcare Settings
Cambridgeshire County Council,05-Apr-23,51301962027,"23,323.40",MILLINGTON ROAD NURSERY SCHOOL,NURSERY,Nursery Schools,Early Years - Funded 3s/4s,Care & Ed Childcare Settings
Cambridgeshire County Council,05-Apr-23,51301962028,"27,201.75",Monkey Puzzle Day Nursery and Pre-School Grange Road,NURSERY,Nursery Schools,Early Years - Funded 3s/4s,Care & Ed Childcare Settings
Cambridgeshire County Council,05-Apr-23,51301962030,"11,305.85",MONKEY PUZZLE DAY NURSERY CAMBRIDGE,NURSERY,Nursery Schools,Early Years - Funded 3s/4s,Care & Ed Childcare Settings
Cambridgeshire County Council,05-Apr-23,51301962029,"3,539.28",Monkey Puzzle Day Nursery Marleigh,NURSERY,Nursery Schools,Early Years - Funded 3s/4s,Care & Ed Childcare Settings
Cambridgeshire County Council,05-Apr-23,51301962031,"33,623.72",MONKFIELD PARK CARE & LEARNING CENTRE,NURSERY,Nursery Schools,Early Years - Funded 3s/4s,Care & Ed Childcare Settings
Cambridgeshire County Council,05-Apr-23,51301962032,"17,303.26",MOONBEAMS PRE SCHOOL,NURSERY,Nursery Schools,Early Years - Funded 3s/4s,Care & Ed Childcare Settings
Cambridgeshire County Council,05-Apr-23,51301962033,"43,894.50",MOTHER GOOSE CORNER NURSERY,NURSERY,Nursery Schools,Early Years - Funded 3s/4s,Care & Ed Childcare Settings
Cambridgeshire County Council,05-Apr-23,51301962034,"11,592.83",MOTHER GOOSE PRE-SCHOOL,NURSERY,Nursery Schools,Early Years - Funded 3s/4s,Care & Ed Childcare Settings
Cambridgeshire County Council,05-Apr-23,51301962493,619.60,Mr A Yasin T/A Rima Cars Limited,COMPANY,LAC Transport,LAC Transport - Home to School,Social Care Transport
Cambridgeshire County Council,05-Apr-23,51301962464,850.00,Mr Mehtab A Anwar T/A MAA TRANSPORT,SOLETRADER,LAC Transport,LAC Transport - Home to School,Social Care Transport
Cambridgeshire County Council,05-Apr-23,51301948377,"9,408.00",MRC MODULAR LTD,SOLETRADER,Duxford -  Fire Damage Rebuild,Duxford -  Fire Damage Rebuild,Mobile - Buildings
Cambridgeshire County Council,05-Apr-23,51301962036,"28,416.65",MURROW PRESCHOOL,NURSERY,Nursery Schools,Early Years - Funded 3s/4s,Care & Ed Childcare Settings
Cambridgeshire County Council,05-Apr-23,51301962037,"2,660.20",N Family Club Cambridge,NURSERY,Nursery Schools,Early Years - Funded 3s/4s,Care & Ed Childcare Settings
Cambridgeshire County Council,05-Apr-23,51301962444,"9,400.00",NATIONAL GOVERNORS ASSOCIATION (NGA),OTHER PUBLIC BODIES,SIS Governance,School Governor Training,Subscriptions
Cambridgeshire County Council,05-Apr-23,51301962487,"1,526.40",NEEDHAM CARS,TRADE SUPPLIER,LD - Young Adults Team,LD - Young Adults - Care,Social Care Transport
Cambridgeshire County Council,05-Apr-23,51301962038,"17,841.54",NEEDINGWORTH COMMUNITY PRE-SCHOOL,NURSERY,Nursery Schools,Early Years - Funded 3s/4s,Care & Ed Childcare Settings
Cambridgeshire County Council,05-Apr-23,51301957853,"1,060.35",New Meaning Foundation,COMPANY,SEND High Needs Top Up,High Needs Top Up - Post 16,Independent School Placements
Cambridgeshire County Council,05-Apr-23,51301957858,"1,603.08",New Meaning Foundation,COMPANY,SEND High Needs Top Up,High Needs Top Up - Post 16,Independent School Placements
Cambridgeshire County Council,05-Apr-23,51301957857,"2,466.48",New Meaning Foundation,COMPANY,SEND High Needs Top Up,High Needs Top Up - Post 16,Independent School Placements
Cambridgeshire County Council,05-Apr-23,51301957856,"3,782.16",New Meaning Foundation,COMPANY,SEND High Needs Top Up,High Needs Top Up - Post 16,Independent School Placements
Cambridgeshire County Council,05-Apr-23,51301957855,"5,200.47",New Meaning Foundation,COMPANY,SEND High Needs Top Up,High Needs Top Up - Post 16,Independent School Placements
Cambridgeshire County Council,05-Apr-23,51301962039,"25,741.88",NEW ROAD PLAYGROUP (WHITTLESEY),NURSERY,Nursery Schools,Early Years - Funded 3s/4s,Care & Ed Childcare Settings
Cambridgeshire County Council,05-Apr-23,51301962040,"9,630.27",NEWNHAM NURSERY,NURSERY,Nursery Schools,Early Years - Funded 3s/4s,Care & Ed Childcare Settings
Cambridgeshire County Council,05-Apr-23,51301957909,"5,000.00",NHS CAMBRIDGESHIRE&PETERBOROUGH ICB,CARE ESTABLISHMENT,Drug & Alcohol Misuse,Supplementary Substance Misuse Funding,Professional Fees and Hired Services
Cambridgeshire County Council,05-Apr-23,51301949317,"1,397.00",North Cambridge Community Partnership,LOCAL CLUBS & GROUPS,Cambridgeshire Skills HoS,Cambridgeshire Skills Management Team,Casual hire of facilities
Cambridgeshire County Council,05-Apr-23,51301962041,"12,362.35",OFFORD PRE-SCHOOL,NURSERY,Nursery Schools,Early Years - Funded 3s/4s,Care & Ed Childcare Settings
Cambridgeshire County Council,05-Apr-23,51301962101,"82,878.41",OLD SCHOOL HOUSE DAY NURSERY,NURSERY,Nursery Schools,Early Years - Funded 3s/4s,Care & Ed Childcare Settings
Cambridgeshire County Council,05-Apr-23,51301948299,522.00,OVER COMMUNITY ENTERPRISES LTD,LOCAL CLUBS & GROUPS,SIS Head of Service,SIS Numeracy & Literacy Team,Casual hire of facilities
Cambridgeshire County Council,05-Apr-23,51301962043,"10,628.82",OVER NEW ROAD PRESCHOOL CIC,NURSERY,Nursery Schools,Early Years - Funded 3s/4s,Care & Ed Childcare Settings
Cambridgeshire County Council,05-Apr-23,51301962044,866.72,Over New Road Preschool CIC (The Lanes),NURSERY,Nursery Schools,Early Years - Funded 3s/4s,Care & Ed Childcare Settings
Cambridgeshire County Council,05-Apr-23,51301962045,"17,189.33",OVER PUDDLEDUCKS PRE-SCHOOL,NURSERY,Nursery Schools,Early Years - Funded 3s/4s,Care & Ed Childcare Settings
Cambridgeshire County Council,05-Apr-23,51301962046,"20,326.67",PAINTBOX PLAYGROUP,NURSERY,Nursery Schools,Early Years - Funded 3s/4s,Care & Ed Childcare Settings
Cambridgeshire County Council,05-Apr-23,51301962047,"23,063.67",Parkhall Pre-School Ltd,NURSERY,Nursery Schools,Early Years - Funded 3s/4s,Care & Ed Childcare Settings
Cambridgeshire County Council,05-Apr-23,51301962048,"16,493.49",PARSON DROVE PRE SCHOOL,NURSERY,Nursery Schools,Early Years - Funded 3s/4s,Care & Ed Childcare Settings
Cambridgeshire County Council,05-Apr-23,51301962049,"60,822.64",PATACAKE DAY NURSERY ICP,NURSERY,Nursery Schools,Early Years - Funded 3s/4s,Care & Ed Childcare Settings
Cambridgeshire County Council,05-Apr-23,51301962191,600.00,Pathfinder Legal Services Limited,TRADE SUPPLIER,School Organisation and Planning - Head of Service,Head of Infrastructure,External Legal Fees
Cambridgeshire County Council,05-Apr-23,51301962050,"45,542.25",Peckover Nursery,NURSERY,Nursery Schools,Early Years - Funded 3s/4s,Care & Ed Childcare Settings
Cambridgeshire County Council,05-Apr-23,51301962051,"13,893.91",PEEK A BOO NURSERY,NURSERY,Nursery Schools,Early Years - Funded 3s/4s,Care & Ed Childcare Settings
Cambridgeshire County Council,05-Apr-23,51301962052,"16,559.48",PENDRAGON PRE SCHOOL,NURSERY,Nursery Schools,Early Years - Funded 3s/4s,Care & Ed Childcare Settings
Cambridgeshire County Council,05-Apr-23,51301962053,"18,948.61",PETER PAN PRE-SCHOOL,NURSERY,Nursery Schools,Early Years - Funded 3s/4s,Care & Ed Childcare Settings
Cambridgeshire County Council,05-Apr-23,51301962054,"26,517.44",PIPPINS PRESCHOOL,NURSERY,Nursery Schools,Early Years - Funded 3s/4s,Care & Ed Childcare Settings
Cambridgeshire County Council,05-Apr-23,51301962055,"8,542.80",PLAYLANDERS PLAYGROUP,NURSERY,Nursery Schools,Early Years - Funded 3s/4s,Care & Ed Childcare Settings
Cambridgeshire County Council,05-Apr-23,51301962056,"15,319.81",PLAYTIMES,NURSERY,Nursery Schools,Early Years - Funded 3s/4s,Care & Ed Childcare Settings
Cambridgeshire County Council,05-Apr-23,51301962057,"46,893.63",PRIORY PARK PLAYGROUP,NURSERY,Nursery Schools,Early Years - Funded 3s/4s,Care & Ed Childcare Settings
Cambridgeshire County Council,05-Apr-23,51301948318,540.00,Prospero Group,EDUCATION,Virtual School,Virtual School LACPP Financing,Mandatory Student Awards
Cambridgeshire County Council,05-Apr-23,51301958666,"5,241.60",Prospero Group,EDUCATION,Out of School Tuition,Out of School Provision EHCPs,Independent School Placements
Cambridgeshire County Council,05-Apr-23,51301961830,585.05,PT Kids,EDUCATION,Early Years Specialist Support,SEND - Independent Therapy,Independent School Placements
Cambridgeshire County Council,05-Apr-23,51301962058,"12,821.41",PUDDLEDUCKS UNDER FIVES,NURSERY,Nursery Schools,Early Years - Funded 3s/4s,Care & Ed Childcare Settings
Cambridgeshire County Council,05-Apr-23,51301955160,"2,070.00",Quantec Consultants Ltd,COMPANY,Corporate Offices,Hereward Hall,Other Term maintenance contracts
Cambridgeshire County Council,05-Apr-23,51301951985,"2,106.00",Quantec Consultants Ltd,COMPANY,Corporate Offices,Contact Centre - Amundsen House,Other Term maintenance contracts
Cambridgeshire County Council,05-Apr-23,51301962059,"13,966.05",QUEENS COLLEGE NURSERY,NURSERY,Nursery Schools,Early Years - Funded 3s/4s,Care & Ed Childcare Settings
Cambridgeshire County Council,05-Apr-23,51301962060,"38,047.60",RAINBOW DAY NURSERY,NURSERY,Nursery Schools,Early Years - Funded 3s/4s,Care & Ed Childcare Settings
Cambridgeshire County Council,05-Apr-23,51301962062,"64,527.55",RAMSEY DAY NURSERY,NURSERY,Nursery Schools,Early Years - Funded 3s/4s,Care & Ed Childcare Settings
Cambridgeshire County Council,05-Apr-23,51301962063,"35,419.42",RAMSEY PLAYGROUP,NURSERY,Nursery Schools,Early Years - Funded 3s/4s,Care & Ed Childcare Settings
Cambridgeshire County Council,05-Apr-23,51301948316,"10,000.00",RED BALLOON LEARNER CENTRE CAMBRIDGE,EDUCATION,SEN Placements,Independent Education Placements,Independent School Placements
Cambridgeshire County Council,05-Apr-23,51301948282,"10,000.00",RED BALLOON LEARNER CENTRE CAMBRIDGE,EDUCATION,SEN Placements,Independent Education Placements,Independent School Placements
Cambridgeshire County Council,05-Apr-23,51301948310,"10,000.00",RED BALLOON LEARNER CENTRE CAMBRIDGE,EDUCATION,SEN Placements,Independent Education Placements,Independent School Placements
Cambridgeshire County Council,05-Apr-23,51301948337,"10,000.00",RED BALLOON LEARNER CENTRE CAMBRIDGE,EDUCATION,SEN Placements,Independent Education Placements,Independent School Placements
Cambridgeshire County Council,05-Apr-23,51301948277,"10,000.00",RED BALLOON LEARNER CENTRE CAMBRIDGE,EDUCATION,SEN Placements,Independent Education Placements,Independent School Placements
Cambridgeshire County Council,05-Apr-23,51301962160,535.71,Redacted Personal Data,SERVICE USER,OPPD - Cost of Care - Fenland - Over 65,Older People - Fenland - Care,Direct Payments
Cambridgeshire County Council,05-Apr-23,51301962167,540.91,Redacted Personal Data,SERVICE USER,LD - South Locality - Cost of Care,LD - South Cambs - Care,Direct Payments
Cambridgeshire County Council,05-Apr-23,51301962167,540.91,Redacted Personal Data,SERVICE USER,LD - South Locality - Cost of Care,LD - South Cambs - Care,Direct Payments
Cambridgeshire County Council,05-Apr-23,51301962167,540.91,Redacted Personal Data,SERVICE USER,LD - South Locality - Cost of Care,LD - South Cambs - Care,Direct Payments
Cambridgeshire County Council,05-Apr-23,51301962167,540.91,Redacted Personal Data,SERVICE USER,LD - South Locality - Cost of Care,LD - South Cambs - Care,Direct Payments
Cambridgeshire County Council,05-Apr-23,51301962167,540.91,Redacted Personal Data,SERVICE USER,LD - South Locality - Cost of Care,LD - South Cambs - Care,Direct Payments
Cambridgeshire County Council,05-Apr-23,51301962167,540.91,Redacted Personal Data,SERVICE USER,LD - South Locality - Cost of Care,LD - South Cambs - Care,Direct Payments
Cambridgeshire County Council,05-Apr-23,51301962167,540.91,Redacted Personal Data,SERVICE USER,LD - South Locality - Cost of Care,LD - South Cambs - Care,Direct Payments
Cambridgeshire County Council,05-Apr-23,51301962167,540.91,Redacted Personal Data,SERVICE USER,LD - South Locality - Cost of Care,LD - South Cambs - Care,Direct Payments
Cambridgeshire County Council,05-Apr-23,51301962167,540.91,Redacted Personal Data,SERVICE USER,LD - South Locality - Cost of Care,LD - South Cambs - Care,Direct Payments
Cambridgeshire County Council,05-Apr-23,51301962167,540.91,Redacted Personal Data,SERVICE USER,LD - South Locality - Cost of Care,LD - South Cambs - Care,Direct Payments
Cambridgeshire County Council,05-Apr-23,51301962167,540.91,Redacted Personal Data,SERVICE USER,LD - South Locality - Cost of Care,LD - South Cambs - Care,Direct Payments
Cambridgeshire County Council,05-Apr-23,51301962167,540.91,Redacted Personal Data,SERVICE USER,LD - South Locality - Cost of Care,LD - South Cambs - Care,Direct Payments
Cambridgeshire County Council,05-Apr-23,51301962167,540.91,Redacted Personal Data,SERVICE USER,LD - South Locality - Cost of Care,LD - South Cambs - Care,Direct Payments
Cambridgeshire County Council,05-Apr-23,51301962167,540.91,Redacted Personal Data,SERVICE USER,LD - South Locality - Cost of Care,LD - South Cambs - Care,Direct Payments
Cambridgeshire County Council,05-Apr-23,51301962167,540.91,Redacted Personal Data,SERVICE USER,LD - South Locality - Cost of Care,LD - South Cambs - Care,Direct Payments
Cambridgeshire County Council,05-Apr-23,51301962167,540.91,Redacted Personal Data,SERVICE USER,LD - South Locality - Cost of Care,LD - South Cambs - Care,Direct Payments
Cambridgeshire County Council,05-Apr-23,51301962167,540.91,Redacted Personal Data,SERVICE USER,LD - South Locality - Cost of Care,LD - South Cambs - Care,Direct Payments
Cambridgeshire County Council,05-Apr-23,51301962167,540.91,Redacted Personal Data,SERVICE USER,LD - South Locality - Cost of Care,LD - South Cambs - Care,Direct Payments
Cambridgeshire County Council,05-Apr-23,51301962159,576.00,Redacted Personal Data,INDIVIDUAL,OPMH - Hunts & Fens,Older People Mental Health Hunts,Direct Payments
Cambridgeshire County Council,05-Apr-23,51301962160,750.00,Redacted Personal Data,SERVICE USER,OPPD - Cost of Care - Fenland - Over 65,Older People - Fenland - Care,Direct Payments
Cambridgeshire County Council,05-Apr-23,51301962160,750.00,Redacted Personal Data,SERVICE USER,OPPD - Cost of Care - Fenland - Over 65,Older People - Fenland - Care,Direct Payments
Cambridgeshire County Council,05-Apr-23,51301962160,750.00,Redacted Personal Data,SERVICE USER,OPPD - Cost of Care - Fenland - Over 65,Older People - Fenland - Care,Direct Payments
Cambridgeshire County Council,05-Apr-23,51301962156,787.50,Redacted Personal Data,SERVICE USER,OPPD - Cost of Care - Huntingdon - Under 65,OPPD - Under 65 - Huntingdon,Direct Payments - High Balance Reclaims
Cambridgeshire County Council,05-Apr-23,51301962156,787.50,Redacted Personal Data,SERVICE USER,OPPD - Cost of Care - Huntingdon - Under 65,OPPD - Under 65 - Huntingdon,Direct Payments - High Balance Reclaims
Cambridgeshire County Council,05-Apr-23,51301962156,787.50,Redacted Personal Data,SERVICE USER,OPPD - Cost of Care - Huntingdon - Under 65,OPPD - Under 65 - Huntingdon,Direct Payments - High Balance Reclaims
Cambridgeshire County Council,05-Apr-23,51301962156,787.50,Redacted Personal Data,SERVICE USER,OPPD - Cost of Care - Huntingdon - Under 65,OPPD - Under 65 - Huntingdon,Direct Payments - High Balance Reclaims
Cambridgeshire County Council,05-Apr-23,51301962156,787.50,Redacted Personal Data,SERVICE USER,OPPD - Cost of Care - Huntingdon - Under 65,OPPD - Under 65 - Huntingdon,Direct Payments - High Balance Reclaims
Cambridgeshire County Council,05-Apr-23,51301962156,787.50,Redacted Personal Data,SERVICE USER,OPPD - Cost of Care - Huntingdon - Under 65,OPPD - Under 65 - Huntingdon,Direct Payments - High Balance Reclaims
Cambridgeshire County Council,05-Apr-23,51301962156,787.50,Redacted Personal Data,SERVICE USER,OPPD - Cost of Care - Huntingdon - Under 65,OPPD - Under 65 - Huntingdon,Direct Payments - High Balance Reclaims
Cambridgeshire County Council,05-Apr-23,51301962156,787.50,Redacted Personal Data,SERVICE USER,OPPD - Cost of Care - Huntingdon - Under 65,OPPD - Under 65 - Huntingdon,Direct Payments - High Balance Reclaims
Cambridgeshire County Council,05-Apr-23,51301962159,"1,344.00",Redacted Personal Data,INDIVIDUAL,OPMH - Hunts & Fens,Older People Mental Health Hunts,Direct Payments
Cambridgeshire County Council,05-Apr-23,51301962159,"1,344.00",Redacted Personal Data,INDIVIDUAL,OPMH - Hunts & Fens,Older People Mental Health Hunts,Direct Payments
Cambridgeshire County Council,05-Apr-23,51301962159,"1,344.00",Redacted Personal Data,INDIVIDUAL,OPMH - Hunts & Fens,Older People Mental Health Hunts,Direct Payments
Cambridgeshire County Council,05-Apr-23,51301962159,"1,344.00",Redacted Personal Data,INDIVIDUAL,OPMH - Hunts & Fens,Older People Mental Health Hunts,Direct Payments
Cambridgeshire County Council,05-Apr-23,51301962159,"1,344.00",Redacted Personal Data,INDIVIDUAL,OPMH - Hunts & Fens,Older People Mental Health Hunts,Direct Payments
Cambridgeshire County Council,05-Apr-23,51301962159,"1,344.00",Redacted Personal Data,INDIVIDUAL,OPMH - Hunts & Fens,Older People Mental Health Hunts,Direct Payments
Cambridgeshire County Council,05-Apr-23,51301962159,"1,344.00",Redacted Personal Data,INDIVIDUAL,OPMH - Hunts & Fens,Older People Mental Health Hunts,Direct Payments
Cambridgeshire County Council,05-Apr-23,51301962159,"1,344.00",Redacted Personal Data,INDIVIDUAL,OPMH - Hunts & Fens,Older People Mental Health Hunts,Direct Payments
Cambridgeshire County Council,05-Apr-23,51301962159,"1,344.00",Redacted Personal Data,INDIVIDUAL,OPMH - Hunts & Fens,Older People Mental Health Hunts,Direct Payments
Cambridgeshire County Council,05-Apr-23,51301962158,"1,920.00",Redacted Personal Data,PARENT/GUARDIAN,LD - Young Adults Team,LD - Young Adults - Care,Direct Payments
Cambridgeshire County Council,05-Apr-23,51301962161,"2,387.40",Redacted Personal Data,INDIVIDUAL,OPPD - Under 65 - City South,OPPD - Under 65 - City South,Direct Payments
Cambridgeshire County Council,05-Apr-23,51301962066,"6,810.53",Redacted Personal Data,INDIVIDUAL,Nursery Schools,Early Years - Funded 3s/4s,Care & Ed Childcare Settings
Cambridgeshire County Council,05-Apr-23,51301961901,"9,829.31",Redacted Personal Data,INDIVIDUAL,Nursery Schools,Early Years - Funded 3s/4s,Care & Ed Childcare Settings
Cambridgeshire County Council,05-Apr-23,51301962035,"11,136.67",Redacted Personal Data,INDIVIDUAL,Nursery Schools,Early Years - Funded 3s/4s,Care & Ed Childcare Settings
Cambridgeshire County Council,05-Apr-23,51301961980,"11,649.65",Redacted Personal Data,INDIVIDUAL,Nursery Schools,Early Years - Funded 3s/4s,Care & Ed Childcare Settings
Cambridgeshire County Council,05-Apr-23,51301962158,"11,848.80",Redacted Personal Data,PARENT/GUARDIAN,LD - Young Adults Team,LD - Young Adults - Care,Direct Payments
Cambridgeshire County Council,05-Apr-23,51301962114,"12,985.98",Redacted Personal Data,INDIVIDUAL,Nursery Schools,Early Years - Funded 3s/4s,Care & Ed Childcare Settings
Cambridgeshire County Council,05-Apr-23,51301961951,"17,655.11",Redacted Personal Data,INDIVIDUAL,Nursery Schools,Early Years - Funded 3s/4s,Care & Ed Childcare Settings
Cambridgeshire County Council,05-Apr-23,51301961916,"18,129.27",Redacted Personal Data,INDIVIDUAL,Nursery Schools,Early Years - Funded 3s/4s,Care & Ed Childcare Settings
Cambridgeshire County Council,05-Apr-23,51301961838,"3,393.20",Redacted Personal Data,INDIVIDUAL,Children's Disability Direct Payments,CSC Direct Payments,Direct Payments
Cambridgeshire County Council,05-Apr-23,51301962425,519.50,Redacted Personal Data,INDIVIDUAL,LD - Hunts Locality - Cost of Care,LD - Huntingdonshire - Care,Day Care
Cambridgeshire County Council,05-Apr-23,51301962412,"1,977.80",Redacted Personal Data,FOSTER PARENT,LD - Young Adults Team,LD - Young Adults - Care,Residential Care
Cambridgeshire County Council,05-Apr-23,51301962421,"2,254.50",Redacted Personal Data,INDIVIDUAL,LD - Hunts Locality - Cost of Care,LD - Huntingdonshire - Care,Residential Care
Cambridgeshire County Council,05-Apr-23,51301962416,"2,588.50",Redacted Personal Data,INDIVIDUAL,Shared Lives,Shared Lives County Wide -Care,Living support grants
Cambridgeshire County Council,05-Apr-23,51301962417,"2,588.50",Redacted Personal Data,INDIVIDUAL,Shared Lives,Shared Lives County Wide -Care,Living support grants
Cambridgeshire County Council,05-Apr-23,51301962436,"2,588.50",Redacted Personal Data,FOSTER PARENT,LD - Young Adults Team,LD - Young Adults - Care,Residential Care
Cambridgeshire County Council,05-Apr-23,51301962422,"2,588.50",Redacted Personal Data,INDIVIDUAL,Autism and Adult Support - Cost of Care,Autism and Adult Support - Care,Residential Care
Cambridgeshire County Council,05-Apr-23,51301962430,"2,588.50",Redacted Personal Data,FOSTER PARENT,LD - Fenland Locality - Cost of Care,LD - Fenland  - Care,Residential Care
Cambridgeshire County Council,05-Apr-23,51301962423,"2,588.50",Redacted Personal Data,PARENT/GUARDIAN,Autism and Adult Support - Cost of Care,Autism and Adult Support - Care,Residential Care
Cambridgeshire County Council,05-Apr-23,51301962437,"2,588.50",Redacted Personal Data,INDIVIDUAL,LD - Young Adults Team,LD - Young Adults - Care,Residential Care
Cambridgeshire County Council,05-Apr-23,51301962147,834.00,Redacted Personal Data,INDIVIDUAL,Children's Disability Direct Payments,CSC Direct Payments,Direct Payments
Cambridgeshire County Council,05-Apr-23,51301962146,"2,209.00",Redacted Personal Data,INDIVIDUAL,Children's Disability Direct Payments,CSC Direct Payments,Direct Payments
Cambridgeshire County Council,05-Apr-23,51301962154,"1,000.00",Redacted Personal Data,SERVICE USER,Integrated Community Equipment Service,ICES (Pool),Compensation Payments
Cambridgeshire County Council,05-Apr-23,51301962396,"1,350.00",Redacted Personal Data,INDIVIDUAL,SEND High Needs Top Up,Personal Budgets,Independent School Placements
Cambridgeshire County Council,05-Apr-23,51301962065,"2,843.33",ROMSEY MILL PLAYGROUP,NURSERY,Nursery Schools,Early Years - Funded 3s/4s,Care & Ed Childcare Settings
Cambridgeshire County Council,05-Apr-23,51301962064,"7,477.48",ROMSEY MILL PLAYGROUP @ ROSS STREET,NURSERY,Nursery Schools,Early Years - Funded 3s/4s,Care & Ed Childcare Settings
Cambridgeshire County Council,05-Apr-23,51301962067,"19,359.28",ROUND HOUSE PRE SCHOOL,NURSERY,Nursery Schools,Early Years - Funded 3s/4s,Care & Ed Childcare Settings
Cambridgeshire County Council,05-Apr-23,51301962397,"100,000.00",RURAL CAMBS CITIZENS ADVICE BUREAU LTD,CHARITY,The Hub - Covid-19 Response,The Hub - Covid-19 Response,Grants
Cambridgeshire County Council,05-Apr-23,51301962068,"27,448.67",Sallowbush Preschool (Little Flames Childcare Ltd),NURSERY,Nursery Schools,Early Years - Funded 3s/4s,Care & Ed Childcare Settings
Cambridgeshire County Council,05-Apr-23,51301962069,"13,810.29",SALLY DAY CARE PARTNERSHIP,NURSERY,Nursery Schools,Early Years - Funded 3s/4s,Care & Ed Childcare Settings
Cambridgeshire County Council,05-Apr-23,51301962070,"21,617.74",SAWSTON DAY NURSERY,NURSERY,Nursery Schools,Early Years - Funded 3s/4s,Care & Ed Childcare Settings
Cambridgeshire County Council,05-Apr-23,51301962071,"31,478.26",SAWTRY DAY NURSERY,NURSERY,Nursery Schools,Early Years - Funded 3s/4s,Care & Ed Childcare Settings
Cambridgeshire County Council,05-Apr-23,51301962072,"40,672.27",SCALLYWAGS DAY NURSERY,NURSERY,Nursery Schools,Early Years - Funded 3s/4s,Care & Ed Childcare Settings
Cambridgeshire County Council,05-Apr-23,51301962073,"21,412.40",SEE SAW PLAYGROUP,NURSERY,Nursery Schools,Early Years - Funded 3s/4s,Care & Ed Childcare Settings
Cambridgeshire County Council,05-Apr-23,51301954538,"15,907.50",SHA Disability Consultancy Ltd,COMPANY,Occupational Therapy Commissioning,Occupational Therapy Commissioning,Consultancy
Cambridgeshire County Council,05-Apr-23,51301962074,"21,521.35",Shelford Day Nursery - Kanit Ltd,NURSERY,Nursery Schools,Early Years - Funded 3s/4s,Care & Ed Childcare Settings
Cambridgeshire County Council,05-Apr-23,51301962075,"14,201.46",SHIRLEY COMMUNITY PRE-SCHOOL,EDUCATION,Nursery Schools,Early Years - Funded 3s/4s,Care & Ed Childcare Settings
Cambridgeshire County Council,05-Apr-23,51301961802,721.00,Simon Fairlie,SOLETRADER,Greenspaces,Greenspaces,Equipment and Tools
Cambridgeshire County Council,05-Apr-23,51301962077,"16,948.62",SMARTIES PRE SCHOOL AND OUT OF SCHOOL CLUB,NURSERY,Nursery Schools,Early Years - Funded 3s/4s,Care & Ed Childcare Settings
Cambridgeshire County Council,05-Apr-23,51301962078,"10,834.20",SMITHS CHILDREN MONTESSORI ST LUKES CHURCH,NURSERY,Nursery Schools,Early Years - Funded 3s/4s,Care & Ed Childcare Settings
Cambridgeshire County Council,05-Apr-23,51301962079,"22,520.18",SNAP! 4 KIDS HAUXTON,NURSERY,Nursery Schools,Early Years - Funded 3s/4s,Care & Ed Childcare Settings
Cambridgeshire County Council,05-Apr-23,51301962080,"13,777.50",SOHAM PLAYGROUP@ST ANDREWS,NURSERY,Nursery Schools,Early Years - Funded 3s/4s,Care & Ed Childcare Settings
Cambridgeshire County Council,05-Apr-23,51301962081,"6,428.91",SOHAM PLAYGROUP@WETHERHALLS,NURSERY,Nursery Schools,Early Years - Funded 3s/4s,Care & Ed Childcare Settings
Cambridgeshire County Council,05-Apr-23,51301962082,"18,536.08",Spring Meadow Infant School Nursery Class,NURSERY,Nursery Schools,Early Years - Funded 3s/4s,Care & Ed Childcare Settings
Cambridgeshire County Council,05-Apr-23,51301962084,"27,992.04",ST IVES NURSERY ICP,NURSERY,Nursery Schools,Early Years - Funded 3s/4s,Care & Ed Childcare Settings
Cambridgeshire County Council,05-Apr-23,51301962085,"26,028.94",ST LEONARDS PRE-SCHOOL,NURSERY,Nursery Schools,Early Years - Funded 3s/4s,Care & Ed Childcare Settings
Cambridgeshire County Council,05-Apr-23,51301962086,"6,167.16",St Mary's Pre-School Cambridge,NURSERY,Nursery Schools,Early Years - Funded 3s/4s,Care & Ed Childcare Settings
Cambridgeshire County Council,05-Apr-23,51301962087,"20,731.00",St Philip's Nursery Class,NURSERY,Nursery Schools,Early Years - Funded 3s/4s,Care & Ed Childcare Settings
Cambridgeshire County Council,05-Apr-23,51301962485,565.63,STAR CABS LTD,TRADE SUPPLIER,Physical Disablity - Cost of Care,Countywide PD Service - Care,Social Care Transport
Cambridgeshire County Council,05-Apr-23,51301962484,990.77,STAR CABS LTD,TRADE SUPPLIER,LD - City Locality - Cost of Care,LD - City - Care,Social Care Transport
Cambridgeshire County Council,05-Apr-23,51301962480,"3,312.00",STAR CABS LTD,TRADE SUPPLIER,Adults - Central Transport,Adults Disabilities and OP Transport,Social Care Transport
Cambridgeshire County Council,05-Apr-23,51301962482,"5,163.49",STAR CABS LTD,TRADE SUPPLIER,LD - South Locality - Cost of Care,LD - South Cambs - Care,Social Care Transport
Cambridgeshire County Council,05-Apr-23,51301962479,"9,384.00",STAR CABS LTD,TRADE SUPPLIER,Adults - Central Transport,Adults Disabilities and OP Transport,Social Care Transport
Cambridgeshire County Council,05-Apr-23,51301962481,"20,010.00",STAR CABS LTD,TRADE SUPPLIER,Adults - Central Transport,Adults Disabilities and OP Transport,Social Care Transport
Cambridgeshire County Council,05-Apr-23,51301962090,"21,923.46",STEPPING STONES (LITTLEPORT),NURSERY,Nursery Schools,Early Years - Funded 3s/4s,Care & Ed Childcare Settings
Cambridgeshire County Council,05-Apr-23,51301962088,"15,507.26",STEPPING STONES DAY NURSERY ST IVES,NURSERY,Nursery Schools,Early Years - Funded 3s/4s,Care & Ed Childcare Settings
Cambridgeshire County Council,05-Apr-23,51301962089,"13,269.41",STEPPING STONES PRE-SCHOOL (LEVERINGTON),NURSERY,Nursery Schools,Early Years - Funded 3s/4s,Care & Ed Childcare Settings
Cambridgeshire County Council,05-Apr-23,51301962091,"49,501.66",STRETTON PRE SCHOOL AT FOURFIELDS,NURSERY,Nursery Schools,Early Years - Funded 3s/4s,Care & Ed Childcare Settings
Cambridgeshire County Council,05-Apr-23,51301962092,"23,552.62",STRETTON PRE-SCHOOL,NURSERY,Nursery Schools,Early Years - Funded 3s/4s,Care & Ed Childcare Settings
Cambridgeshire County Council,05-Apr-23,51301962499,"3,400.00",Sunflowers Care Ltd,CARE ESTABLISHMENT,Head of RSS,Head of RSS,Professional Fees and Hired Services
Cambridgeshire County Council,05-Apr-23,51301961869,"56,273.34",Sunhill Daycare t/a Apricot Pre-School,NURSERY,Nursery Schools,Early Years - Funded 3s/4s,Care & Ed Childcare Settings
Cambridgeshire County Council,05-Apr-23,51301960347,"5,958.49",Surecare Residential Limited,EDUCATION,SEN Placements,Independent Education Placements,Independent School Placements
Cambridgeshire County Council,05-Apr-23,51301962093,"2,420.26",Swaffham Prior Foundation Stage Unit,NURSERY,Nursery Schools,Early Years - Funded 3s/4s,Care & Ed Childcare Settings
Cambridgeshire County Council,05-Apr-23,51301956702,"3,029.93",SWARCO UK & Ireland Ltd,COMPANY,Signals,Signals Works,Accident Damage
Cambridgeshire County Council,05-Apr-23,51301956700,"3,128.05",SWARCO UK & Ireland Ltd,COMPANY,Signals,Signals Works,Traffic Signs and Lines Maintenance
Cambridgeshire County Council,05-Apr-23,51301957253,"3,439.42",SWARCO UK & Ireland Ltd,COMPANY,Signals,Signals Works,Accident Damage
Cambridgeshire County Council,05-Apr-23,51301957917,"3,692.34",SWARCO UK & Ireland Ltd,COMPANY,Signals,Signals Works,Traffic Signs and Lines Maintenance
Cambridgeshire County Council,05-Apr-23,51301951606,"3,781.67",SWARCO UK & Ireland Ltd,COMPANY,Signals,Signals Works,Accident Damage
Cambridgeshire County Council,05-Apr-23,51301951581,"4,435.34",SWARCO UK & Ireland Ltd,COMPANY,Signals,Signals Works,Accident Damage
Cambridgeshire County Council,05-Apr-23,51301951907,"4,907.04",SWARCO UK & Ireland Ltd,COMPANY,Signals,Signals Works,Accident Damage
Cambridgeshire County Council,05-Apr-23,51301957915,"5,169.10",SWARCO UK & Ireland Ltd,COMPANY,Signals,Signals Works,Accident Damage
Cambridgeshire County Council,05-Apr-23,51301951959,"5,622.77",SWARCO UK & Ireland Ltd,COMPANY,Signals,Signals Works,Private Highways Work
Cambridgeshire County Council,05-Apr-23,51301957946,"6,496.15",SWARCO UK & Ireland Ltd,COMPANY,Signals,Signals Works,Traffic Signs and Lines Maintenance
Cambridgeshire County Council,05-Apr-23,51301956714,"7,104.94",SWARCO UK & Ireland Ltd,COMPANY,Signals,Signals Works,Private Highways Work
Cambridgeshire County Council,05-Apr-23,51301956712,"9,657.96",SWARCO UK & Ireland Ltd,COMPANY,Highways - Carriageway Mtce,Highways - Carriageway Mtce,Highways - Traffic Mgt Systems
Cambridgeshire County Council,05-Apr-23,51301954569,"10,359.40",SWARCO UK & Ireland Ltd,COMPANY,Signals,Signals Works,Traffic Signs and Lines Maintenance
Cambridgeshire County Council,05-Apr-23,51301962094,"25,891.25",SWAVESEY PRE-SCHOOL,NURSERY,Nursery Schools,Early Years - Funded 3s/4s,Care & Ed Childcare Settings
Cambridgeshire County Council,05-Apr-23,51301962095,"18,076.63",SWEET PEA NURSERY,NURSERY,Nursery Schools,Early Years - Funded 3s/4s,Care & Ed Childcare Settings
Cambridgeshire County Council,05-Apr-23,51301962096,"13,251.02",TEVERSHAM PLAYGROUP,NURSERY,Nursery Schools,Early Years - Funded 3s/4s,Care & Ed Childcare Settings
Cambridgeshire County Council,05-Apr-23,51301962392,"123,352.14",Thalia WB SPV Limited,TRADE SUPPLIER,Waste - BATc,Waste - BATc Capital works,Construction - External Professional Fees
Cambridgeshire County Council,05-Apr-23,51301962097,"17,069.93",The Anchor Nursery and Preschool,NURSERY,Nursery Schools,Early Years - Funded 3s/4s,Care & Ed Childcare Settings
Cambridgeshire County Council,05-Apr-23,51301949912,"25,000.00",THE CAMBRIDGE ACORN PROJECT,TRADE SUPPLIER,PH Integrated Lifestyle Services,Obesity Children - General Childhood Obesity,Professional Fees and Hired Services
Cambridgeshire County Council,05-Apr-23,51301962076,"59,052.62",The Childcare Cooperation t/a Silks Farm Nursery School,COMPANY,Nursery Schools,Early Years - Funded 3s/4s,Care & Ed Childcare Settings
Cambridgeshire County Council,05-Apr-23,51301962098,"18,770.78",The Grove Nursery,NURSERY,Nursery Schools,Early Years - Funded 3s/4s,Care & Ed Childcare Settings
Cambridgeshire County Council,05-Apr-23,51301961991,"23,751.20",THE LANTERN GOSLINGS PRE SCHOOL,NURSERY,Nursery Schools,Early Years - Funded 3s/4s,Care & Ed Childcare Settings
Cambridgeshire County Council,05-Apr-23,51301962099,"15,466.91",The Little Lighthouse Nursery,NURSERY,Nursery Schools,Early Years - Funded 3s/4s,Care & Ed Childcare Settings
Cambridgeshire County Council,05-Apr-23,51301962023,"29,314.45",THE MEADOWS NURSERY & DAY CARE CENTRE,NURSERY,Nursery Schools,Early Years - Funded 3s/4s,Care & Ed Childcare Settings
Cambridgeshire County Council,05-Apr-23,51301961870,"26,860.02",THE NURSERY BABRAHAM,NURSERY,Nursery Schools,Early Years - Funded 3s/4s,Care & Ed Childcare Settings
Cambridgeshire County Council,05-Apr-23,51301962042,"5,999.52",THE OLD BUTTERY NURSERY,NURSERY,Nursery Schools,Early Years - Funded 3s/4s,Care & Ed Childcare Settings
Cambridgeshire County Council,05-Apr-23,51301962102,"55,091.00",The Pathfinder Preschool,NURSERY,Nursery Schools,Early Years - Funded 3s/4s,Care & Ed Childcare Settings
Cambridgeshire County Council,05-Apr-23,51301962103,"20,948.34",THE RED HOUSE DAY NURSERY,NURSERY,Nursery Schools,Early Years - Funded 3s/4s,Care & Ed Childcare Settings
Cambridgeshire County Council,05-Apr-23,51301962104,"33,984.52",THE SHADE NURSERY CLASS,NURSERY,Nursery Schools,Early Years - Funded 3s/4s,Care & Ed Childcare Settings
Cambridgeshire County Council,05-Apr-23,51301962105,"17,901.94",THE SPRING MONTESSORI,NURSERY,Nursery Schools,Early Years - Funded 3s/4s,Care & Ed Childcare Settings
Cambridgeshire County Council,05-Apr-23,51301962250,"6,510.00",THE STEPHEN PERSE FOUNDATION,NURSERY,SEN Placements,Independent Education Placements,Independent School Placements
Cambridgeshire County Council,05-Apr-23,51301962249,"6,510.00",THE STEPHEN PERSE FOUNDATION,NURSERY,SEN Placements,Independent Education Placements,Independent School Placements
Cambridgeshire County Council,05-Apr-23,51301962132,"26,194.00",THE WILLOWS DAY CARE NURSERY,NURSERY,Nursery Schools,Early Years - Funded 3s/4s,Care & Ed Childcare Settings
Cambridgeshire County Council,05-Apr-23,51301962110,"42,565.50",THE WILLOWS DAY NURSERY - MARCH,NURSERY,Nursery Schools,Early Years - Funded 3s/4s,Care & Ed Childcare Settings
Cambridgeshire County Council,05-Apr-23,51301962109,"70,717.86",THE WILLOWS DAY NURSERY (CHATTERIS),NURSERY,Nursery Schools,Early Years - Funded 3s/4s,Care & Ed Childcare Settings
Cambridgeshire County Council,05-Apr-23,51301962111,"23,079.50",The Woodland Rose Day Nursery,NURSERY,Nursery Schools,Early Years - Funded 3s/4s,Care & Ed Childcare Settings
Cambridgeshire County Council,05-Apr-23,51301962112,"15,792.35",THOMAS EATON CP SCHOOL PLAYGROUP,NURSERY,Nursery Schools,Early Years - Funded 3s/4s,Care & Ed Childcare Settings
Cambridgeshire County Council,05-Apr-23,51301962113,"35,974.07",THORNDOWN PRE-SCHOOL,NURSERY,Nursery Schools,Early Years - Funded 3s/4s,Care & Ed Childcare Settings
Cambridgeshire County Council,05-Apr-23,51301962115,"10,762.91",TIDDLYWINKS PRE-SCHOOL,NURSERY,Nursery Schools,Early Years - Funded 3s/4s,Care & Ed Childcare Settings
Cambridgeshire County Council,05-Apr-23,51301962472,981.24,TK Transport Solutions LTD,COMPANY,LD - Hunts Locality - Cost of Care,LD - Huntingdonshire - Care,Social Care Transport
Cambridgeshire County Council,05-Apr-23,51301962473,"2,351.52",TK Transport Solutions LTD,COMPANY,LAC Transport,LAC Transport - Out of county,Social Care Transport
Cambridgeshire County Council,05-Apr-23,51301962474,"7,562.40",TK Transport Solutions LTD,COMPANY,LD - Young Adults Team,LD - Young Adults - Care,Social Care Transport
Cambridgeshire County Council,05-Apr-23,51301956693,"44,291.41",TOTALENERGIES GAS AND POWER LTD,TRADE SUPPLIER,Signals,Signals Works,Street Light Energy
Cambridgeshire County Council,05-Apr-23,51301958585,"394,717.25",TOTALENERGIES GAS AND POWER LTD,TRADE SUPPLIER,Street Lighting,Street Lighting Energy,Street Light Energy
Cambridgeshire County Council,05-Apr-23,51301962116,"55,756.06",TREETOPS DAY NURSERY,NURSERY,Nursery Schools,Early Years - Funded 3s/4s,Care & Ed Childcare Settings
Cambridgeshire County Council,05-Apr-23,51301962117,"13,726.44",TRUMPINGTON MEADOWS NURSERY,NURSERY,Nursery Schools,Early Years - Funded 3s/4s,Care & Ed Childcare Settings
Cambridgeshire County Council,05-Apr-23,51301962118,"24,077.43",Twizzle Tops Day Nursery,NURSERY,Nursery Schools,Early Years - Funded 3s/4s,Care & Ed Childcare Settings
Cambridgeshire County Council,05-Apr-23,51301962119,"29,812.72",UNDER FIVES ROUNDABOUT,NURSERY,Nursery Schools,Early Years - Funded 3s/4s,Care & Ed Childcare Settings
Cambridgeshire County Council,05-Apr-23,51301962120,"42,903.88",UNIVERSITY NURSERY,NURSERY,Nursery Schools,Early Years - Funded 3s/4s,Care & Ed Childcare Settings
Cambridgeshire County Council,05-Apr-23,51301962121,"29,649.91",University of Cambridge Nursery Class,NURSERY,Nursery Schools,Early Years - Funded 3s/4s,Care & Ed Childcare Settings
Cambridgeshire County Council,05-Apr-23,51301962123,"25,875.71",UPWOOD SMALL TO TALL,NURSERY,Nursery Schools,Early Years - Funded 3s/4s,Care & Ed Childcare Settings
Cambridgeshire County Council,05-Apr-23,51301962124,"32,730.12",VANTAGE PARK DAY NURSERY,EDUCATION,Nursery Schools,Early Years - Funded 3s/4s,Care & Ed Childcare Settings
Cambridgeshire County Council,05-Apr-23,51301962106,"31,241.12",VINE PRE-SCHOOL,NURSERY,Nursery Schools,Early Years - Funded 3s/4s,Care & Ed Childcare Settings
Cambridgeshire County Council,05-Apr-23,51301962125,"26,990.19",WARBOYS UNDER FIVES PLAY GROUP,NURSERY,Nursery Schools,Early Years - Funded 3s/4s,Care & Ed Childcare Settings
Cambridgeshire County Council,05-Apr-23,51301962126,"14,096.86",WATERBEACH COMMUNITY PLAYGROUP,NURSERY,Nursery Schools,Early Years - Funded 3s/4s,Care & Ed Childcare Settings
Cambridgeshire County Council,05-Apr-23,51301962107,"33,044.31",WENDY HOUSE DAY NURSERY,NURSERY,Nursery Schools,Early Years - Funded 3s/4s,Care & Ed Childcare Settings
Cambridgeshire County Council,05-Apr-23,51301962108,"33,766.59",WENDY HOUSE DAY NURSERY IMPINGTON,NURSERY,Nursery Schools,Early Years - Funded 3s/4s,Care & Ed Childcare Settings
Cambridgeshire County Council,05-Apr-23,51301962122,"59,527.80",WEST CAMBRIDGE DAY NURSERY,NURSERY,Nursery Schools,Early Years - Funded 3s/4s,Care & Ed Childcare Settings
Cambridgeshire County Council,05-Apr-23,51301962127,"13,534.00",WHEATFIELDS NURSERY ASSOCIATION,NURSERY,Nursery Schools,Early Years - Funded 3s/4s,Care & Ed Childcare Settings
Cambridgeshire County Council,05-Apr-23,51301962128,"25,460.37",WHITEHALL SCHOOL,NURSERY,Nursery Schools,Early Years - Funded 3s/4s,Care & Ed Childcare Settings
Cambridgeshire County Council,05-Apr-23,51301962129,"10,316.06",WHITSERS PRE-SCHOOL PLAYGROUP,NURSERY,Nursery Schools,Early Years - Funded 3s/4s,Care & Ed Childcare Settings
Cambridgeshire County Council,05-Apr-23,51301962130,"20,394.79",WILDAWOOD FOREST SCHOOL,EDUCATION,Nursery Schools,Early Years - Funded 3s/4s,Care & Ed Childcare Settings
Cambridgeshire County Council,05-Apr-23,51301962131,"33,718.73",WILLINGHAM PRIMARY SCHOOL,EDUCATION,Nursery Schools,Early Years - Funded 3s/4s,Care & Ed Childcare Settings
Cambridgeshire County Council,05-Apr-23,51301962133,"18,888.26",Wintringham Nursery Class,NURSERY,Nursery Schools,Early Years - Funded 3s/4s,Care & Ed Childcare Settings
Cambridgeshire County Council,05-Apr-23,51301962134,"18,720.72",WISBECH ST MARY PRE SCHOOL,NURSERY,Nursery Schools,Early Years - Funded 3s/4s,Care & Ed Childcare Settings
Cambridgeshire County Council,05-Apr-23,51301962135,"22,974.85",WITCHFORD RACKHAM PRE-SCHOOL,NURSERY,Nursery Schools,Early Years - Funded 3s/4s,Care & Ed Childcare Settings
Cambridgeshire County Council,05-Apr-23,51301962447,"5,365.80",Womble Bond Dickinson (UK) LLP,COMPANY,GCP - Science Park to Waterbeach (A10 North Study),GCP - Science Park to Waterbeach (A10 North Study),Construction - External Professional Fees
Cambridgeshire County Council,05-Apr-23,51301958423,864.00,Woodventurers Woodland Learning Ltd,EDUCATION,Out of School Tuition,Out of School Provision EHCPs,Independent School Placements
Cambridgeshire County Council,05-Apr-23,51301949948,"8,208.43",WSP UK LTD T/A WSP INTEGRATED BUILDING SERVICES,TRADE SUPPLIER,Combined Authority Schemes,Combined Authority Schemes,Construction - External Professional Fees
Cambridgeshire County Council,05-Apr-23,51301949949,"22,598.75",WSP UK LTD T/A WSP INTEGRATED BUILDING SERVICES,TRADE SUPPLIER,Combined Authority Schemes,Combined Authority Schemes,Construction - External Professional Fees
Cambridgeshire County Council,05-Apr-23,51301962083,"29,369.17",WYTON CHILDREN AND FAMILY SERVICES,NURSERY,Nursery Schools,Early Years - Funded 3s/4s,Care & Ed Childcare Settings
Cambridgeshire County Council,05-Apr-23,51301962136,"14,185.58",Wyton On The Hill Primary,EDUCATION,Nursery Schools,Early Years - Funded 3s/4s,Care & Ed Childcare Settings
Cambridgeshire County Council,05-Apr-23,51301962137,"16,707.96",YMCA Childcare Blinco Grove,NURSERY,Nursery Schools,Early Years - Funded 3s/4s,Care & Ed Childcare Settings
Cambridgeshire County Council,05-Apr-23,51301948167,810.00,YOUNG PEOPLE MARCH LTD,LOCAL CLUBS & GROUPS,Virtual School,Virtual School LACPP Financing,Mandatory Student Awards
Cambridgeshire County Council,06-Apr-23,51301962818,"-1,044.23",22 KINGS RIPTON ROAD (REGARD),CARE ESTABLISHMENT,LD - Hunts Locality - Cost of Care,LD - Huntingdonshire - Care,Supported Living
Cambridgeshire County Council,06-Apr-23,51301962818,"-1,044.23",22 KINGS RIPTON ROAD (REGARD),CARE ESTABLISHMENT,LD - Hunts Locality - Cost of Care,LD - Huntingdonshire - Care,Supported Living
Cambridgeshire County Council,06-Apr-23,51301962818,"-1,044.23",22 KINGS RIPTON ROAD (REGARD),CARE ESTABLISHMENT,LD - Hunts Locality - Cost of Care,LD - Huntingdonshire - Care,Supported Living
Cambridgeshire County Council,06-Apr-23,51301962818,"-1,044.23",22 KINGS RIPTON ROAD (REGARD),CARE ESTABLISHMENT,LD - Hunts Locality - Cost of Care,LD - Huntingdonshire - Care,Supported Living
Cambridgeshire County Council,06-Apr-23,51301962818,"-1,044.23",22 KINGS RIPTON ROAD (REGARD),CARE ESTABLISHMENT,LD - Hunts Locality - Cost of Care,LD - Huntingdonshire - Care,Supported Living
Cambridgeshire County Council,06-Apr-23,51301962818,"-1,044.23",22 KINGS RIPTON ROAD (REGARD),CARE ESTABLISHMENT,LD - Hunts Locality - Cost of Care,LD - Huntingdonshire - Care,Supported Living
Cambridgeshire County Council,06-Apr-23,51301962818,"-1,044.23",22 KINGS RIPTON ROAD (REGARD),CARE ESTABLISHMENT,LD - Hunts Locality - Cost of Care,LD - Huntingdonshire - Care,Supported Living
Cambridgeshire County Council,06-Apr-23,51301962818,"-1,044.23",22 KINGS RIPTON ROAD (REGARD),CARE ESTABLISHMENT,LD - Hunts Locality - Cost of Care,LD - Huntingdonshire - Care,Supported Living
Cambridgeshire County Council,06-Apr-23,51301962818,"-1,044.23",22 KINGS RIPTON ROAD (REGARD),CARE ESTABLISHMENT,LD - Hunts Locality - Cost of Care,LD - Huntingdonshire - Care,Supported Living
Cambridgeshire County Council,06-Apr-23,51301962818,"-1,044.23",22 KINGS RIPTON ROAD (REGARD),CARE ESTABLISHMENT,LD - Hunts Locality - Cost of Care,LD - Huntingdonshire - Care,Supported Living
Cambridgeshire County Council,06-Apr-23,51301962818,"-1,044.23",22 KINGS RIPTON ROAD (REGARD),CARE ESTABLISHMENT,LD - Hunts Locality - Cost of Care,LD - Huntingdonshire - Care,Supported Living
Cambridgeshire County Council,06-Apr-23,51301962818,"-1,044.23",22 KINGS RIPTON ROAD (REGARD),CARE ESTABLISHMENT,LD - Hunts Locality - Cost of Care,LD - Huntingdonshire - Care,Supported Living
Cambridgeshire County Council,06-Apr-23,51301962818,"-1,044.23",22 KINGS RIPTON ROAD (REGARD),CARE ESTABLISHMENT,LD - Hunts Locality - Cost of Care,LD - Huntingdonshire - Care,Supported Living
Cambridgeshire County Council,06-Apr-23,51301962818,"-1,044.23",22 KINGS RIPTON ROAD (REGARD),CARE ESTABLISHMENT,LD - Hunts Locality - Cost of Care,LD - Huntingdonshire - Care,Supported Living
Cambridgeshire County Council,06-Apr-23,51301962818,"-1,044.23",22 KINGS RIPTON ROAD (REGARD),CARE ESTABLISHMENT,LD - Hunts Locality - Cost of Care,LD - Huntingdonshire - Care,Supported Living
Cambridgeshire County Council,06-Apr-23,51301962818,"-1,044.23",22 KINGS RIPTON ROAD (REGARD),CARE ESTABLISHMENT,LD - Hunts Locality - Cost of Care,LD - Huntingdonshire - Care,Supported Living
Cambridgeshire County Council,06-Apr-23,51301962818,"-1,044.23",22 KINGS RIPTON ROAD (REGARD),CARE ESTABLISHMENT,LD - Hunts Locality - Cost of Care,LD - Huntingdonshire - Care,Supported Living
Cambridgeshire County Council,06-Apr-23,51301962818,"-1,044.23",22 KINGS RIPTON ROAD (REGARD),CARE ESTABLISHMENT,LD - Hunts Locality - Cost of Care,LD - Huntingdonshire - Care,Supported Living
Cambridgeshire County Council,06-Apr-23,51301962818,"-1,044.23",22 KINGS RIPTON ROAD (REGARD),CARE ESTABLISHMENT,LD - Hunts Locality - Cost of Care,LD - Huntingdonshire - Care,Supported Living
Cambridgeshire County Council,06-Apr-23,51301962818,"-1,044.23",22 KINGS RIPTON ROAD (REGARD),CARE ESTABLISHMENT,LD - Hunts Locality - Cost of Care,LD - Huntingdonshire - Care,Supported Living
Cambridgeshire County Council,06-Apr-23,51301962818,"-1,044.23",22 KINGS RIPTON ROAD (REGARD),CARE ESTABLISHMENT,LD - Hunts Locality - Cost of Care,LD - Huntingdonshire - Care,Supported Living
Cambridgeshire County Council,06-Apr-23,51301962818,"-1,044.23",22 KINGS RIPTON ROAD (REGARD),CARE ESTABLISHMENT,LD - Hunts Locality - Cost of Care,LD - Huntingdonshire - Care,Supported Living
Cambridgeshire County Council,06-Apr-23,51301962818,"-1,044.23",22 KINGS RIPTON ROAD (REGARD),CARE ESTABLISHMENT,LD - Hunts Locality - Cost of Care,LD - Huntingdonshire - Care,Supported Living
Cambridgeshire County Council,06-Apr-23,51301962818,"-1,044.23",22 KINGS RIPTON ROAD (REGARD),CARE ESTABLISHMENT,LD - Hunts Locality - Cost of Care,LD - Huntingdonshire - Care,Supported Living
Cambridgeshire County Council,06-Apr-23,51301962818,"-1,044.23",22 KINGS RIPTON ROAD (REGARD),CARE ESTABLISHMENT,LD - Hunts Locality - Cost of Care,LD - Huntingdonshire - Care,Supported Living
Cambridgeshire County Council,06-Apr-23,51301962818,"-1,044.23",22 KINGS RIPTON ROAD (REGARD),CARE ESTABLISHMENT,LD - Hunts Locality - Cost of Care,LD - Huntingdonshire - Care,Supported Living
Cambridgeshire County Council,06-Apr-23,51301962818,"-1,044.23",22 KINGS RIPTON ROAD (REGARD),CARE ESTABLISHMENT,LD - Hunts Locality - Cost of Care,LD - Huntingdonshire - Care,Supported Living
Cambridgeshire County Council,06-Apr-23,51301962818,"-1,044.23",22 KINGS RIPTON ROAD (REGARD),CARE ESTABLISHMENT,LD - Hunts Locality - Cost of Care,LD - Huntingdonshire - Care,Supported Living
Cambridgeshire County Council,06-Apr-23,51301962818,"-1,044.23",22 KINGS RIPTON ROAD (REGARD),CARE ESTABLISHMENT,LD - Hunts Locality - Cost of Care,LD - Huntingdonshire - Care,Supported Living
Cambridgeshire County Council,06-Apr-23,51301962818,"-1,044.23",22 KINGS RIPTON ROAD (REGARD),CARE ESTABLISHMENT,LD - Hunts Locality - Cost of Care,LD - Huntingdonshire - Care,Supported Living
Cambridgeshire County Council,06-Apr-23,51301962818,"-1,044.23",22 KINGS RIPTON ROAD (REGARD),CARE ESTABLISHMENT,LD - Hunts Locality - Cost of Care,LD - Huntingdonshire - Care,Supported Living
Cambridgeshire County Council,06-Apr-23,51301962818,"-1,044.23",22 KINGS RIPTON ROAD (REGARD),CARE ESTABLISHMENT,LD - Hunts Locality - Cost of Care,LD - Huntingdonshire - Care,Supported Living
Cambridgeshire County Council,06-Apr-23,51301962818,"-1,044.23",22 KINGS RIPTON ROAD (REGARD),CARE ESTABLISHMENT,LD - Hunts Locality - Cost of Care,LD - Huntingdonshire - Care,Supported Living
Cambridgeshire County Council,06-Apr-23,51301962818,"-1,044.23",22 KINGS RIPTON ROAD (REGARD),CARE ESTABLISHMENT,LD - Hunts Locality - Cost of Care,LD - Huntingdonshire - Care,Supported Living
Cambridgeshire County Council,06-Apr-23,51301962818,"-1,044.23",22 KINGS RIPTON ROAD (REGARD),CARE ESTABLISHMENT,LD - Hunts Locality - Cost of Care,LD - Huntingdonshire - Care,Supported Living
Cambridgeshire County Council,06-Apr-23,51301962818,"-1,044.23",22 KINGS RIPTON ROAD (REGARD),CARE ESTABLISHMENT,LD - Hunts Locality - Cost of Care,LD - Huntingdonshire - Care,Supported Living
Cambridgeshire County Council,06-Apr-23,51301962818,"-1,044.23",22 KINGS RIPTON ROAD (REGARD),CARE ESTABLISHMENT,LD - Hunts Locality - Cost of Care,LD - Huntingdonshire - Care,Supported Living
Cambridgeshire County Council,06-Apr-23,51301962818,"-1,044.23",22 KINGS RIPTON ROAD (REGARD),CARE ESTABLISHMENT,LD - Hunts Locality - Cost of Care,LD - Huntingdonshire - Care,Supported Living
Cambridgeshire County Council,06-Apr-23,51301962818,"-1,044.23",22 KINGS RIPTON ROAD (REGARD),CARE ESTABLISHMENT,LD - Hunts Locality - Cost of Care,LD - Huntingdonshire - Care,Supported Living
Cambridgeshire County Council,06-Apr-23,51301962818,"-1,044.23",22 KINGS RIPTON ROAD (REGARD),CARE ESTABLISHMENT,LD - Hunts Locality - Cost of Care,LD - Huntingdonshire - Care,Supported Living
Cambridgeshire County Council,06-Apr-23,51301962818,"-1,044.23",22 KINGS RIPTON ROAD (REGARD),CARE ESTABLISHMENT,LD - Hunts Locality - Cost of Care,LD - Huntingdonshire - Care,Supported Living
Cambridgeshire County Council,06-Apr-23,51301962818,"-1,044.23",22 KINGS RIPTON ROAD (REGARD),CARE ESTABLISHMENT,LD - Hunts Locality - Cost of Care,LD - Huntingdonshire - Care,Supported Living
Cambridgeshire County Council,06-Apr-23,51301962818,"-1,044.23",22 KINGS RIPTON ROAD (REGARD),CARE ESTABLISHMENT,LD - Hunts Locality - Cost of Care,LD - Huntingdonshire - Care,Supported Living
Cambridgeshire County Council,06-Apr-23,51301962818,"-1,044.23",22 KINGS RIPTON ROAD (REGARD),CARE ESTABLISHMENT,LD - Hunts Locality - Cost of Care,LD - Huntingdonshire - Care,Supported Living
Cambridgeshire County Council,06-Apr-23,51301962818,"-1,044.23",22 KINGS RIPTON ROAD (REGARD),CARE ESTABLISHMENT,LD - Hunts Locality - Cost of Care,LD - Huntingdonshire - Care,Supported Living
Cambridgeshire County Council,06-Apr-23,51301962818,"-1,044.23",22 KINGS RIPTON ROAD (REGARD),CARE ESTABLISHMENT,LD - Hunts Locality - Cost of Care,LD - Huntingdonshire - Care,Supported Living
Cambridgeshire County Council,06-Apr-23,51301962818,"-1,044.23",22 KINGS RIPTON ROAD (REGARD),CARE ESTABLISHMENT,LD - Hunts Locality - Cost of Care,LD - Huntingdonshire - Care,Supported Living
Cambridgeshire County Council,06-Apr-23,51301962818,"-1,044.23",22 KINGS RIPTON ROAD (REGARD),CARE ESTABLISHMENT,LD - Hunts Locality - Cost of Care,LD - Huntingdonshire - Care,Supported Living
Cambridgeshire County Council,06-Apr-23,51301962818,"-1,044.23",22 KINGS RIPTON ROAD (REGARD),CARE ESTABLISHMENT,LD - Hunts Locality - Cost of Care,LD - Huntingdonshire - Care,Supported Living
Cambridgeshire County Council,06-Apr-23,51301962818,"-1,044.23",22 KINGS RIPTON ROAD (REGARD),CARE ESTABLISHMENT,LD - Hunts Locality - Cost of Care,LD - Huntingdonshire - Care,Supported Living
Cambridgeshire County Council,06-Apr-23,51301962818,"-1,044.23",22 KINGS RIPTON ROAD (REGARD),CARE ESTABLISHMENT,LD - Hunts Locality - Cost of Care,LD - Huntingdonshire - Care,Supported Living
Cambridgeshire County Council,06-Apr-23,51301962818,"-1,044.23",22 KINGS RIPTON ROAD (REGARD),CARE ESTABLISHMENT,LD - Hunts Locality - Cost of Care,LD - Huntingdonshire - Care,Supported Living
Cambridgeshire County Council,06-Apr-23,51301962816,-837.54,22 KINGS RIPTON ROAD (REGARD),CARE ESTABLISHMENT,LD - Hunts Locality - Cost of Care,LD - Huntingdonshire - Care,Supported Living
Cambridgeshire County Council,06-Apr-23,51301962816,-837.54,22 KINGS RIPTON ROAD (REGARD),CARE ESTABLISHMENT,LD - Hunts Locality - Cost of Care,LD - Huntingdonshire - Care,Supported Living
Cambridgeshire County Council,06-Apr-23,51301962816,-837.54,22 KINGS RIPTON ROAD (REGARD),CARE ESTABLISHMENT,LD - Hunts Locality - Cost of Care,LD - Huntingdonshire - Care,Supported Living
Cambridgeshire County Council,06-Apr-23,51301962816,-837.54,22 KINGS RIPTON ROAD (REGARD),CARE ESTABLISHMENT,LD - Hunts Locality - Cost of Care,LD - Huntingdonshire - Care,Supported Living
Cambridgeshire County Council,06-Apr-23,51301962816,-837.54,22 KINGS RIPTON ROAD (REGARD),CARE ESTABLISHMENT,LD - Hunts Locality - Cost of Care,LD - Huntingdonshire - Care,Supported Living
Cambridgeshire County Council,06-Apr-23,51301962816,-837.54,22 KINGS RIPTON ROAD (REGARD),CARE ESTABLISHMENT,LD - Hunts Locality - Cost of Care,LD - Huntingdonshire - Care,Supported Living
Cambridgeshire County Council,06-Apr-23,51301962816,-837.54,22 KINGS RIPTON ROAD (REGARD),CARE ESTABLISHMENT,LD - Hunts Locality - Cost of Care,LD - Huntingdonshire - Care,Supported Living
Cambridgeshire County Council,06-Apr-23,51301962816,-837.54,22 KINGS RIPTON ROAD (REGARD),CARE ESTABLISHMENT,LD - Hunts Locality - Cost of Care,LD - Huntingdonshire - Care,Supported Living
Cambridgeshire County Council,06-Apr-23,51301962816,-837.54,22 KINGS RIPTON ROAD (REGARD),CARE ESTABLISHMENT,LD - Hunts Locality - Cost of Care,LD - Huntingdonshire - Care,Supported Living
Cambridgeshire County Council,06-Apr-23,51301962816,-837.54,22 KINGS RIPTON ROAD (REGARD),CARE ESTABLISHMENT,LD - Hunts Locality - Cost of Care,LD - Huntingdonshire - Care,Supported Living
Cambridgeshire County Council,06-Apr-23,51301962816,-837.54,22 KINGS RIPTON ROAD (REGARD),CARE ESTABLISHMENT,LD - Hunts Locality - Cost of Care,LD - Huntingdonshire - Care,Supported Living
Cambridgeshire County Council,06-Apr-23,51301962816,-837.54,22 KINGS RIPTON ROAD (REGARD),CARE ESTABLISHMENT,LD - Hunts Locality - Cost of Care,LD - Huntingdonshire - Care,Supported Living
Cambridgeshire County Council,06-Apr-23,51301962816,-837.54,22 KINGS RIPTON ROAD (REGARD),CARE ESTABLISHMENT,LD - Hunts Locality - Cost of Care,LD - Huntingdonshire - Care,Supported Living
Cambridgeshire County Council,06-Apr-23,51301962816,-837.54,22 KINGS RIPTON ROAD (REGARD),CARE ESTABLISHMENT,LD - Hunts Locality - Cost of Care,LD - Huntingdonshire - Care,Supported Living
Cambridgeshire County Council,06-Apr-23,51301962816,-837.54,22 KINGS RIPTON ROAD (REGARD),CARE ESTABLISHMENT,LD - Hunts Locality - Cost of Care,LD - Huntingdonshire - Care,Supported Living
Cambridgeshire County Council,06-Apr-23,51301962816,-837.54,22 KINGS RIPTON ROAD (REGARD),CARE ESTABLISHMENT,LD - Hunts Locality - Cost of Care,LD - Huntingdonshire - Care,Supported Living
Cambridgeshire County Council,06-Apr-23,51301962816,-837.54,22 KINGS RIPTON ROAD (REGARD),CARE ESTABLISHMENT,LD - Hunts Locality - Cost of Care,LD - Huntingdonshire - Care,Supported Living
Cambridgeshire County Council,06-Apr-23,51301962816,-837.54,22 KINGS RIPTON ROAD (REGARD),CARE ESTABLISHMENT,LD - Hunts Locality - Cost of Care,LD - Huntingdonshire - Care,Supported Living
Cambridgeshire County Council,06-Apr-23,51301962816,-837.54,22 KINGS RIPTON ROAD (REGARD),CARE ESTABLISHMENT,LD - Hunts Locality - Cost of Care,LD - Huntingdonshire - Care,Supported Living
Cambridgeshire County Council,06-Apr-23,51301962816,-837.54,22 KINGS RIPTON ROAD (REGARD),CARE ESTABLISHMENT,LD - Hunts Locality - Cost of Care,LD - Huntingdonshire - Care,Supported Living
Cambridgeshire County Council,06-Apr-23,51301962816,-837.54,22 KINGS RIPTON ROAD (REGARD),CARE ESTABLISHMENT,LD - Hunts Locality - Cost of Care,LD - Huntingdonshire - Care,Supported Living
Cambridgeshire County Council,06-Apr-23,51301962816,-837.54,22 KINGS RIPTON ROAD (REGARD),CARE ESTABLISHMENT,LD - Hunts Locality - Cost of Care,LD - Huntingdonshire - Care,Supported Living
Cambridgeshire County Council,06-Apr-23,51301962816,-837.54,22 KINGS RIPTON ROAD (REGARD),CARE ESTABLISHMENT,LD - Hunts Locality - Cost of Care,LD - Huntingdonshire - Care,Supported Living
Cambridgeshire County Council,06-Apr-23,51301962816,-837.54,22 KINGS RIPTON ROAD (REGARD),CARE ESTABLISHMENT,LD - Hunts Locality - Cost of Care,LD - Huntingdonshire - Care,Supported Living
Cambridgeshire County Council,06-Apr-23,51301962816,-837.54,22 KINGS RIPTON ROAD (REGARD),CARE ESTABLISHMENT,LD - Hunts Locality - Cost of Care,LD - Huntingdonshire - Care,Supported Living
Cambridgeshire County Council,06-Apr-23,51301962816,-837.54,22 KINGS RIPTON ROAD (REGARD),CARE ESTABLISHMENT,LD - Hunts Locality - Cost of Care,LD - Huntingdonshire - Care,Supported Living
Cambridgeshire County Council,06-Apr-23,51301962816,-837.54,22 KINGS RIPTON ROAD (REGARD),CARE ESTABLISHMENT,LD - Hunts Locality - Cost of Care,LD - Huntingdonshire - Care,Supported Living
Cambridgeshire County Council,06-Apr-23,51301962816,-837.54,22 KINGS RIPTON ROAD (REGARD),CARE ESTABLISHMENT,LD - Hunts Locality - Cost of Care,LD - Huntingdonshire - Care,Supported Living
Cambridgeshire County Council,06-Apr-23,51301962816,-837.54,22 KINGS RIPTON ROAD (REGARD),CARE ESTABLISHMENT,LD - Hunts Locality - Cost of Care,LD - Huntingdonshire - Care,Supported Living
Cambridgeshire County Council,06-Apr-23,51301962816,-837.54,22 KINGS RIPTON ROAD (REGARD),CARE ESTABLISHMENT,LD - Hunts Locality - Cost of Care,LD - Huntingdonshire - Care,Supported Living
Cambridgeshire County Council,06-Apr-23,51301962816,-837.54,22 KINGS RIPTON ROAD (REGARD),CARE ESTABLISHMENT,LD - Hunts Locality - Cost of Care,LD - Huntingdonshire - Care,Supported Living
Cambridgeshire County Council,06-Apr-23,51301962816,-837.54,22 KINGS RIPTON ROAD (REGARD),CARE ESTABLISHMENT,LD - Hunts Locality - Cost of Care,LD - Huntingdonshire - Care,Supported Living
Cambridgeshire County Council,06-Apr-23,51301962816,-837.54,22 KINGS RIPTON ROAD (REGARD),CARE ESTABLISHMENT,LD - Hunts Locality - Cost of Care,LD - Huntingdonshire - Care,Supported Living
Cambridgeshire County Council,06-Apr-23,51301962816,-837.54,22 KINGS RIPTON ROAD (REGARD),CARE ESTABLISHMENT,LD - Hunts Locality - Cost of Care,LD - Huntingdonshire - Care,Supported Living
Cambridgeshire County Council,06-Apr-23,51301962816,-837.54,22 KINGS RIPTON ROAD (REGARD),CARE ESTABLISHMENT,LD - Hunts Locality - Cost of Care,LD - Huntingdonshire - Care,Supported Living
Cambridgeshire County Council,06-Apr-23,51301962816,-837.54,22 KINGS RIPTON ROAD (REGARD),CARE ESTABLISHMENT,LD - Hunts Locality - Cost of Care,LD - Huntingdonshire - Care,Supported Living
Cambridgeshire County Council,06-Apr-23,51301962816,-837.54,22 KINGS RIPTON ROAD (REGARD),CARE ESTABLISHMENT,LD - Hunts Locality - Cost of Care,LD - Huntingdonshire - Care,Supported Living
Cambridgeshire County Council,06-Apr-23,51301962816,-837.54,22 KINGS RIPTON ROAD (REGARD),CARE ESTABLISHMENT,LD - Hunts Locality - Cost of Care,LD - Huntingdonshire - Care,Supported Living
Cambridgeshire County Council,06-Apr-23,51301962816,-837.54,22 KINGS RIPTON ROAD (REGARD),CARE ESTABLISHMENT,LD - Hunts Locality - Cost of Care,LD - Huntingdonshire - Care,Supported Living
Cambridgeshire County Council,06-Apr-23,51301962816,-837.54,22 KINGS RIPTON ROAD (REGARD),CARE ESTABLISHMENT,LD - Hunts Locality - Cost of Care,LD - Huntingdonshire - Care,Supported Living
Cambridgeshire County Council,06-Apr-23,51301962816,-837.54,22 KINGS RIPTON ROAD (REGARD),CARE ESTABLISHMENT,LD - Hunts Locality - Cost of Care,LD - Huntingdonshire - Care,Supported Living
Cambridgeshire County Council,06-Apr-23,51301962816,-837.54,22 KINGS RIPTON ROAD (REGARD),CARE ESTABLISHMENT,LD - Hunts Locality - Cost of Care,LD - Huntingdonshire - Care,Supported Living
Cambridgeshire County Council,06-Apr-23,51301962816,-837.54,22 KINGS RIPTON ROAD (REGARD),CARE ESTABLISHMENT,LD - Hunts Locality - Cost of Care,LD - Huntingdonshire - Care,Supported Living
Cambridgeshire County Council,06-Apr-23,51301962816,-837.54,22 KINGS RIPTON ROAD (REGARD),CARE ESTABLISHMENT,LD - Hunts Locality - Cost of Care,LD - Huntingdonshire - Care,Supported Living
Cambridgeshire County Council,06-Apr-23,51301962816,-837.54,22 KINGS RIPTON ROAD (REGARD),CARE ESTABLISHMENT,LD - Hunts Locality - Cost of Care,LD - Huntingdonshire - Care,Supported Living
Cambridgeshire County Council,06-Apr-23,51301962816,-837.54,22 KINGS RIPTON ROAD (REGARD),CARE ESTABLISHMENT,LD - Hunts Locality - Cost of Care,LD - Huntingdonshire - Care,Supported Living
Cambridgeshire County Council,06-Apr-23,51301962816,-837.54,22 KINGS RIPTON ROAD (REGARD),CARE ESTABLISHMENT,LD - Hunts Locality - Cost of Care,LD - Huntingdonshire - Care,Supported Living
Cambridgeshire County Council,06-Apr-23,51301962816,-837.54,22 KINGS RIPTON ROAD (REGARD),CARE ESTABLISHMENT,LD - Hunts Locality - Cost of Care,LD - Huntingdonshire - Care,Supported Living
Cambridgeshire County Council,06-Apr-23,51301962816,-837.54,22 KINGS RIPTON ROAD (REGARD),CARE ESTABLISHMENT,LD - Hunts Locality - Cost of Care,LD - Huntingdonshire - Care,Supported Living
Cambridgeshire County Council,06-Apr-23,51301962816,-837.54,22 KINGS RIPTON ROAD (REGARD),CARE ESTABLISHMENT,LD - Hunts Locality - Cost of Care,LD - Huntingdonshire - Care,Supported Living
Cambridgeshire County Council,06-Apr-23,51301962816,-837.54,22 KINGS RIPTON ROAD (REGARD),CARE ESTABLISHMENT,LD - Hunts Locality - Cost of Care,LD - Huntingdonshire - Care,Supported Living
Cambridgeshire County Council,06-Apr-23,51301962816,-837.54,22 KINGS RIPTON ROAD (REGARD),CARE ESTABLISHMENT,LD - Hunts Locality - Cost of Care,LD - Huntingdonshire - Care,Supported Living
Cambridgeshire County Council,06-Apr-23,51301962816,865.18,22 KINGS RIPTON ROAD (REGARD),CARE ESTABLISHMENT,LD - Hunts Locality - Cost of Care,LD - Huntingdonshire - Care,Supported Living
Cambridgeshire County Council,06-Apr-23,51301962816,865.18,22 KINGS RIPTON ROAD (REGARD),CARE ESTABLISHMENT,LD - Hunts Locality - Cost of Care,LD - Huntingdonshire - Care,Supported Living
Cambridgeshire County Council,06-Apr-23,51301962816,865.18,22 KINGS RIPTON ROAD (REGARD),CARE ESTABLISHMENT,LD - Hunts Locality - Cost of Care,LD - Huntingdonshire - Care,Supported Living
Cambridgeshire County Council,06-Apr-23,51301962816,865.18,22 KINGS RIPTON ROAD (REGARD),CARE ESTABLISHMENT,LD - Hunts Locality - Cost of Care,LD - Huntingdonshire - Care,Supported Living
Cambridgeshire County Council,06-Apr-23,51301962816,865.18,22 KINGS RIPTON ROAD (REGARD),CARE ESTABLISHMENT,LD - Hunts Locality - Cost of Care,LD - Huntingdonshire - Care,Supported Living
Cambridgeshire County Council,06-Apr-23,51301962816,865.18,22 KINGS RIPTON ROAD (REGARD),CARE ESTABLISHMENT,LD - Hunts Locality - Cost of Care,LD - Huntingdonshire - Care,Supported Living
Cambridgeshire County Council,06-Apr-23,51301962816,865.18,22 KINGS RIPTON ROAD (REGARD),CARE ESTABLISHMENT,LD - Hunts Locality - Cost of Care,LD - Huntingdonshire - Care,Supported Living
Cambridgeshire County Council,06-Apr-23,51301962816,865.18,22 KINGS RIPTON ROAD (REGARD),CARE ESTABLISHMENT,LD - Hunts Locality - Cost of Care,LD - Huntingdonshire - Care,Supported Living
Cambridgeshire County Council,06-Apr-23,51301962816,865.18,22 KINGS RIPTON ROAD (REGARD),CARE ESTABLISHMENT,LD - Hunts Locality - Cost of Care,LD - Huntingdonshire - Care,Supported Living
Cambridgeshire County Council,06-Apr-23,51301962816,865.18,22 KINGS RIPTON ROAD (REGARD),CARE ESTABLISHMENT,LD - Hunts Locality - Cost of Care,LD - Huntingdonshire - Care,Supported Living
Cambridgeshire County Council,06-Apr-23,51301962816,865.18,22 KINGS RIPTON ROAD (REGARD),CARE ESTABLISHMENT,LD - Hunts Locality - Cost of Care,LD - Huntingdonshire - Care,Supported Living
Cambridgeshire County Council,06-Apr-23,51301962816,865.18,22 KINGS RIPTON ROAD (REGARD),CARE ESTABLISHMENT,LD - Hunts Locality - Cost of Care,LD - Huntingdonshire - Care,Supported Living
Cambridgeshire County Council,06-Apr-23,51301962816,865.18,22 KINGS RIPTON ROAD (REGARD),CARE ESTABLISHMENT,LD - Hunts Locality - Cost of Care,LD - Huntingdonshire - Care,Supported Living
Cambridgeshire County Council,06-Apr-23,51301962816,865.18,22 KINGS RIPTON ROAD (REGARD),CARE ESTABLISHMENT,LD - Hunts Locality - Cost of Care,LD - Huntingdonshire - Care,Supported Living
Cambridgeshire County Council,06-Apr-23,51301962816,865.18,22 KINGS RIPTON ROAD (REGARD),CARE ESTABLISHMENT,LD - Hunts Locality - Cost of Care,LD - Huntingdonshire - Care,Supported Living
Cambridgeshire County Council,06-Apr-23,51301962816,865.18,22 KINGS RIPTON ROAD (REGARD),CARE ESTABLISHMENT,LD - Hunts Locality - Cost of Care,LD - Huntingdonshire - Care,Supported Living
Cambridgeshire County Council,06-Apr-23,51301962816,865.18,22 KINGS RIPTON ROAD (REGARD),CARE ESTABLISHMENT,LD - Hunts Locality - Cost of Care,LD - Huntingdonshire - Care,Supported Living
Cambridgeshire County Council,06-Apr-23,51301962816,865.18,22 KINGS RIPTON ROAD (REGARD),CARE ESTABLISHMENT,LD - Hunts Locality - Cost of Care,LD - Huntingdonshire - Care,Supported Living
Cambridgeshire County Council,06-Apr-23,51301962816,865.18,22 KINGS RIPTON ROAD (REGARD),CARE ESTABLISHMENT,LD - Hunts Locality - Cost of Care,LD - Huntingdonshire - Care,Supported Living
Cambridgeshire County Council,06-Apr-23,51301962816,865.18,22 KINGS RIPTON ROAD (REGARD),CARE ESTABLISHMENT,LD - Hunts Locality - Cost of Care,LD - Huntingdonshire - Care,Supported Living
Cambridgeshire County Council,06-Apr-23,51301962816,865.18,22 KINGS RIPTON ROAD (REGARD),CARE ESTABLISHMENT,LD - Hunts Locality - Cost of Care,LD - Huntingdonshire - Care,Supported Living
Cambridgeshire County Council,06-Apr-23,51301962816,865.18,22 KINGS RIPTON ROAD (REGARD),CARE ESTABLISHMENT,LD - Hunts Locality - Cost of Care,LD - Huntingdonshire - Care,Supported Living
Cambridgeshire County Council,06-Apr-23,51301962816,865.18,22 KINGS RIPTON ROAD (REGARD),CARE ESTABLISHMENT,LD - Hunts Locality - Cost of Care,LD - Huntingdonshire - Care,Supported Living
Cambridgeshire County Council,06-Apr-23,51301962816,865.18,22 KINGS RIPTON ROAD (REGARD),CARE ESTABLISHMENT,LD - Hunts Locality - Cost of Care,LD - Huntingdonshire - Care,Supported Living
Cambridgeshire County Council,06-Apr-23,51301962816,865.18,22 KINGS RIPTON ROAD (REGARD),CARE ESTABLISHMENT,LD - Hunts Locality - Cost of Care,LD - Huntingdonshire - Care,Supported Living
Cambridgeshire County Council,06-Apr-23,51301962816,865.18,22 KINGS RIPTON ROAD (REGARD),CARE ESTABLISHMENT,LD - Hunts Locality - Cost of Care,LD - Huntingdonshire - Care,Supported Living
Cambridgeshire County Council,06-Apr-23,51301962816,865.18,22 KINGS RIPTON ROAD (REGARD),CARE ESTABLISHMENT,LD - Hunts Locality - Cost of Care,LD - Huntingdonshire - Care,Supported Living
Cambridgeshire County Council,06-Apr-23,51301962816,865.18,22 KINGS RIPTON ROAD (REGARD),CARE ESTABLISHMENT,LD - Hunts Locality - Cost of Care,LD - Huntingdonshire - Care,Supported Living
Cambridgeshire County Council,06-Apr-23,51301962816,865.18,22 KINGS RIPTON ROAD (REGARD),CARE ESTABLISHMENT,LD - Hunts Locality - Cost of Care,LD - Huntingdonshire - Care,Supported Living
Cambridgeshire County Council,06-Apr-23,51301962816,865.18,22 KINGS RIPTON ROAD (REGARD),CARE ESTABLISHMENT,LD - Hunts Locality - Cost of Care,LD - Huntingdonshire - Care,Supported Living
Cambridgeshire County Council,06-Apr-23,51301962816,865.18,22 KINGS RIPTON ROAD (REGARD),CARE ESTABLISHMENT,LD - Hunts Locality - Cost of Care,LD - Huntingdonshire - Care,Supported Living
Cambridgeshire County Council,06-Apr-23,51301962816,865.18,22 KINGS RIPTON ROAD (REGARD),CARE ESTABLISHMENT,LD - Hunts Locality - Cost of Care,LD - Huntingdonshire - Care,Supported Living
Cambridgeshire County Council,06-Apr-23,51301962816,865.18,22 KINGS RIPTON ROAD (REGARD),CARE ESTABLISHMENT,LD - Hunts Locality - Cost of Care,LD - Huntingdonshire - Care,Supported Living
Cambridgeshire County Council,06-Apr-23,51301962816,865.18,22 KINGS RIPTON ROAD (REGARD),CARE ESTABLISHMENT,LD - Hunts Locality - Cost of Care,LD - Huntingdonshire - Care,Supported Living
Cambridgeshire County Council,06-Apr-23,51301962816,865.18,22 KINGS RIPTON ROAD (REGARD),CARE ESTABLISHMENT,LD - Hunts Locality - Cost of Care,LD - Huntingdonshire - Care,Supported Living
Cambridgeshire County Council,06-Apr-23,51301962816,865.18,22 KINGS RIPTON ROAD (REGARD),CARE ESTABLISHMENT,LD - Hunts Locality - Cost of Care,LD - Huntingdonshire - Care,Supported Living
Cambridgeshire County Council,06-Apr-23,51301962816,865.18,22 KINGS RIPTON ROAD (REGARD),CARE ESTABLISHMENT,LD - Hunts Locality - Cost of Care,LD - Huntingdonshire - Care,Supported Living
Cambridgeshire County Council,06-Apr-23,51301962816,865.18,22 KINGS RIPTON ROAD (REGARD),CARE ESTABLISHMENT,LD - Hunts Locality - Cost of Care,LD - Huntingdonshire - Care,Supported Living
Cambridgeshire County Council,06-Apr-23,51301962816,865.18,22 KINGS RIPTON ROAD (REGARD),CARE ESTABLISHMENT,LD - Hunts Locality - Cost of Care,LD - Huntingdonshire - Care,Supported Living
Cambridgeshire County Council,06-Apr-23,51301962816,865.18,22 KINGS RIPTON ROAD (REGARD),CARE ESTABLISHMENT,LD - Hunts Locality - Cost of Care,LD - Huntingdonshire - Care,Supported Living
Cambridgeshire County Council,06-Apr-23,51301962816,865.18,22 KINGS RIPTON ROAD (REGARD),CARE ESTABLISHMENT,LD - Hunts Locality - Cost of Care,LD - Huntingdonshire - Care,Supported Living
Cambridgeshire County Council,06-Apr-23,51301962816,865.18,22 KINGS RIPTON ROAD (REGARD),CARE ESTABLISHMENT,LD - Hunts Locality - Cost of Care,LD - Huntingdonshire - Care,Supported Living
Cambridgeshire County Council,06-Apr-23,51301962816,865.18,22 KINGS RIPTON ROAD (REGARD),CARE ESTABLISHMENT,LD - Hunts Locality - Cost of Care,LD - Huntingdonshire - Care,Supported Living
Cambridgeshire County Council,06-Apr-23,51301962816,865.18,22 KINGS RIPTON ROAD (REGARD),CARE ESTABLISHMENT,LD - Hunts Locality - Cost of Care,LD - Huntingdonshire - Care,Supported Living
Cambridgeshire County Council,06-Apr-23,51301962816,865.18,22 KINGS RIPTON ROAD (REGARD),CARE ESTABLISHMENT,LD - Hunts Locality - Cost of Care,LD - Huntingdonshire - Care,Supported Living
Cambridgeshire County Council,06-Apr-23,51301962816,865.18,22 KINGS RIPTON ROAD (REGARD),CARE ESTABLISHMENT,LD - Hunts Locality - Cost of Care,LD - Huntingdonshire - Care,Supported Living
Cambridgeshire County Council,06-Apr-23,51301962816,865.18,22 KINGS RIPTON ROAD (REGARD),CARE ESTABLISHMENT,LD - Hunts Locality - Cost of Care,LD - Huntingdonshire - Care,Supported Living
Cambridgeshire County Council,06-Apr-23,51301962816,865.18,22 KINGS RIPTON ROAD (REGARD),CARE ESTABLISHMENT,LD - Hunts Locality - Cost of Care,LD - Huntingdonshire - Care,Supported Living
Cambridgeshire County Council,06-Apr-23,51301962816,865.18,22 KINGS RIPTON ROAD (REGARD),CARE ESTABLISHMENT,LD - Hunts Locality - Cost of Care,LD - Huntingdonshire - Care,Supported Living
Cambridgeshire County Council,06-Apr-23,51301962816,865.18,22 KINGS RIPTON ROAD (REGARD),CARE ESTABLISHMENT,LD - Hunts Locality - Cost of Care,LD - Huntingdonshire - Care,Supported Living
Cambridgeshire County Council,06-Apr-23,51301962816,865.18,22 KINGS RIPTON ROAD (REGARD),CARE ESTABLISHMENT,LD - Hunts Locality - Cost of Care,LD - Huntingdonshire - Care,Supported Living
Cambridgeshire County Council,06-Apr-23,51301962816,865.18,22 KINGS RIPTON ROAD (REGARD),CARE ESTABLISHMENT,LD - Hunts Locality - Cost of Care,LD - Huntingdonshire - Care,Supported Living
Cambridgeshire County Council,06-Apr-23,51301962818,"1,078.69",22 KINGS RIPTON ROAD (REGARD),CARE ESTABLISHMENT,LD - Hunts Locality - Cost of Care,LD - Huntingdonshire - Care,Supported Living
Cambridgeshire County Council,06-Apr-23,51301962818,"1,078.69",22 KINGS RIPTON ROAD (REGARD),CARE ESTABLISHMENT,LD - Hunts Locality - Cost of Care,LD - Huntingdonshire - Care,Supported Living
Cambridgeshire County Council,06-Apr-23,51301962818,"1,078.69",22 KINGS RIPTON ROAD (REGARD),CARE ESTABLISHMENT,LD - Hunts Locality - Cost of Care,LD - Huntingdonshire - Care,Supported Living
Cambridgeshire County Council,06-Apr-23,51301962818,"1,078.69",22 KINGS RIPTON ROAD (REGARD),CARE ESTABLISHMENT,LD - Hunts Locality - Cost of Care,LD - Huntingdonshire - Care,Supported Living
Cambridgeshire County Council,06-Apr-23,51301962818,"1,078.69",22 KINGS RIPTON ROAD (REGARD),CARE ESTABLISHMENT,LD - Hunts Locality - Cost of Care,LD - Huntingdonshire - Care,Supported Living
Cambridgeshire County Council,06-Apr-23,51301962818,"1,078.69",22 KINGS RIPTON ROAD (REGARD),CARE ESTABLISHMENT,LD - Hunts Locality - Cost of Care,LD - Huntingdonshire - Care,Supported Living
Cambridgeshire County Council,06-Apr-23,51301962818,"1,078.69",22 KINGS RIPTON ROAD (REGARD),CARE ESTABLISHMENT,LD - Hunts Locality - Cost of Care,LD - Huntingdonshire - Care,Supported Living
Cambridgeshire County Council,06-Apr-23,51301962818,"1,078.69",22 KINGS RIPTON ROAD (REGARD),CARE ESTABLISHMENT,LD - Hunts Locality - Cost of Care,LD - Huntingdonshire - Care,Supported Living
Cambridgeshire County Council,06-Apr-23,51301962818,"1,078.69",22 KINGS RIPTON ROAD (REGARD),CARE ESTABLISHMENT,LD - Hunts Locality - Cost of Care,LD - Huntingdonshire - Care,Supported Living
Cambridgeshire County Council,06-Apr-23,51301962818,"1,078.69",22 KINGS RIPTON ROAD (REGARD),CARE ESTABLISHMENT,LD - Hunts Locality - Cost of Care,LD - Huntingdonshire - Care,Supported Living
Cambridgeshire County Council,06-Apr-23,51301962818,"1,078.69",22 KINGS RIPTON ROAD (REGARD),CARE ESTABLISHMENT,LD - Hunts Locality - Cost of Care,LD - Huntingdonshire - Care,Supported Living
Cambridgeshire County Council,06-Apr-23,51301962818,"1,078.69",22 KINGS RIPTON ROAD (REGARD),CARE ESTABLISHMENT,LD - Hunts Locality - Cost of Care,LD - Huntingdonshire - Care,Supported Living
Cambridgeshire County Council,06-Apr-23,51301962818,"1,078.69",22 KINGS RIPTON ROAD (REGARD),CARE ESTABLISHMENT,LD - Hunts Locality - Cost of Care,LD - Huntingdonshire - Care,Supported Living
Cambridgeshire County Council,06-Apr-23,51301962818,"1,078.69",22 KINGS RIPTON ROAD (REGARD),CARE ESTABLISHMENT,LD - Hunts Locality - Cost of Care,LD - Huntingdonshire - Care,Supported Living
Cambridgeshire County Council,06-Apr-23,51301962818,"1,078.69",22 KINGS RIPTON ROAD (REGARD),CARE ESTABLISHMENT,LD - Hunts Locality - Cost of Care,LD - Huntingdonshire - Care,Supported Living
Cambridgeshire County Council,06-Apr-23,51301962818,"1,078.69",22 KINGS RIPTON ROAD (REGARD),CARE ESTABLISHMENT,LD - Hunts Locality - Cost of Care,LD - Huntingdonshire - Care,Supported Living
Cambridgeshire County Council,06-Apr-23,51301962818,"1,078.69",22 KINGS RIPTON ROAD (REGARD),CARE ESTABLISHMENT,LD - Hunts Locality - Cost of Care,LD - Huntingdonshire - Care,Supported Living
Cambridgeshire County Council,06-Apr-23,51301962818,"1,078.69",22 KINGS RIPTON ROAD (REGARD),CARE ESTABLISHMENT,LD - Hunts Locality - Cost of Care,LD - Huntingdonshire - Care,Supported Living
Cambridgeshire County Council,06-Apr-23,51301962818,"1,078.69",22 KINGS RIPTON ROAD (REGARD),CARE ESTABLISHMENT,LD - Hunts Locality - Cost of Care,LD - Huntingdonshire - Care,Supported Living
Cambridgeshire County Council,06-Apr-23,51301962818,"1,078.69",22 KINGS RIPTON ROAD (REGARD),CARE ESTABLISHMENT,LD - Hunts Locality - Cost of Care,LD - Huntingdonshire - Care,Supported Living
Cambridgeshire County Council,06-Apr-23,51301962818,"1,078.69",22 KINGS RIPTON ROAD (REGARD),CARE ESTABLISHMENT,LD - Hunts Locality - Cost of Care,LD - Huntingdonshire - Care,Supported Living
Cambridgeshire County Council,06-Apr-23,51301962818,"1,078.69",22 KINGS RIPTON ROAD (REGARD),CARE ESTABLISHMENT,LD - Hunts Locality - Cost of Care,LD - Huntingdonshire - Care,Supported Living
Cambridgeshire County Council,06-Apr-23,51301962818,"1,078.69",22 KINGS RIPTON ROAD (REGARD),CARE ESTABLISHMENT,LD - Hunts Locality - Cost of Care,LD - Huntingdonshire - Care,Supported Living
Cambridgeshire County Council,06-Apr-23,51301962818,"1,078.69",22 KINGS RIPTON ROAD (REGARD),CARE ESTABLISHMENT,LD - Hunts Locality - Cost of Care,LD - Huntingdonshire - Care,Supported Living
Cambridgeshire County Council,06-Apr-23,51301962818,"1,078.69",22 KINGS RIPTON ROAD (REGARD),CARE ESTABLISHMENT,LD - Hunts Locality - Cost of Care,LD - Huntingdonshire - Care,Supported Living
Cambridgeshire County Council,06-Apr-23,51301962818,"1,078.69",22 KINGS RIPTON ROAD (REGARD),CARE ESTABLISHMENT,LD - Hunts Locality - Cost of Care,LD - Huntingdonshire - Care,Supported Living
Cambridgeshire County Council,06-Apr-23,51301962818,"1,078.69",22 KINGS RIPTON ROAD (REGARD),CARE ESTABLISHMENT,LD - Hunts Locality - Cost of Care,LD - Huntingdonshire - Care,Supported Living
Cambridgeshire County Council,06-Apr-23,51301962818,"1,078.69",22 KINGS RIPTON ROAD (REGARD),CARE ESTABLISHMENT,LD - Hunts Locality - Cost of Care,LD - Huntingdonshire - Care,Supported Living
Cambridgeshire County Council,06-Apr-23,51301962818,"1,078.69",22 KINGS RIPTON ROAD (REGARD),CARE ESTABLISHMENT,LD - Hunts Locality - Cost of Care,LD - Huntingdonshire - Care,Supported Living
Cambridgeshire County Council,06-Apr-23,51301962818,"1,078.69",22 KINGS RIPTON ROAD (REGARD),CARE ESTABLISHMENT,LD - Hunts Locality - Cost of Care,LD - Huntingdonshire - Care,Supported Living
Cambridgeshire County Council,06-Apr-23,51301962818,"1,078.69",22 KINGS RIPTON ROAD (REGARD),CARE ESTABLISHMENT,LD - Hunts Locality - Cost of Care,LD - Huntingdonshire - Care,Supported Living
Cambridgeshire County Council,06-Apr-23,51301962818,"1,078.69",22 KINGS RIPTON ROAD (REGARD),CARE ESTABLISHMENT,LD - Hunts Locality - Cost of Care,LD - Huntingdonshire - Care,Supported Living
Cambridgeshire County Council,06-Apr-23,51301962818,"1,078.69",22 KINGS RIPTON ROAD (REGARD),CARE ESTABLISHMENT,LD - Hunts Locality - Cost of Care,LD - Huntingdonshire - Care,Supported Living
Cambridgeshire County Council,06-Apr-23,51301962818,"1,078.69",22 KINGS RIPTON ROAD (REGARD),CARE ESTABLISHMENT,LD - Hunts Locality - Cost of Care,LD - Huntingdonshire - Care,Supported Living
Cambridgeshire County Council,06-Apr-23,51301962818,"1,078.69",22 KINGS RIPTON ROAD (REGARD),CARE ESTABLISHMENT,LD - Hunts Locality - Cost of Care,LD - Huntingdonshire - Care,Supported Living
Cambridgeshire County Council,06-Apr-23,51301962818,"1,078.69",22 KINGS RIPTON ROAD (REGARD),CARE ESTABLISHMENT,LD - Hunts Locality - Cost of Care,LD - Huntingdonshire - Care,Supported Living
Cambridgeshire County Council,06-Apr-23,51301962818,"1,078.69",22 KINGS RIPTON ROAD (REGARD),CARE ESTABLISHMENT,LD - Hunts Locality - Cost of Care,LD - Huntingdonshire - Care,Supported Living
Cambridgeshire County Council,06-Apr-23,51301962818,"1,078.69",22 KINGS RIPTON ROAD (REGARD),CARE ESTABLISHMENT,LD - Hunts Locality - Cost of Care,LD - Huntingdonshire - Care,Supported Living
Cambridgeshire County Council,06-Apr-23,51301962818,"1,078.69",22 KINGS RIPTON ROAD (REGARD),CARE ESTABLISHMENT,LD - Hunts Locality - Cost of Care,LD - Huntingdonshire - Care,Supported Living
Cambridgeshire County Council,06-Apr-23,51301962818,"1,078.69",22 KINGS RIPTON ROAD (REGARD),CARE ESTABLISHMENT,LD - Hunts Locality - Cost of Care,LD - Huntingdonshire - Care,Supported Living
Cambridgeshire County Council,06-Apr-23,51301962818,"1,078.69",22 KINGS RIPTON ROAD (REGARD),CARE ESTABLISHMENT,LD - Hunts Locality - Cost of Care,LD - Huntingdonshire - Care,Supported Living
Cambridgeshire County Council,06-Apr-23,51301962818,"1,078.69",22 KINGS RIPTON ROAD (REGARD),CARE ESTABLISHMENT,LD - Hunts Locality - Cost of Care,LD - Huntingdonshire - Care,Supported Living
Cambridgeshire County Council,06-Apr-23,51301962818,"1,078.69",22 KINGS RIPTON ROAD (REGARD),CARE ESTABLISHMENT,LD - Hunts Locality - Cost of Care,LD - Huntingdonshire - Care,Supported Living
Cambridgeshire County Council,06-Apr-23,51301962818,"1,078.69",22 KINGS RIPTON ROAD (REGARD),CARE ESTABLISHMENT,LD - Hunts Locality - Cost of Care,LD - Huntingdonshire - Care,Supported Living
Cambridgeshire County Council,06-Apr-23,51301962818,"1,078.69",22 KINGS RIPTON ROAD (REGARD),CARE ESTABLISHMENT,LD - Hunts Locality - Cost of Care,LD - Huntingdonshire - Care,Supported Living
Cambridgeshire County Council,06-Apr-23,51301962818,"1,078.69",22 KINGS RIPTON ROAD (REGARD),CARE ESTABLISHMENT,LD - Hunts Locality - Cost of Care,LD - Huntingdonshire - Care,Supported Living
Cambridgeshire County Council,06-Apr-23,51301962818,"1,078.69",22 KINGS RIPTON ROAD (REGARD),CARE ESTABLISHMENT,LD - Hunts Locality - Cost of Care,LD - Huntingdonshire - Care,Supported Living
Cambridgeshire County Council,06-Apr-23,51301962818,"1,078.69",22 KINGS RIPTON ROAD (REGARD),CARE ESTABLISHMENT,LD - Hunts Locality - Cost of Care,LD - Huntingdonshire - Care,Supported Living
Cambridgeshire County Council,06-Apr-23,51301962818,"1,078.69",22 KINGS RIPTON ROAD (REGARD),CARE ESTABLISHMENT,LD - Hunts Locality - Cost of Care,LD - Huntingdonshire - Care,Supported Living
Cambridgeshire County Council,06-Apr-23,51301962818,"1,078.69",22 KINGS RIPTON ROAD (REGARD),CARE ESTABLISHMENT,LD - Hunts Locality - Cost of Care,LD - Huntingdonshire - Care,Supported Living
Cambridgeshire County Council,06-Apr-23,51301962818,"1,078.69",22 KINGS RIPTON ROAD (REGARD),CARE ESTABLISHMENT,LD - Hunts Locality - Cost of Care,LD - Huntingdonshire - Care,Supported Living
Cambridgeshire County Council,06-Apr-23,51301962818,"1,078.69",22 KINGS RIPTON ROAD (REGARD),CARE ESTABLISHMENT,LD - Hunts Locality - Cost of Care,LD - Huntingdonshire - Care,Supported Living
Cambridgeshire County Council,06-Apr-23,51301962645,"1,817.00",24 SEVEN TAXIS,TRADE SUPPLIER,Home to School Transport - Special,Home to School Transport Special - Primary,Home to School - Contract
Cambridgeshire County Council,06-Apr-23,51301962826,-629.87,24D KINGS RIPTON ROAD (REGARD),CARE ESTABLISHMENT,OPPD - Cost of Care - Huntingdon - Over 65,Hunts OP Team - Care,Supported Living
Cambridgeshire County Council,06-Apr-23,51301962826,-629.87,24D KINGS RIPTON ROAD (REGARD),CARE ESTABLISHMENT,OPPD - Cost of Care - Huntingdon - Over 65,Hunts OP Team - Care,Supported Living
Cambridgeshire County Council,06-Apr-23,51301962826,-629.87,24D KINGS RIPTON ROAD (REGARD),CARE ESTABLISHMENT,OPPD - Cost of Care - Huntingdon - Over 65,Hunts OP Team - Care,Supported Living
Cambridgeshire County Council,06-Apr-23,51301962826,-629.87,24D KINGS RIPTON ROAD (REGARD),CARE ESTABLISHMENT,OPPD - Cost of Care - Huntingdon - Over 65,Hunts OP Team - Care,Supported Living
Cambridgeshire County Council,06-Apr-23,51301962826,-629.87,24D KINGS RIPTON ROAD (REGARD),CARE ESTABLISHMENT,OPPD - Cost of Care - Huntingdon - Over 65,Hunts OP Team - Care,Supported Living
Cambridgeshire County Council,06-Apr-23,51301962826,-629.87,24D KINGS RIPTON ROAD (REGARD),CARE ESTABLISHMENT,OPPD - Cost of Care - Huntingdon - Over 65,Hunts OP Team - Care,Supported Living
Cambridgeshire County Council,06-Apr-23,51301962826,-629.87,24D KINGS RIPTON ROAD (REGARD),CARE ESTABLISHMENT,OPPD - Cost of Care - Huntingdon - Over 65,Hunts OP Team - Care,Supported Living
Cambridgeshire County Council,06-Apr-23,51301962826,-629.87,24D KINGS RIPTON ROAD (REGARD),CARE ESTABLISHMENT,OPPD - Cost of Care - Huntingdon - Over 65,Hunts OP Team - Care,Supported Living
Cambridgeshire County Council,06-Apr-23,51301962826,-629.87,24D KINGS RIPTON ROAD (REGARD),CARE ESTABLISHMENT,OPPD - Cost of Care - Huntingdon - Over 65,Hunts OP Team - Care,Supported Living
Cambridgeshire County Council,06-Apr-23,51301962826,-629.87,24D KINGS RIPTON ROAD (REGARD),CARE ESTABLISHMENT,OPPD - Cost of Care - Huntingdon - Over 65,Hunts OP Team - Care,Supported Living
Cambridgeshire County Council,06-Apr-23,51301962826,-629.87,24D KINGS RIPTON ROAD (REGARD),CARE ESTABLISHMENT,OPPD - Cost of Care - Huntingdon - Over 65,Hunts OP Team - Care,Supported Living
Cambridgeshire County Council,06-Apr-23,51301962826,-629.87,24D KINGS RIPTON ROAD (REGARD),CARE ESTABLISHMENT,OPPD - Cost of Care - Huntingdon - Over 65,Hunts OP Team - Care,Supported Living
Cambridgeshire County Council,06-Apr-23,51301962826,-629.87,24D KINGS RIPTON ROAD (REGARD),CARE ESTABLISHMENT,OPPD - Cost of Care - Huntingdon - Over 65,Hunts OP Team - Care,Supported Living
Cambridgeshire County Council,06-Apr-23,51301962826,-629.87,24D KINGS RIPTON ROAD (REGARD),CARE ESTABLISHMENT,OPPD - Cost of Care - Huntingdon - Over 65,Hunts OP Team - Care,Supported Living
Cambridgeshire County Council,06-Apr-23,51301962826,-629.87,24D KINGS RIPTON ROAD (REGARD),CARE ESTABLISHMENT,OPPD - Cost of Care - Huntingdon - Over 65,Hunts OP Team - Care,Supported Living
Cambridgeshire County Council,06-Apr-23,51301962826,-629.87,24D KINGS RIPTON ROAD (REGARD),CARE ESTABLISHMENT,OPPD - Cost of Care - Huntingdon - Over 65,Hunts OP Team - Care,Supported Living
Cambridgeshire County Council,06-Apr-23,51301962826,-629.87,24D KINGS RIPTON ROAD (REGARD),CARE ESTABLISHMENT,OPPD - Cost of Care - Huntingdon - Over 65,Hunts OP Team - Care,Supported Living
Cambridgeshire County Council,06-Apr-23,51301962826,-629.87,24D KINGS RIPTON ROAD (REGARD),CARE ESTABLISHMENT,OPPD - Cost of Care - Huntingdon - Over 65,Hunts OP Team - Care,Supported Living
Cambridgeshire County Council,06-Apr-23,51301962826,-629.87,24D KINGS RIPTON ROAD (REGARD),CARE ESTABLISHMENT,OPPD - Cost of Care - Huntingdon - Over 65,Hunts OP Team - Care,Supported Living
Cambridgeshire County Council,06-Apr-23,51301962826,-629.87,24D KINGS RIPTON ROAD (REGARD),CARE ESTABLISHMENT,OPPD - Cost of Care - Huntingdon - Over 65,Hunts OP Team - Care,Supported Living
Cambridgeshire County Council,06-Apr-23,51301962826,-629.87,24D KINGS RIPTON ROAD (REGARD),CARE ESTABLISHMENT,OPPD - Cost of Care - Huntingdon - Over 65,Hunts OP Team - Care,Supported Living
Cambridgeshire County Council,06-Apr-23,51301962826,-629.87,24D KINGS RIPTON ROAD (REGARD),CARE ESTABLISHMENT,OPPD - Cost of Care - Huntingdon - Over 65,Hunts OP Team - Care,Supported Living
Cambridgeshire County Council,06-Apr-23,51301962826,-629.87,24D KINGS RIPTON ROAD (REGARD),CARE ESTABLISHMENT,OPPD - Cost of Care - Huntingdon - Over 65,Hunts OP Team - Care,Supported Living
Cambridgeshire County Council,06-Apr-23,51301962826,-629.87,24D KINGS RIPTON ROAD (REGARD),CARE ESTABLISHMENT,OPPD - Cost of Care - Huntingdon - Over 65,Hunts OP Team - Care,Supported Living
Cambridgeshire County Council,06-Apr-23,51301962826,-629.87,24D KINGS RIPTON ROAD (REGARD),CARE ESTABLISHMENT,OPPD - Cost of Care - Huntingdon - Over 65,Hunts OP Team - Care,Supported Living
Cambridgeshire County Council,06-Apr-23,51301962826,-629.87,24D KINGS RIPTON ROAD (REGARD),CARE ESTABLISHMENT,OPPD - Cost of Care - Huntingdon - Over 65,Hunts OP Team - Care,Supported Living
Cambridgeshire County Council,06-Apr-23,51301962826,-629.87,24D KINGS RIPTON ROAD (REGARD),CARE ESTABLISHMENT,OPPD - Cost of Care - Huntingdon - Over 65,Hunts OP Team - Care,Supported Living
Cambridgeshire County Council,06-Apr-23,51301962826,-629.87,24D KINGS RIPTON ROAD (REGARD),CARE ESTABLISHMENT,OPPD - Cost of Care - Huntingdon - Over 65,Hunts OP Team - Care,Supported Living
Cambridgeshire County Council,06-Apr-23,51301962826,-629.87,24D KINGS RIPTON ROAD (REGARD),CARE ESTABLISHMENT,OPPD - Cost of Care - Huntingdon - Over 65,Hunts OP Team - Care,Supported Living
Cambridgeshire County Council,06-Apr-23,51301962826,-629.87,24D KINGS RIPTON ROAD (REGARD),CARE ESTABLISHMENT,OPPD - Cost of Care - Huntingdon - Over 65,Hunts OP Team - Care,Supported Living
Cambridgeshire County Council,06-Apr-23,51301962826,-629.87,24D KINGS RIPTON ROAD (REGARD),CARE ESTABLISHMENT,OPPD - Cost of Care - Huntingdon - Over 65,Hunts OP Team - Care,Supported Living
Cambridgeshire County Council,06-Apr-23,51301962826,-629.87,24D KINGS RIPTON ROAD (REGARD),CARE ESTABLISHMENT,OPPD - Cost of Care - Huntingdon - Over 65,Hunts OP Team - Care,Supported Living
Cambridgeshire County Council,06-Apr-23,51301962826,-629.87,24D KINGS RIPTON ROAD (REGARD),CARE ESTABLISHMENT,OPPD - Cost of Care - Huntingdon - Over 65,Hunts OP Team - Care,Supported Living
Cambridgeshire County Council,06-Apr-23,51301962826,-629.87,24D KINGS RIPTON ROAD (REGARD),CARE ESTABLISHMENT,OPPD - Cost of Care - Huntingdon - Over 65,Hunts OP Team - Care,Supported Living
Cambridgeshire County Council,06-Apr-23,51301962826,-629.87,24D KINGS RIPTON ROAD (REGARD),CARE ESTABLISHMENT,OPPD - Cost of Care - Huntingdon - Over 65,Hunts OP Team - Care,Supported Living
Cambridgeshire County Council,06-Apr-23,51301962826,-629.87,24D KINGS RIPTON ROAD (REGARD),CARE ESTABLISHMENT,OPPD - Cost of Care - Huntingdon - Over 65,Hunts OP Team - Care,Supported Living
Cambridgeshire County Council,06-Apr-23,51301962826,-629.87,24D KINGS RIPTON ROAD (REGARD),CARE ESTABLISHMENT,OPPD - Cost of Care - Huntingdon - Over 65,Hunts OP Team - Care,Supported Living
Cambridgeshire County Council,06-Apr-23,51301962826,-629.87,24D KINGS RIPTON ROAD (REGARD),CARE ESTABLISHMENT,OPPD - Cost of Care - Huntingdon - Over 65,Hunts OP Team - Care,Supported Living
Cambridgeshire County Council,06-Apr-23,51301962826,-629.87,24D KINGS RIPTON ROAD (REGARD),CARE ESTABLISHMENT,OPPD - Cost of Care - Huntingdon - Over 65,Hunts OP Team - Care,Supported Living
Cambridgeshire County Council,06-Apr-23,51301962826,-629.87,24D KINGS RIPTON ROAD (REGARD),CARE ESTABLISHMENT,OPPD - Cost of Care - Huntingdon - Over 65,Hunts OP Team - Care,Supported Living
Cambridgeshire County Council,06-Apr-23,51301962826,-629.87,24D KINGS RIPTON ROAD (REGARD),CARE ESTABLISHMENT,OPPD - Cost of Care - Huntingdon - Over 65,Hunts OP Team - Care,Supported Living
Cambridgeshire County Council,06-Apr-23,51301962826,-629.87,24D KINGS RIPTON ROAD (REGARD),CARE ESTABLISHMENT,OPPD - Cost of Care - Huntingdon - Over 65,Hunts OP Team - Care,Supported Living
Cambridgeshire County Council,06-Apr-23,51301962826,-629.87,24D KINGS RIPTON ROAD (REGARD),CARE ESTABLISHMENT,OPPD - Cost of Care - Huntingdon - Over 65,Hunts OP Team - Care,Supported Living
Cambridgeshire County Council,06-Apr-23,51301962826,-629.87,24D KINGS RIPTON ROAD (REGARD),CARE ESTABLISHMENT,OPPD - Cost of Care - Huntingdon - Over 65,Hunts OP Team - Care,Supported Living
Cambridgeshire County Council,06-Apr-23,51301962826,-629.87,24D KINGS RIPTON ROAD (REGARD),CARE ESTABLISHMENT,OPPD - Cost of Care - Huntingdon - Over 65,Hunts OP Team - Care,Supported Living
Cambridgeshire County Council,06-Apr-23,51301962826,-629.87,24D KINGS RIPTON ROAD (REGARD),CARE ESTABLISHMENT,OPPD - Cost of Care - Huntingdon - Over 65,Hunts OP Team - Care,Supported Living
Cambridgeshire County Council,06-Apr-23,51301962826,-629.87,24D KINGS RIPTON ROAD (REGARD),CARE ESTABLISHMENT,OPPD - Cost of Care - Huntingdon - Over 65,Hunts OP Team - Care,Supported Living
Cambridgeshire County Council,06-Apr-23,51301962826,-629.87,24D KINGS RIPTON ROAD (REGARD),CARE ESTABLISHMENT,OPPD - Cost of Care - Huntingdon - Over 65,Hunts OP Team - Care,Supported Living
Cambridgeshire County Council,06-Apr-23,51301962826,-629.87,24D KINGS RIPTON ROAD (REGARD),CARE ESTABLISHMENT,OPPD - Cost of Care - Huntingdon - Over 65,Hunts OP Team - Care,Supported Living
Cambridgeshire County Council,06-Apr-23,51301962826,-629.87,24D KINGS RIPTON ROAD (REGARD),CARE ESTABLISHMENT,OPPD - Cost of Care - Huntingdon - Over 65,Hunts OP Team - Care,Supported Living
Cambridgeshire County Council,06-Apr-23,51301962826,-629.87,24D KINGS RIPTON ROAD (REGARD),CARE ESTABLISHMENT,OPPD - Cost of Care - Huntingdon - Over 65,Hunts OP Team - Care,Supported Living
Cambridgeshire County Council,06-Apr-23,51301962826,-629.87,24D KINGS RIPTON ROAD (REGARD),CARE ESTABLISHMENT,OPPD - Cost of Care - Huntingdon - Over 65,Hunts OP Team - Care,Supported Living
Cambridgeshire County Council,06-Apr-23,51301962764,-546.27,24D KINGS RIPTON ROAD (REGARD),CARE ESTABLISHMENT,LD - Hunts Locality - Cost of Care,LD - Huntingdonshire - Care,Day Care
Cambridgeshire County Council,06-Apr-23,51301962764,-546.27,24D KINGS RIPTON ROAD (REGARD),CARE ESTABLISHMENT,LD - Hunts Locality - Cost of Care,LD - Huntingdonshire - Care,Day Care
Cambridgeshire County Council,06-Apr-23,51301962764,-546.27,24D KINGS RIPTON ROAD (REGARD),CARE ESTABLISHMENT,LD - Hunts Locality - Cost of Care,LD - Huntingdonshire - Care,Day Care
Cambridgeshire County Council,06-Apr-23,51301962764,-546.27,24D KINGS RIPTON ROAD (REGARD),CARE ESTABLISHMENT,LD - Hunts Locality - Cost of Care,LD - Huntingdonshire - Care,Day Care
Cambridgeshire County Council,06-Apr-23,51301962764,-546.27,24D KINGS RIPTON ROAD (REGARD),CARE ESTABLISHMENT,LD - Hunts Locality - Cost of Care,LD - Huntingdonshire - Care,Day Care
Cambridgeshire County Council,06-Apr-23,51301962764,-546.27,24D KINGS RIPTON ROAD (REGARD),CARE ESTABLISHMENT,LD - Hunts Locality - Cost of Care,LD - Huntingdonshire - Care,Day Care
Cambridgeshire County Council,06-Apr-23,51301962764,-546.27,24D KINGS RIPTON ROAD (REGARD),CARE ESTABLISHMENT,LD - Hunts Locality - Cost of Care,LD - Huntingdonshire - Care,Day Care
Cambridgeshire County Council,06-Apr-23,51301962764,-546.27,24D KINGS RIPTON ROAD (REGARD),CARE ESTABLISHMENT,LD - Hunts Locality - Cost of Care,LD - Huntingdonshire - Care,Day Care
Cambridgeshire County Council,06-Apr-23,51301962764,-546.27,24D KINGS RIPTON ROAD (REGARD),CARE ESTABLISHMENT,LD - Hunts Locality - Cost of Care,LD - Huntingdonshire - Care,Day Care
Cambridgeshire County Council,06-Apr-23,51301962764,-546.27,24D KINGS RIPTON ROAD (REGARD),CARE ESTABLISHMENT,LD - Hunts Locality - Cost of Care,LD - Huntingdonshire - Care,Day Care
Cambridgeshire County Council,06-Apr-23,51301962764,-546.27,24D KINGS RIPTON ROAD (REGARD),CARE ESTABLISHMENT,LD - Hunts Locality - Cost of Care,LD - Huntingdonshire - Care,Day Care
Cambridgeshire County Council,06-Apr-23,51301962764,-546.27,24D KINGS RIPTON ROAD (REGARD),CARE ESTABLISHMENT,LD - Hunts Locality - Cost of Care,LD - Huntingdonshire - Care,Day Care
Cambridgeshire County Council,06-Apr-23,51301962764,-546.27,24D KINGS RIPTON ROAD (REGARD),CARE ESTABLISHMENT,LD - Hunts Locality - Cost of Care,LD - Huntingdonshire - Care,Day Care
Cambridgeshire County Council,06-Apr-23,51301962764,-546.27,24D KINGS RIPTON ROAD (REGARD),CARE ESTABLISHMENT,LD - Hunts Locality - Cost of Care,LD - Huntingdonshire - Care,Day Care
Cambridgeshire County Council,06-Apr-23,51301962764,-546.27,24D KINGS RIPTON ROAD (REGARD),CARE ESTABLISHMENT,LD - Hunts Locality - Cost of Care,LD - Huntingdonshire - Care,Day Care
Cambridgeshire County Council,06-Apr-23,51301962764,-546.27,24D KINGS RIPTON ROAD (REGARD),CARE ESTABLISHMENT,LD - Hunts Locality - Cost of Care,LD - Huntingdonshire - Care,Day Care
Cambridgeshire County Council,06-Apr-23,51301962764,-546.27,24D KINGS RIPTON ROAD (REGARD),CARE ESTABLISHMENT,LD - Hunts Locality - Cost of Care,LD - Huntingdonshire - Care,Day Care
Cambridgeshire County Council,06-Apr-23,51301962764,-546.27,24D KINGS RIPTON ROAD (REGARD),CARE ESTABLISHMENT,LD - Hunts Locality - Cost of Care,LD - Huntingdonshire - Care,Day Care
Cambridgeshire County Council,06-Apr-23,51301962764,-546.27,24D KINGS RIPTON ROAD (REGARD),CARE ESTABLISHMENT,LD - Hunts Locality - Cost of Care,LD - Huntingdonshire - Care,Day Care
Cambridgeshire County Council,06-Apr-23,51301962764,-546.27,24D KINGS RIPTON ROAD (REGARD),CARE ESTABLISHMENT,LD - Hunts Locality - Cost of Care,LD - Huntingdonshire - Care,Day Care
Cambridgeshire County Council,06-Apr-23,51301962764,-546.27,24D KINGS RIPTON ROAD (REGARD),CARE ESTABLISHMENT,LD - Hunts Locality - Cost of Care,LD - Huntingdonshire - Care,Day Care
Cambridgeshire County Council,06-Apr-23,51301962764,-546.27,24D KINGS RIPTON ROAD (REGARD),CARE ESTABLISHMENT,LD - Hunts Locality - Cost of Care,LD - Huntingdonshire - Care,Day Care
Cambridgeshire County Council,06-Apr-23,51301962764,-546.27,24D KINGS RIPTON ROAD (REGARD),CARE ESTABLISHMENT,LD - Hunts Locality - Cost of Care,LD - Huntingdonshire - Care,Day Care
Cambridgeshire County Council,06-Apr-23,51301962764,-546.27,24D KINGS RIPTON ROAD (REGARD),CARE ESTABLISHMENT,LD - Hunts Locality - Cost of Care,LD - Huntingdonshire - Care,Day Care
Cambridgeshire County Council,06-Apr-23,51301962764,-546.27,24D KINGS RIPTON ROAD (REGARD),CARE ESTABLISHMENT,LD - Hunts Locality - Cost of Care,LD - Huntingdonshire - Care,Day Care
Cambridgeshire County Council,06-Apr-23,51301962764,-546.27,24D KINGS RIPTON ROAD (REGARD),CARE ESTABLISHMENT,LD - Hunts Locality - Cost of Care,LD - Huntingdonshire - Care,Day Care
Cambridgeshire County Council,06-Apr-23,51301962764,-546.27,24D KINGS RIPTON ROAD (REGARD),CARE ESTABLISHMENT,LD - Hunts Locality - Cost of Care,LD - Huntingdonshire - Care,Day Care
Cambridgeshire County Council,06-Apr-23,51301962764,-546.27,24D KINGS RIPTON ROAD (REGARD),CARE ESTABLISHMENT,LD - Hunts Locality - Cost of Care,LD - Huntingdonshire - Care,Day Care
Cambridgeshire County Council,06-Apr-23,51301962764,-546.27,24D KINGS RIPTON ROAD (REGARD),CARE ESTABLISHMENT,LD - Hunts Locality - Cost of Care,LD - Huntingdonshire - Care,Day Care
Cambridgeshire County Council,06-Apr-23,51301962764,-546.27,24D KINGS RIPTON ROAD (REGARD),CARE ESTABLISHMENT,LD - Hunts Locality - Cost of Care,LD - Huntingdonshire - Care,Day Care
Cambridgeshire County Council,06-Apr-23,51301962764,-546.27,24D KINGS RIPTON ROAD (REGARD),CARE ESTABLISHMENT,LD - Hunts Locality - Cost of Care,LD - Huntingdonshire - Care,Day Care
Cambridgeshire County Council,06-Apr-23,51301962764,-546.27,24D KINGS RIPTON ROAD (REGARD),CARE ESTABLISHMENT,LD - Hunts Locality - Cost of Care,LD - Huntingdonshire - Care,Day Care
Cambridgeshire County Council,06-Apr-23,51301962764,-546.27,24D KINGS RIPTON ROAD (REGARD),CARE ESTABLISHMENT,LD - Hunts Locality - Cost of Care,LD - Huntingdonshire - Care,Day Care
Cambridgeshire County Council,06-Apr-23,51301962764,-546.27,24D KINGS RIPTON ROAD (REGARD),CARE ESTABLISHMENT,LD - Hunts Locality - Cost of Care,LD - Huntingdonshire - Care,Day Care
Cambridgeshire County Council,06-Apr-23,51301962764,-546.27,24D KINGS RIPTON ROAD (REGARD),CARE ESTABLISHMENT,LD - Hunts Locality - Cost of Care,LD - Huntingdonshire - Care,Day Care
Cambridgeshire County Council,06-Apr-23,51301962764,-546.27,24D KINGS RIPTON ROAD (REGARD),CARE ESTABLISHMENT,LD - Hunts Locality - Cost of Care,LD - Huntingdonshire - Care,Day Care
Cambridgeshire County Council,06-Apr-23,51301962764,-546.27,24D KINGS RIPTON ROAD (REGARD),CARE ESTABLISHMENT,LD - Hunts Locality - Cost of Care,LD - Huntingdonshire - Care,Day Care
Cambridgeshire County Council,06-Apr-23,51301962764,-546.27,24D KINGS RIPTON ROAD (REGARD),CARE ESTABLISHMENT,LD - Hunts Locality - Cost of Care,LD - Huntingdonshire - Care,Day Care
Cambridgeshire County Council,06-Apr-23,51301962764,-546.27,24D KINGS RIPTON ROAD (REGARD),CARE ESTABLISHMENT,LD - Hunts Locality - Cost of Care,LD - Huntingdonshire - Care,Day Care
Cambridgeshire County Council,06-Apr-23,51301962764,-546.27,24D KINGS RIPTON ROAD (REGARD),CARE ESTABLISHMENT,LD - Hunts Locality - Cost of Care,LD - Huntingdonshire - Care,Day Care
Cambridgeshire County Council,06-Apr-23,51301962764,-546.27,24D KINGS RIPTON ROAD (REGARD),CARE ESTABLISHMENT,LD - Hunts Locality - Cost of Care,LD - Huntingdonshire - Care,Day Care
Cambridgeshire County Council,06-Apr-23,51301962764,-546.27,24D KINGS RIPTON ROAD (REGARD),CARE ESTABLISHMENT,LD - Hunts Locality - Cost of Care,LD - Huntingdonshire - Care,Day Care
Cambridgeshire County Council,06-Apr-23,51301962764,-546.27,24D KINGS RIPTON ROAD (REGARD),CARE ESTABLISHMENT,LD - Hunts Locality - Cost of Care,LD - Huntingdonshire - Care,Day Care
Cambridgeshire County Council,06-Apr-23,51301962764,-546.27,24D KINGS RIPTON ROAD (REGARD),CARE ESTABLISHMENT,LD - Hunts Locality - Cost of Care,LD - Huntingdonshire - Care,Day Care
Cambridgeshire County Council,06-Apr-23,51301962764,-546.27,24D KINGS RIPTON ROAD (REGARD),CARE ESTABLISHMENT,LD - Hunts Locality - Cost of Care,LD - Huntingdonshire - Care,Day Care
Cambridgeshire County Council,06-Apr-23,51301962764,-546.27,24D KINGS RIPTON ROAD (REGARD),CARE ESTABLISHMENT,LD - Hunts Locality - Cost of Care,LD - Huntingdonshire - Care,Day Care
Cambridgeshire County Council,06-Apr-23,51301962764,-546.27,24D KINGS RIPTON ROAD (REGARD),CARE ESTABLISHMENT,LD - Hunts Locality - Cost of Care,LD - Huntingdonshire - Care,Day Care
Cambridgeshire County Council,06-Apr-23,51301962764,-546.27,24D KINGS RIPTON ROAD (REGARD),CARE ESTABLISHMENT,LD - Hunts Locality - Cost of Care,LD - Huntingdonshire - Care,Day Care
Cambridgeshire County Council,06-Apr-23,51301962764,-546.27,24D KINGS RIPTON ROAD (REGARD),CARE ESTABLISHMENT,LD - Hunts Locality - Cost of Care,LD - Huntingdonshire - Care,Day Care
Cambridgeshire County Council,06-Apr-23,51301962764,-546.27,24D KINGS RIPTON ROAD (REGARD),CARE ESTABLISHMENT,LD - Hunts Locality - Cost of Care,LD - Huntingdonshire - Care,Day Care
Cambridgeshire County Council,06-Apr-23,51301962764,-546.27,24D KINGS RIPTON ROAD (REGARD),CARE ESTABLISHMENT,LD - Hunts Locality - Cost of Care,LD - Huntingdonshire - Care,Day Care
Cambridgeshire County Council,06-Apr-23,51301962764,-546.27,24D KINGS RIPTON ROAD (REGARD),CARE ESTABLISHMENT,LD - Hunts Locality - Cost of Care,LD - Huntingdonshire - Care,Day Care
Cambridgeshire County Council,06-Apr-23,51301962764,564.30,24D KINGS RIPTON ROAD (REGARD),CARE ESTABLISHMENT,LD - Hunts Locality - Cost of Care,LD - Huntingdonshire - Care,Day Care
Cambridgeshire County Council,06-Apr-23,51301962764,564.30,24D KINGS RIPTON ROAD (REGARD),CARE ESTABLISHMENT,LD - Hunts Locality - Cost of Care,LD - Huntingdonshire - Care,Day Care
Cambridgeshire County Council,06-Apr-23,51301962764,564.30,24D KINGS RIPTON ROAD (REGARD),CARE ESTABLISHMENT,LD - Hunts Locality - Cost of Care,LD - Huntingdonshire - Care,Day Care
Cambridgeshire County Council,06-Apr-23,51301962764,564.30,24D KINGS RIPTON ROAD (REGARD),CARE ESTABLISHMENT,LD - Hunts Locality - Cost of Care,LD - Huntingdonshire - Care,Day Care
Cambridgeshire County Council,06-Apr-23,51301962764,564.30,24D KINGS RIPTON ROAD (REGARD),CARE ESTABLISHMENT,LD - Hunts Locality - Cost of Care,LD - Huntingdonshire - Care,Day Care
Cambridgeshire County Council,06-Apr-23,51301962764,564.30,24D KINGS RIPTON ROAD (REGARD),CARE ESTABLISHMENT,LD - Hunts Locality - Cost of Care,LD - Huntingdonshire - Care,Day Care
Cambridgeshire County Council,06-Apr-23,51301962764,564.30,24D KINGS RIPTON ROAD (REGARD),CARE ESTABLISHMENT,LD - Hunts Locality - Cost of Care,LD - Huntingdonshire - Care,Day Care
Cambridgeshire County Council,06-Apr-23,51301962764,564.30,24D KINGS RIPTON ROAD (REGARD),CARE ESTABLISHMENT,LD - Hunts Locality - Cost of Care,LD - Huntingdonshire - Care,Day Care
Cambridgeshire County Council,06-Apr-23,51301962764,564.30,24D KINGS RIPTON ROAD (REGARD),CARE ESTABLISHMENT,LD - Hunts Locality - Cost of Care,LD - Huntingdonshire - Care,Day Care
Cambridgeshire County Council,06-Apr-23,51301962764,564.30,24D KINGS RIPTON ROAD (REGARD),CARE ESTABLISHMENT,LD - Hunts Locality - Cost of Care,LD - Huntingdonshire - Care,Day Care
Cambridgeshire County Council,06-Apr-23,51301962764,564.30,24D KINGS RIPTON ROAD (REGARD),CARE ESTABLISHMENT,LD - Hunts Locality - Cost of Care,LD - Huntingdonshire - Care,Day Care
Cambridgeshire County Council,06-Apr-23,51301962764,564.30,24D KINGS RIPTON ROAD (REGARD),CARE ESTABLISHMENT,LD - Hunts Locality - Cost of Care,LD - Huntingdonshire - Care,Day Care
Cambridgeshire County Council,06-Apr-23,51301962764,564.30,24D KINGS RIPTON ROAD (REGARD),CARE ESTABLISHMENT,LD - Hunts Locality - Cost of Care,LD - Huntingdonshire - Care,Day Care
Cambridgeshire County Council,06-Apr-23,51301962764,564.30,24D KINGS RIPTON ROAD (REGARD),CARE ESTABLISHMENT,LD - Hunts Locality - Cost of Care,LD - Huntingdonshire - Care,Day Care
Cambridgeshire County Council,06-Apr-23,51301962764,564.30,24D KINGS RIPTON ROAD (REGARD),CARE ESTABLISHMENT,LD - Hunts Locality - Cost of Care,LD - Huntingdonshire - Care,Day Care
Cambridgeshire County Council,06-Apr-23,51301962764,564.30,24D KINGS RIPTON ROAD (REGARD),CARE ESTABLISHMENT,LD - Hunts Locality - Cost of Care,LD - Huntingdonshire - Care,Day Care
Cambridgeshire County Council,06-Apr-23,51301962764,564.30,24D KINGS RIPTON ROAD (REGARD),CARE ESTABLISHMENT,LD - Hunts Locality - Cost of Care,LD - Huntingdonshire - Care,Day Care
Cambridgeshire County Council,06-Apr-23,51301962764,564.30,24D KINGS RIPTON ROAD (REGARD),CARE ESTABLISHMENT,LD - Hunts Locality - Cost of Care,LD - Huntingdonshire - Care,Day Care
Cambridgeshire County Council,06-Apr-23,51301962764,564.30,24D KINGS RIPTON ROAD (REGARD),CARE ESTABLISHMENT,LD - Hunts Locality - Cost of Care,LD - Huntingdonshire - Care,Day Care
Cambridgeshire County Council,06-Apr-23,51301962764,564.30,24D KINGS RIPTON ROAD (REGARD),CARE ESTABLISHMENT,LD - Hunts Locality - Cost of Care,LD - Huntingdonshire - Care,Day Care
Cambridgeshire County Council,06-Apr-23,51301962764,564.30,24D KINGS RIPTON ROAD (REGARD),CARE ESTABLISHMENT,LD - Hunts Locality - Cost of Care,LD - Huntingdonshire - Care,Day Care
Cambridgeshire County Council,06-Apr-23,51301962764,564.30,24D KINGS RIPTON ROAD (REGARD),CARE ESTABLISHMENT,LD - Hunts Locality - Cost of Care,LD - Huntingdonshire - Care,Day Care
Cambridgeshire County Council,06-Apr-23,51301962764,564.30,24D KINGS RIPTON ROAD (REGARD),CARE ESTABLISHMENT,LD - Hunts Locality - Cost of Care,LD - Huntingdonshire - Care,Day Care
Cambridgeshire County Council,06-Apr-23,51301962764,564.30,24D KINGS RIPTON ROAD (REGARD),CARE ESTABLISHMENT,LD - Hunts Locality - Cost of Care,LD - Huntingdonshire - Care,Day Care
Cambridgeshire County Council,06-Apr-23,51301962764,564.30,24D KINGS RIPTON ROAD (REGARD),CARE ESTABLISHMENT,LD - Hunts Locality - Cost of Care,LD - Huntingdonshire - Care,Day Care
Cambridgeshire County Council,06-Apr-23,51301962764,564.30,24D KINGS RIPTON ROAD (REGARD),CARE ESTABLISHMENT,LD - Hunts Locality - Cost of Care,LD - Huntingdonshire - Care,Day Care
Cambridgeshire County Council,06-Apr-23,51301962764,564.30,24D KINGS RIPTON ROAD (REGARD),CARE ESTABLISHMENT,LD - Hunts Locality - Cost of Care,LD - Huntingdonshire - Care,Day Care
Cambridgeshire County Council,06-Apr-23,51301962764,564.30,24D KINGS RIPTON ROAD (REGARD),CARE ESTABLISHMENT,LD - Hunts Locality - Cost of Care,LD - Huntingdonshire - Care,Day Care
Cambridgeshire County Council,06-Apr-23,51301962764,564.30,24D KINGS RIPTON ROAD (REGARD),CARE ESTABLISHMENT,LD - Hunts Locality - Cost of Care,LD - Huntingdonshire - Care,Day Care
Cambridgeshire County Council,06-Apr-23,51301962764,564.30,24D KINGS RIPTON ROAD (REGARD),CARE ESTABLISHMENT,LD - Hunts Locality - Cost of Care,LD - Huntingdonshire - Care,Day Care
Cambridgeshire County Council,06-Apr-23,51301962764,564.30,24D KINGS RIPTON ROAD (REGARD),CARE ESTABLISHMENT,LD - Hunts Locality - Cost of Care,LD - Huntingdonshire - Care,Day Care
Cambridgeshire County Council,06-Apr-23,51301962764,564.30,24D KINGS RIPTON ROAD (REGARD),CARE ESTABLISHMENT,LD - Hunts Locality - Cost of Care,LD - Huntingdonshire - Care,Day Care
Cambridgeshire County Council,06-Apr-23,51301962764,564.30,24D KINGS RIPTON ROAD (REGARD),CARE ESTABLISHMENT,LD - Hunts Locality - Cost of Care,LD - Huntingdonshire - Care,Day Care
Cambridgeshire County Council,06-Apr-23,51301962764,564.30,24D KINGS RIPTON ROAD (REGARD),CARE ESTABLISHMENT,LD - Hunts Locality - Cost of Care,LD - Huntingdonshire - Care,Day Care
Cambridgeshire County Council,06-Apr-23,51301962764,564.30,24D KINGS RIPTON ROAD (REGARD),CARE ESTABLISHMENT,LD - Hunts Locality - Cost of Care,LD - Huntingdonshire - Care,Day Care
Cambridgeshire County Council,06-Apr-23,51301962764,564.30,24D KINGS RIPTON ROAD (REGARD),CARE ESTABLISHMENT,LD - Hunts Locality - Cost of Care,LD - Huntingdonshire - Care,Day Care
Cambridgeshire County Council,06-Apr-23,51301962764,564.30,24D KINGS RIPTON ROAD (REGARD),CARE ESTABLISHMENT,LD - Hunts Locality - Cost of Care,LD - Huntingdonshire - Care,Day Care
Cambridgeshire County Council,06-Apr-23,51301962764,564.30,24D KINGS RIPTON ROAD (REGARD),CARE ESTABLISHMENT,LD - Hunts Locality - Cost of Care,LD - Huntingdonshire - Care,Day Care
Cambridgeshire County Council,06-Apr-23,51301962764,564.30,24D KINGS RIPTON ROAD (REGARD),CARE ESTABLISHMENT,LD - Hunts Locality - Cost of Care,LD - Huntingdonshire - Care,Day Care
Cambridgeshire County Council,06-Apr-23,51301962764,564.30,24D KINGS RIPTON ROAD (REGARD),CARE ESTABLISHMENT,LD - Hunts Locality - Cost of Care,LD - Huntingdonshire - Care,Day Care
Cambridgeshire County Council,06-Apr-23,51301962764,564.30,24D KINGS RIPTON ROAD (REGARD),CARE ESTABLISHMENT,LD - Hunts Locality - Cost of Care,LD - Huntingdonshire - Care,Day Care
Cambridgeshire County Council,06-Apr-23,51301962764,564.30,24D KINGS RIPTON ROAD (REGARD),CARE ESTABLISHMENT,LD - Hunts Locality - Cost of Care,LD - Huntingdonshire - Care,Day Care
Cambridgeshire County Council,06-Apr-23,51301962764,564.30,24D KINGS RIPTON ROAD (REGARD),CARE ESTABLISHMENT,LD - Hunts Locality - Cost of Care,LD - Huntingdonshire - Care,Day Care
Cambridgeshire County Council,06-Apr-23,51301962764,564.30,24D KINGS RIPTON ROAD (REGARD),CARE ESTABLISHMENT,LD - Hunts Locality - Cost of Care,LD - Huntingdonshire - Care,Day Care
Cambridgeshire County Council,06-Apr-23,51301962764,564.30,24D KINGS RIPTON ROAD (REGARD),CARE ESTABLISHMENT,LD - Hunts Locality - Cost of Care,LD - Huntingdonshire - Care,Day Care
Cambridgeshire County Council,06-Apr-23,51301962764,564.30,24D KINGS RIPTON ROAD (REGARD),CARE ESTABLISHMENT,LD - Hunts Locality - Cost of Care,LD - Huntingdonshire - Care,Day Care
Cambridgeshire County Council,06-Apr-23,51301962764,564.30,24D KINGS RIPTON ROAD (REGARD),CARE ESTABLISHMENT,LD - Hunts Locality - Cost of Care,LD - Huntingdonshire - Care,Day Care
Cambridgeshire County Council,06-Apr-23,51301962764,564.30,24D KINGS RIPTON ROAD (REGARD),CARE ESTABLISHMENT,LD - Hunts Locality - Cost of Care,LD - Huntingdonshire - Care,Day Care
Cambridgeshire County Council,06-Apr-23,51301962764,564.30,24D KINGS RIPTON ROAD (REGARD),CARE ESTABLISHMENT,LD - Hunts Locality - Cost of Care,LD - Huntingdonshire - Care,Day Care
Cambridgeshire County Council,06-Apr-23,51301962764,564.30,24D KINGS RIPTON ROAD (REGARD),CARE ESTABLISHMENT,LD - Hunts Locality - Cost of Care,LD - Huntingdonshire - Care,Day Care
Cambridgeshire County Council,06-Apr-23,51301962764,564.30,24D KINGS RIPTON ROAD (REGARD),CARE ESTABLISHMENT,LD - Hunts Locality - Cost of Care,LD - Huntingdonshire - Care,Day Care
Cambridgeshire County Council,06-Apr-23,51301962764,564.30,24D KINGS RIPTON ROAD (REGARD),CARE ESTABLISHMENT,LD - Hunts Locality - Cost of Care,LD - Huntingdonshire - Care,Day Care
Cambridgeshire County Council,06-Apr-23,51301962826,650.66,24D KINGS RIPTON ROAD (REGARD),CARE ESTABLISHMENT,OPPD - Cost of Care - Huntingdon - Over 65,Hunts OP Team - Care,Supported Living
Cambridgeshire County Council,06-Apr-23,51301962826,650.66,24D KINGS RIPTON ROAD (REGARD),CARE ESTABLISHMENT,OPPD - Cost of Care - Huntingdon - Over 65,Hunts OP Team - Care,Supported Living
Cambridgeshire County Council,06-Apr-23,51301962826,650.66,24D KINGS RIPTON ROAD (REGARD),CARE ESTABLISHMENT,OPPD - Cost of Care - Huntingdon - Over 65,Hunts OP Team - Care,Supported Living
Cambridgeshire County Council,06-Apr-23,51301962826,650.66,24D KINGS RIPTON ROAD (REGARD),CARE ESTABLISHMENT,OPPD - Cost of Care - Huntingdon - Over 65,Hunts OP Team - Care,Supported Living
Cambridgeshire County Council,06-Apr-23,51301962826,650.66,24D KINGS RIPTON ROAD (REGARD),CARE ESTABLISHMENT,OPPD - Cost of Care - Huntingdon - Over 65,Hunts OP Team - Care,Supported Living
Cambridgeshire County Council,06-Apr-23,51301962826,650.66,24D KINGS RIPTON ROAD (REGARD),CARE ESTABLISHMENT,OPPD - Cost of Care - Huntingdon - Over 65,Hunts OP Team - Care,Supported Living
Cambridgeshire County Council,06-Apr-23,51301962826,650.66,24D KINGS RIPTON ROAD (REGARD),CARE ESTABLISHMENT,OPPD - Cost of Care - Huntingdon - Over 65,Hunts OP Team - Care,Supported Living
Cambridgeshire County Council,06-Apr-23,51301962826,650.66,24D KINGS RIPTON ROAD (REGARD),CARE ESTABLISHMENT,OPPD - Cost of Care - Huntingdon - Over 65,Hunts OP Team - Care,Supported Living
Cambridgeshire County Council,06-Apr-23,51301962826,650.66,24D KINGS RIPTON ROAD (REGARD),CARE ESTABLISHMENT,OPPD - Cost of Care - Huntingdon - Over 65,Hunts OP Team - Care,Supported Living
Cambridgeshire County Council,06-Apr-23,51301962826,650.66,24D KINGS RIPTON ROAD (REGARD),CARE ESTABLISHMENT,OPPD - Cost of Care - Huntingdon - Over 65,Hunts OP Team - Care,Supported Living
Cambridgeshire County Council,06-Apr-23,51301962826,650.66,24D KINGS RIPTON ROAD (REGARD),CARE ESTABLISHMENT,OPPD - Cost of Care - Huntingdon - Over 65,Hunts OP Team - Care,Supported Living
Cambridgeshire County Council,06-Apr-23,51301962826,650.66,24D KINGS RIPTON ROAD (REGARD),CARE ESTABLISHMENT,OPPD - Cost of Care - Huntingdon - Over 65,Hunts OP Team - Care,Supported Living
Cambridgeshire County Council,06-Apr-23,51301962826,650.66,24D KINGS RIPTON ROAD (REGARD),CARE ESTABLISHMENT,OPPD - Cost of Care - Huntingdon - Over 65,Hunts OP Team - Care,Supported Living
Cambridgeshire County Council,06-Apr-23,51301962826,650.66,24D KINGS RIPTON ROAD (REGARD),CARE ESTABLISHMENT,OPPD - Cost of Care - Huntingdon - Over 65,Hunts OP Team - Care,Supported Living
Cambridgeshire County Council,06-Apr-23,51301962826,650.66,24D KINGS RIPTON ROAD (REGARD),CARE ESTABLISHMENT,OPPD - Cost of Care - Huntingdon - Over 65,Hunts OP Team - Care,Supported Living
